{"text_format":"1","workbook":"xlsx","n_sheets":10,"sheets":["Welcome and Instructions","Certification and Assurances","Performance Assessment","CTEMS Schedules Checklist","CTEMS Schedules","Prefills","Sheet1","Sheet2","Sheet3","Sheet4"],"not_rendered":{"charts":0,"images":10,"macros":1,"external_links":0,"defined_names":92,"comments":2,"pivot_tables":0},"unopened":[],"bounds":{"document_bytes":16777216,"sheet_cells":100000,"rows_first":2000,"rows_last":500,"rows_between":2000,"halvings":0,"cell_chars":16384,"cell_head_chars":4096},"cells_cut":0,"cells_raw":0,"read":"whole","date_system":"1900"}

{"sheet":"Welcome and Instructions","index":0,"n_rows":450,"n_cols":9,"rows_kept":450,"cut":false,"hidden":false,"merged":[[9,0,9,15],[19,0,19,15],[60,1,60,15],[72,0,72,15],[26,1,26,15],[22,4,22,6],[10,0,10,5],[10,6,10,15],[69,1,69,15],[94,1,94,15],[11,0,11,15],[22,0,22,3],[12,6,12,11],[12,1,12,4],[44,1,44,15],[58,1,58,15],[67,1,67,15],[22,7,22,15],[46,1,46,15],[68,1,68,14],[55,1,55,15],[56,1,56,15],[53,1,53,15],[57,1,57,255],[23,0,23,14],[448,0,448,15],[449,0,449,4],[125,2,125,15],[141,3,141,15],[143,3,143,15],[126,1,126,15],[138,3,138,15],[145,3,145,15],[177,1,177,15],[155,3,155,15],[172,2,172,15],[174,0,174,15],[169,2,169,15],[127,2,127,15],[165,2,165,15],[164,2,164,15],[161,2,161,15],[162,2,162,15],[163,2,163,15],[149,3,149,15],[160,2,160,15],[119,1,119,15],[99,1,99,15],[121,2,121,15],[122,1,122,15],[139,2,139,15],[111,1,111,15],[113,1,113,15],[123,2,123,15],[109,1,109,15],[115,1,115,15],[105,1,105,15],[107,1,107,15],[103,1,103,15],[132,2,132,15],[147,3,147,15],[151,3,151,15],[101,1,101,15],[73,0,73,15],[81,1,81,15],[89,1,89,15],[87,1,87,15],[84,1,84,255],[75,1,75,15],[92,1,92,15],[97,1,97,255],[91,1,91,15],[76,1,76,15],[93,1,93,15],[77,2,77,14],[130,1,130,15],[0,0,0,10],[59,1,59,15],[54,1,54,15],[2,0,2,15],[15,0,15,15],[38,1,38,15],[41,1,41,15],[32,2,32,15],[33,2,33,15],[8,0,8,15],[42,1,42,255],[43,1,43,15],[45,0,45,15],[20,0,20,15],[27,0,27,15],[7,0,7,15]]}
["Revised 12-8-16"]
[]
["Welcome to the 2017-2018 Career and Technical Education (CTE) Local Plan and Budget Application in Excel.  Please use the tabs at the bottom of this spreadsheet to complete the Certification and Assurances, Performance Assessment, and the Career and Technical Education Management System (CTEMS) Schedules 1 - 18.  Use your local personal computer to prepare the document for submission to the Virginia Department of Education's (VDOE) Online Management of Education Grant Awards (OMEGA) reporting system."]
[]
["To print Annual Plan Document, please select this button:"]
[]
["To view the Annual Plan Document by pages, click on \"Page Break Preview\" under View."]
["NOTE:  For additional instructions on how to submit files in OMEGA, please consult the OMEGA User's Guide at:"]
["http://www.doe.virginia.gov/school_finance/budget/grants_acct_reporting/omega/omega_user_guide.pdf"]
["Or, once you are in OMEGA on the division's opening page, you may click \"Help\" in the top right sidebar, and the first paragraph has the link to the OMEGA User's Guide.  Additionally, you may e-mail questions or concerns regarding OMEGA by clicking on \"OMEGA SUPPORT\" in the top right sidebar.   You may also contact OMEGA Support directly at "]
["804-371-0993 or e-mail them directly at",null,null,null,null,null,"Omega.Support@doe.virginia.gov"]
["For questions concerning the CTE Local Plan and Budget Application, please contact George Willcox, Associate Director, or Bill Hatch, Coordinator, CTE Planning, Adminsitration and Accountability, as assigned in Appendix A, at (804) 786-4206"]
["or","CTE@doe.virginia.gov",null,null,null,null,"Do NOT contact OMEGA Support."]
[]
["Introduction"]
["The Carl D. Perkins Career and Technical Education Act of 2006 (referenced from this point on as the \"Perkins Act\" or \"Perkins IV\")  requires that each eligible recipient develop and implement a Local Plan for Career and Technical Education that includes specific information in the following three areas: "]
[null,"1.  program and services,"]
[null,"2.  required uses of funds, and "]
[null,"3.  permissible uses of funds.  "]
["In an effort to reduce or eliminate redundancy as you respond to the Perkins Act, each requirement is dealt with on a separate schedule.  A text box is provided for you to enter comments, additional categories, or narratives needed to describe or explain a particular program.  Please follow the specific instructions listed for each schedule."]
["To be eligible for CTE funding, school divisions must complete the appropriate schedules and include certifications of compliance with all statements of assurance and all conditions. The schedules provided are designed to set forth the proposed career and technical education programs, services, and activities to be funded. The local application for career and technical education funds must be submitted through the Single Sign-On for Web Systems (SSWS) via the OMEGA reporting system (NOTE:  As well as 2003 Excel .xls files, OMEGA will now support uploading 2007 and 2010 Excel .xlsx or .xlsm formatted files. If you experience any problems, please contact OMEGA Support.)  "]
["CTE Local Plan Due Date"]
["In compliance with",null,null,null,"federal requirements",null,null,"the school division must submit its application to"]
["the VDOE in \"substantially approvable form\" via OMEGA not later than April 28, 2017.  In order to obligate Perkins funds on July 1, 2017, school divisions must adhere to the submission due date."]
[]
["Federal Grants"]
[null,"Under the provisions of the Perkins Act, all federal grants, as provided from the Basic Grant of the Perkins Act, must be distributed by formula.  Application for this grant is made through the Career and Technical Education Management System (CTEMS) and meets all necessary conditions and assurances related to the use of these funds."]
[]
[]
["Basis for Determining 2017-2018 Perkins Grants to Local Education Agency (LEA)"]
[null,"Grants made to local education agencies are determined by the following formula:"]
[]
[null,null,"Thirty (30) percent shall be allocated to such local educational agencies in proportion to the number of individuals in grades 9 through 12 (ages 15-19), inclusive, who reside in the school division served by such local education agency for the preceding fiscal year compared to the total number of such individuals who reside in the school divisions served by all local educational agencies in the state for such preceding fiscal year."]
[null,null,"Seventy (70) percent shall be allocated to such local educational agencies in proportion to the Census Bureau's estimate of the relative number of children in poverty aged 5 through 17, inclusive, who reside in the school division served by such local educational agency compared to the total number of such individuals who reside in the school divisions served by all local educational agencies in the state for the most recent Census Bureau estimate."]
[]
["Appropriate Use of Federal Funds (See Appendix B.)"]
[null,"Section 135. Local Uses of Funds"]
[]
["(a)","General Authority - Each eligible recipient receiving funds under this part shall use such funds to improve career and technical education programs."]
[]
["Program Improvement"]
[null,"As in prior Perkins Acts, Perkins IV does not identify \"program improvement\" nor was the past definition, in Perkins I, repealed; thus we must refer to previous legislation for a definition and guidance.  In the August 14, 1992, Federal Register Part III 34 CFR Part 400, et al.: State Vocational and Applied Technology Education Programs and National Discretionary Programs of Vocational Education: Final Rule; Appendix A-Analysis of Comments and Changes, Part 403-State Vocational and Applied Technology Education Program, pages 36826-36827, you will find the Section titled \"Improving Vocational Education\" followed by \"Comments and Discussion.\"  "]
[null,"The following statement appears under the discussion caption:  \"The Secretary believes that a State and its eligible recipients should have the flexibility to determine how funds awarded under 403.112, 403.113, or 403.116 will be used to 'improve' career and technical education programs for their students.  The Secretary does not believe that it is possible to develop a definition of 'program improvement' that would apply in all cases.  Thus, while a State is free to use the guidelines provided in the previous regulations implementing the previous act, they are not required to do so.\"  "]
[null,"Note.  As a state agency, Virginia will allow funding for projects, services, or activities beyond three years as long as all Perkins performance standards are showing state-defined continuous improvement:  meet, or exceed the adjusted state-level performance standards.  If any of the Perkins performance standards fail to show continuous improvement, then school divisions may not utilize Perkins funds for more than three years on any project, service, or activity unless there are justifiable special circumstances.  Justification to extend funding beyond the third year on any project, service or activity that failed to show continuous improvement must be submitted to the Office of Career, Technical, and Adult Education prior to further implementation."]
[null,"The three years began with 2006 - 2007, the initial year of the Perkins IV Act or the year of the project, service or activity's inception, whichever is the later date."]
["Funds for Administration of the Federal Grant Award"]
[null,"Up to five percent of the total federal grant award may be used to administer activities to carry out purposes of the Perkins Act.  In addition, funds may be expended to purchase equipment used for administrative purposes, such as microcomputers."]
[]
[]
[]
[]
["SPECIAL NOTES"]
[]
[1,"Allocations for completing the local budget:  Use your current year allocation to complete the local budget part of this application.  Once the VDOE receives the new allocations for the next school year from the U.S. Department of Education, school divisions will be notified by a Superintendent's Memorandum.  If you have already submitted your CTE Local Plan and Budget Application prior to the final allocation, you will need to revise your budget and Budget Worksheet."]
[2,"Review of Local Plan and Budget Applications.  Please see the list in Appendix A of these directions to determine who will be reviewing your plan at the VDOE.  If you have questions, please contact the appropriate CTE staff."]
[3,"Required and Permissive Uses of Perkins Funds:   School divisions must use 60 percent or more on Required Uses of Funds. Virginia allows up to 40 percent of your total Perkins allocation for Permissive Uses of Funds. Both Required and Permissive Uses of Funds are designated by the Perkins Act (refer to Appendix B).  If you have questions, please contact the appropriate CTE staff."]
[4,"Expenditure Account Descriptions:  Be sure to use Appendix C for accurate assignment of expenditures in the budget segment of your application."]
[5,"DO NOT Round Budget Amounts: In the application, the budget total must match the federal allocation exactly.  Do not round budget amounts."]
[6,"Regional Career and Technical Centers:  Complete the Local Plan using the schedules identified on the CTEMS Schedules Checklist tab.  NOTE:  Effective School Year 2015-2016 and thereafter, regional technical center administrators must obtain from each participating school division the amount of Perkins funding that will be allocated for center use.  This total funding amount from all participating school divisions will be used to complete Schedule 17."]
[7,"Accountability Report:  An accountability report will be required at the end of the fiscal period to report actual financial data for items included on CTEMS Schedules 16 and 17 and to report equipment items purchased in whole or in part with federal funds."]
[8,"Prior-Year Data: Use prior-year data for projecting 2017-2018 state or federal funding in the following categories:"]
[null,"Standards of Quality (SOQ) Add-on",null,null,null,null,null,null,"Adult Occupation Supplements"]
[null,"Federal Grants",null,null,null,null,null,null,"Adult Occupation Teachers, Full-time"]
[null,"Extended Contracts",null,null,null,null,null,null,"Adult Occupation Teachers, Part-time"]
[null,"CTE Center Administrators"]
[null,"(Principals and Assistant Principals)"]
[]
[9,"New Programs/Courses.  The Application for New CTE Programs/Courses is reported outside of the OMEGA system and is located at and may be downloaded from:"]
[null,"http://www.doe.virginia.gov/instruction/career_technical/administration/index.shtml"]
[10,"Reserve Fund:  The Virginia Department of Education has revised its procedures for the redistribution of Perkins carryover funds to require that such funds be transferred from the Local Formula Distribution, Secondary Programs - Project Code: 61095 and moved to the Reserve, Secondary Programs – Project Code: 61159.  The reserve funds will be reallocated equitably to school divisions which have used 100 percent of their initial school year Perkins allocation with reallocation priority focused on industry credentialing initiatives and innovative CTE program implementation. \n\nEffective August 27, 2015, and thereafter, the reserve funds information is included in the local school divisions Perkins plan application template. Also, the reserve funds guidance has been posted on the CTE Program Administration and Management Web site. \n"]
[]
[]
["SPECIFIC DIRECTIONS FOR COMPLETING THE LOCAL YEAR PLAN FOR CAREER AND TECHNICAL  EDUCATION FUNDS\n"]
["NOTE:  When using hyperlinks, you may return to your original schedule by clicking the tab where you were working at the bottom of this screen."]
[1,"CERTIFICATIONS AND ASSURANCES"]
[null,"Use the drop-down menu to choose your school division and division number.  Complete all other requested information and obtain signatures.  The original Certification and Assurances page(s) with appropriate signatures must be retained and filed at the local level.  A copy of the signed Certification and Assurances page(s) must be faxed to the Office of Career ad Technical Education at 804-530-4560.  "]
[null,"For assistance in obtaining access to OMEGA,  (User Permission Form for School Divisions - OP1), the OMEGA User's Guide, and requirements for application submission, please refer to the OMEGA information page at:"]
[null,null,"http://www.doe.virginia.gov/school_finance/budget/grants_acct_reporting/omega/index.shtml"]
[]
[]
[2,"PERFORMANCE ASSESSMENT REPORT"]
[null,"Complete all required information.  This section replaced the Local Improvement Plan as of the 2007 - 2008 school year.  Performance standards that are not met must be addressed within the schedules of the plan and the budget."]
[]
[3,"CTEMS SCHEDULES"]
[null,"To ensure compliance with provisions of the Perkins Act, you must provide descriptions of CTE services in the schedules as appropriate.  Please indicate in narrative format, where required, your division's practices, policies, and plans.  The CTEMS Schedule Checklist tab may be used to move between schedules.  "]
[]
["    Schedules 1 and 2"]
[null,"Stakeholder/Advisory Committee Participation/Involvement. Describe your local process for involving the required groups in the development, implementation, and evaluation of CTE programs.  NOTE: Effective school year 2015-2016 and thereafter, a minimum of three business and industry representatives must be listed representing three different program areas. "]
["    Schedule 3 "]
[null,"Application for Local Career Cluster/Pathway Plans of Study.  As of school year 2012-2103 and thereafter, all divisions shall implement at least one or more Career Pathway Plans of Study representing at least three or more corresponding Career Clusters.  However, to ensure your division’s previous Plans of Study (submitted over the past 8 years) are preparing students to meet local, regional, and state economic and workforce needs, you are advised to review and revise each as necessary.  Please e-mail a Microsoft Word file of your completed 2017-2018 Plan of Study to CTE@doe.virginia.gov for separate approval."]
["    Schedule 4"]
[null,"Special Populations Report. List the number of individuals eligible for services provided by the school division in each of the following special populations:  economically disadvantaged (K-12), disabled (K-12), limited English proficient/English language learners (K-12), migrant students (K-12), single parents (7-12), nontraditional--underrepresented gender group (7-12), and displaced homemakers (7-12)."]
[null,"Strategies for Overcoming Access Barriers and Assuring Success for Special Populations.  Describe how you will annually review CTE programs and implement strategies to overcome barriers that result in lowering rates of access to and success in the programs for special populations and provide programs designed to enable the special populations to meet the state adjusted levels of performance."]
[null,"Non-discrimination Statement.   Describe how individuals will not be discriminated against on the basis of their status as members of a special populations"]
[null,"Identification of Services.  Check the appropriate services offered for each special population in your division.  Please note that child-care, special transportation, and special seminars for fathers, teens, e.g., are only available to single-parents, nontraditional, and displaced homemaker students."]
[]
["    Schedule 5 "]
[null,"Strengthen/Improve Academic and Technical Skills. Indicate in the program area checklist activities for school year 2017-2018 that are intended to strengthen and improve the academic and technical skills of participating students. Complete the narrative."]
["    Schedule 6 "]
[null,"All Aspects of Industry. Indicate in the program area checklist activities for school year 2017-2018 that are intended to provide students with experience in and understanding of all aspects of industry. Complete the narrative."]
["    Schedule 7 "]
[null,"Technology in Career and Technical Education. Indicate in the program area checklist activities for school year 2017-2018 that are intended to develop, improve, or expand the use of technology in CTE. Complete the narrative."]
["    Schedule 8 "]
[null,"Professional Development.  Indicate in the program area checklist activities for school year 2017-2018 that are intended to provide professional development to teachers, career/school counselors, and administrators associated with any of your CTE programs.  Also, in the second program area checklist, indicate the number of teachers who will be participating in professional development activities. Complete the narratives."]
["    Schedule 9 "]
[null,"Evaluation of Career and Technical Education Programs.  Describe how the state system of Performance Standards and Measures will be used to develop, evaluate, and continuously improve the performance of CTE programs, including an assessment of how the needs of special populations are being met."]
["    Schedule 10 "]
[null,"Improvement, Expansion, and Modernization.  Indicate in the program area checklist activities for school year 2017-2018 that are intended to initiate, improve, expand and modernize quality career and technical education programs. Complete the narrative."]
["    Schedule 11"]
[null,"Using Data to Improve Career and Technical Education.  Describe how you will use the data provided for your school division on the State System of Performance Standards and Measures to improve CTE."]
["    Schedule 12"]
[null,"Secondary/Postsecondary Linkages.  Identify and provide details (where applicable) for school year 2017-2018 activities implemented to facilitate linkage between and transition from secondary to postsecondary programs. \nCareer and Academic Counseling.  Describe how the career guidance system provides employment counseling to furnish information on available employment opportunities to all students, including students who are disabled.\nPlacement Services and Job-Seeking Skills. Describe placement services provided for all students exiting school.  Describe how job-seeking skills are provided to all secondary students including those identified as disabled."]
["    Schedule 13 "]
[null,"Equity Provisions of General Education Provision Act.  Describe steps that will be taken to ensure equitable access to, and equitable participation in the project or activity to be conducted with such assistance by addressing the special needs of students, teachers, and other program beneficiaries in order to overcome barriers to equitable participation, including barriers based on race, sex, color, national origin, religion, sexual orientation, gender identity, age, political affiliation, or against otherwise qualified persons with disabilities.  The policy specifically prohibits descrimination against veterans."]
["    Schedule 14 "]
[null,"Labor Market Needs.  Describe how labor market needs are reviewed and addressed to ensure programs and courses offered meet local, regional, and state economic and workforce needs. "]
[]
[]
["    Schedule 15 "]
[null,"Participation in Regional Career and Technical Education Centers. (Only to be completed by school divisions participating in regional CTE centers that serve multiple divisions.)"]
[null,"Column A:  Total CTE Students in School Division"]
[null,null,"Indicate the total number of students enrolled in CTE classes in your division.  This should include students paticipating/enrolled in courses at the home school and in the regional technical center.  This should be an unduplicated count.  Add to your unduplicated count the number of students attending class at a regional technical center. Use current year data."]
[null,"Column B:  Number of CTE Students Enrolled in Courses in Regional CTE Technical Center"]
[null,null,"Indicate the number of students from your divisions participating in regional technical center.  Use current year data."]
[null,"Column C:  Percent of CTE Students "]
[null,null,"Divide the number in Column B by the number in Column A.  Once Columns A and B are completed, the calculation is automatically programmed for Column C."]
[null,"Column D:  Amount of Perkins Funds to be Sent to the CTE Regional Technical Center"]
[null,null,"The amount of Perkins funding in Column D must equal the percentage identified in Column C.  (Multiply total Perkins funding allocation times percentage in Column C.)  NOTE:  Each school division that participates in a CTE Regional Technical Center must notify the center administrator of the amount of Perkins funding identified in Column D that will be allocated to the center."]
[]
["    Schedule 15-A "]
[null,"CTE Regional Technical Center Funding. To be completed by CTE Regional Technical Centers only.)"]
[]
[null,null,"List each school division that participates in the regional center including the Perkins Funding allocated to the center."]
[]
["    Schedule 16"]
[null,"Career and Technical Education Financial Data"]
[null,null,"Administration   (State and Local Funds)"]
[null,null,"Lines 1 and 2:  Principals and Assistant Principals"]
[null,null,null,"Indicate the TOTAL PROJECTED COSTS of CTE center administrators (principals and assistant principals) by category. Indicate projected state and local for each."]
[null,null,"Extended Contracts, Adult Supplements, and Local Funds.  (Documentation of local funds provides needed information for maintenance of effort by the locality.)"]
[null,null,"Line 3:  Extended Contracts"]
[null,null,null,"Indicate the PROJECTED TOTAL costs, by state and local projected expenditures, for extended contracts (11-month, 12-month, and other) in all CTE program areas."]
[null,null,"Line 4:  Adult Occupation Supplements"]
[null,null,null,"Indicate the PROJECTED TOTAL costs, by state and local projected expenditures, for adult supplements."]
[null,null,"Line 5:  Adult Occupation Teachers (Full-time)"]
[null,null,null,"Indicate the PROJECTED TOTAL costs, by state and local projected expenditures, for all full-time adult teachers. "]
[null,null,"Line 6:  Adult Occupation Teachers (Part-time)"]
[null,null,null,"Indicate the PROJECTED TOTAL costs, by state and local projected expenditures, for all part-time adult teachers."]
[null,null,"Line 7:  Operational Costs (Local Funds Only)"]
[null,null,null,"Indicate the PROJECTED TOTAL local expenditures for salaries.  Do not include extended contract supplements."]
[null,null,"Line 8:  Instructional Supplies and Materials (Local Funds Only)"]
[null,null,null,"Indicate the PROJECTED TOTAL local expenditures for instructional supplies and materials."]
[null,null,"Line 9:  Other Instructionally Related Costs (Local Funds Only)"]
[null,null,null,"Indicate the PROJECTED TOTAL local expenditures for other instructionally related costs."]
[null,null,"Line 10:  Equipment (Local funds Only)"]
[null,null,null,"Indicate the PROJECTED TOTAL local expenditures for equipment.  Localities must meet the state maintenance of effort for equipment."]
[]
[null,"Schedule  17"]
[null,"Budget of Perkins Funds"]
[null,"The Perkins Act contains the following statement in Section 135 (a):  "]
[null,null,"General Authority - Each eligible recipient that receives funds under this part shall use such funds to improve career and technical education programs."]
[null,-1,"In Column 1, indicate required or permissive funds and the funding requirement code under required or permissive for which expenditures are planned using federal funds.  Use the arrow above the pop-up message to access the drop-down menu to choose codes.  A link in the Column heading will take you to Appendix B of the Instructions for code explanations.  A locality must fund professional development, activities to prepare special populations, and one or more additional required uses of funds before permissive items can be funded.  Warning:  The total amount for permissive items may not exceed 40 percent of the total federal grant (a note will appear if you exceed the 40 percent)."]
[null,-2,"In Column 2, use the drop-down menu to indicate the name of the program area for which expenditures are planned using federal funds.  \"All\" is an option."]
[null,-3,"In Column 3, describe how the expenditure will assist your division in continuously improving the academic and technical skills of students participating in career and technical education programs and in meeting the state levels of performance established under Section 113 of the Perkins Act."]
[null,-4,"In Column 4, using the drop-down arrow, identify the object code used for budgeting expenditures."]
[null,-5,"In Column 5, using the drop-down arrow, identify the source of funding:  FED - Federal, ST - State, or LOC - Local.  Fill in the amount for each category identified."]
["    Schedule  18"]
["    Administration/Administrative Equipment Funds and Budget Summary Worksheet"]
[null,"Administration and Administrative Equipment"]
[null,null,"Enter description and amounts to be used for administration of Perkins Act activities, and for the purchase of equipment to be used for administrative purposes, such as microcomputers.  Object Code 5000 - a separate line has been provided to list Indirect Costs.\nThe total amount for administration may not exceed five (5) percent of the total federal grant (a note will appear if you exceed the five (5) percent)."]
[]
[null,"Summary Budget Worksheet"]
[null,null,"The worksheet will automatically classify the federal proposed activities identified on CTEMS Schedule 17 - Budget of Perkins Funds, and Schedule 18 - Administrative and Administrative Equipment, according to the correct expenditure categories on the Summary Budget Worksheet.  Refer to Appendix C for Expenditure Accounts Descriptions.  The total amount of all expenditure categories must equal the CTEMS Schedule 17 Grand Total."]
[]
["NOTE:  Please coordinate with your finance and/or budget office for the correct placement of budget items into the expenditure categories."]
[" "]
["    Comments Page"]
[null,"Please use this page for any additional comments you may have on any of the previous schedules.  Please identify the schedule number with the comments."]
[" "]
["APPENDIX A"]
["LOCAL DIVISION ASSIGNMENTS"]
[]
[]
[]
[]
[]
[]
[]
[]
[]
[]
[]
[]
[]
[]
[]
[]
[]
[]
[]
[]
[]
[]
[]
[]
[]
[]
[]
[]
[]
[]
[]
[]
[]
[]
[]
[]
[]
[]
[]
[]
[" "]
[]
[" "]
[" "]
[" "]
[" "]
[" "]
[" "]
[" "]
[" "]
[" "]
[" "]
[" "]
[" "]
[" "]
[" "]
[" "]
[" "]
[" "]
[" "]
[" "]
[" "]
[" "]
[" "]
[" "]
[" "]
[" "]
[" "]
[" "]
[" "]
[" "]
[" "]
[]
[]
[]
[]
[]
[]
[]
[]
[" "]
[" "]
[" "]
[" "]
[" "]
[" "]
[" "]
[]
[" "]
["APPENDIX B"]
["REQUIRED AND PERMISSIVE USE OF FUNDS"]
[]
[]
[]
[]
[]
[]
[]
[]
[]
[]
[]
[]
[]
[]
[]
[]
[]
[]
[]
[]
[]
[]
[]
[]
[]
[]
[]
[]
[]
[]
[]
[]
[]
[]
[]
[]
[]
[]
[]
[]
[]
[]
[]
[]
[]
[]
[]
[]
[]
[]
[]
[]
[]
[]
[]
[]
[]
[]
[]
[]
[]
[]
[]
[]
[]
[]
[]
[]
[]
[]
[]
[]
[]
[]
[]
[]
[]
[]
[]
[]
[]
[]
[]
[]
[]
[]
[]
[]
[]
[]
[]
[]
[]
[]
[]
[]
[]
[]
[]
[]
[]
[]
[]
[]
[]
[]
[]
[]
[]
[]
[]
[]
[]
[]
[]
[]
[]
[]
[]
[]
[]
[]
[]
[]
[]
[]
[]
[]
[]
[]
[]
[]
[]
[]
[]
[]
[]
[]
[]
[]
[]
[]
[]
[]
[]
[]
[]
[]
[]
[]
[]
[]
[]
[]
[]
[]
[]
[]
[]
[]
[]
[]
[]
[]
[]
[]
[]
[]
[]
[]
[]
[]
[]
[]
["APPENDIX C"]
["EXPENDITURE ACCOUNTS DESCRIPTIONS"]
["These accounts are for budgeting/recording expenditures of the educational agency for activities under its control.  Below are definitions of the major expenditure categories.  These descriptions provided are examples only.  For further clarification on the proper expenditures of funds, contact the grants administrator, Rachel Blanton at 804-225-3349 or"]
["CTE@doe.virginia.gov."]

{"sheet":"Certification and Assurances","index":1,"n_rows":165,"n_cols":17,"rows_kept":165,"cut":false,"hidden":false,"merged":[[5,0,5,15],[14,9,14,10],[13,7,13,8],[74,1,74,15],[106,1,106,15],[76,1,76,15],[78,1,78,15],[80,1,80,15],[82,1,82,15],[84,1,84,15],[86,1,86,15],[88,1,88,15],[28,3,28,14],[70,1,70,15],[72,1,72,15],[15,5,15,15],[90,1,90,15],[92,1,92,15],[36,8,36,11],[38,8,38,11],[68,1,68,15],[49,1,49,15],[53,1,53,15],[57,1,57,15],[66,1,66,15],[50,1,50,15],[51,1,51,15],[52,1,52,15],[58,1,58,15],[54,1,54,15],[55,1,55,15],[56,1,56,15],[33,0,33,6],[30,8,30,11],[32,8,32,11],[34,8,34,11],[47,1,47,15],[165,1,165,15],[142,1,142,15],[144,1,144,15],[164,1,164,15],[146,1,146,15],[148,1,148,15],[150,1,150,15],[152,1,152,15],[162,1,162,15],[153,1,153,5],[127,1,127,15],[129,1,129,15],[94,1,94,15],[104,1,104,15],[112,1,112,15],[114,1,114,15],[108,1,108,15],[116,1,116,15],[118,1,118,15],[119,1,119,15],[110,1,110,15],[102,1,102,15],[120,1,120,10],[140,1,140,15],[131,1,131,15],[135,1,135,15],[137,1,137,15],[133,1,133,15],[0,12,0,15],[24,3,24,9],[19,1,19,14],[13,13,13,15],[13,1,13,2],[13,5,13,6],[15,1,15,2],[14,1,14,2],[4,0,4,15],[9,0,9,6],[9,9,9,15],[11,0,12,6],[11,7,12,15],[22,3,22,14],[13,9,13,10],[14,5,14,6]]}
[null,null,null,null,null,null,null,null,null,null,null,null,null,null,null,null,"<----Identify Version"]
["Virginia Department of Education"]
["Office of Career, Technical, and Adult Education"]
[]
["LOCAL PLAN\nFOR\nCAREER AND TECHNICAL EDUCATION  (CTE) PERKINS FUNDS\n2017-2018"]
["(A copy of this signed form must be faxed to the Office of Career, Technical, and Adult Education at 804-530-4560)"]
[]
["Division and Contact Information - to be Completed by School Division"]
["Division Applicant Name (Legal Name of Agency)",null,null,null,null,null,null,"Division",null,"CTE Administrator"]
["HENRICO COUNTY PUBLIC SCHOOLS",null,null,null,null,null,null,"Number",{"$f":"IF(ISBLANK(A10),\" \",VLOOKUP(A10,Prefills!A2:B151,2))","v":43},"Mac Beaton"]
["Mailing Address (Street, City or Town, and Zip Code)",null,null,null,null,null,null,"Mailing Address  (If different than applicant address)"]
["3751-C Nine Mile Road, Henrico VA 23223"]
[]
["Phone (ext):",7811810,null,null,"Fax:",2365705,null,"Phone (ext):",null,null,null,null,"Fax:"]
[null,"Numbers Only",null,"Ext.",null,"Numbers Only",null,null,null,"Numbers Only",null,"Ext.",null,"Numbers Only"]
[null,null,null,null,"E-mail: ","mrbeaton@henrico.k12.va.us"]
[]
["Certification"]
[]
[null,"The eligible recipient does hereby certify that the assurances and conditions stipulated in this plan will be complied with in providing programs and activities for career and technical education and that funds will be used as stipulated in the approved plan.  The affixed signatures below ceterfy this division will adhere to the requirements and regulations in the CTE Perkins Local Plan sections listed below:\n"]
[null,null,"Requirements of the Carl D. Perkins Career and Technical Education Act of 2006.  Please note this includes: "]
[null,null,null,"· Perkins IV Technical Skills Assessment Certification; "]
[null,null,null,"· Certification Regarding Debarment, Suspension, Ineligibility and Voluntary Exclusion - \n   Lower tier Covered Transactions (Conditions - Item 10); "]
[null,null,null,"· Certification of Non-Construction and Construction Programs (Conditions - Item 11); "]
[null,null,null,"· Disclosure of Lobbying Activities (Conditions - Item 12); "]
[null,null,null,"· Coordination of Sample Career Cluster/Pathway Plans of Study and/or Academic Career Plan;* "]
[null,null,null,"· Performance Assessment Results (Performance Assessment Tab); "]
[null,null,null,"· Stakeholder Participation/Involvement CTEMS Schedule 1 (CTEMS Schedule Tab); and "]
[null,null,null,"· Evaluation of Career and Technical Education Programs CTEMS Schedule 8 (CTEMS\n  Schedule Tab)."]
[]
[]
["CTE Local Advisory Chairperson (Signature)",null,null,null,null,null,null,null,"Date"]
[]
["Local Community College Perkins Administrator  (Signature)*",null,null,null,null,null,null,null,"Date"]
[]
["Local CTE Administrator  (Signature)",null,null,null,null,null,null,null,"Date"]
[]
["School Board Chairperson (Signature)",null,null,null,null,null,null,null,"Date"]
[]
["Division Superintendent (Signature)",null,null,null,null,null,null,null,"Date"]
[]
[]
[null,"                                         School Division:",null,null,null,null,{"$f":"$A$10","v":"HENRICO COUNTY PUBLIC SCHOOLS"},null,null,null,null,null,"Division Number:",null,null,{"$f":"$I$10","v":43}]
[]
["Carl D. Perkins Career and Technical Education Act of 2006"]
["Assurances (continued on next page)"]
[]
["1.","The applicant will provide a career and technical education program that is of such size, scope, and quality to bring about improvement in the quality of career and technical education programs. (Sec. 134(b)6) and (Sec. 135(b)(8)"]
[]
[null,"Size:"]
[null,"a. A minimum of 11 courses in career and technical education is offered in each secondary school.\n    (Standards of Accreditation 8 VAC 20-131-100.B)"]
[null,"Scope:"]
[null,"b. At least three different career and technical education programs, not courses, that prepare students as a career \n    and technical education completer are provided.  (Standards of Accreditation 8 VAC 20-131-100.A.1.)"]
[null,"c. Instruction in career and technical exploration is provided in each middle school.  \n    (Standards of Accreditation 8 VAC 20-131-90.B)"]
[null,"Quality:"]
[null,"d. Career and technical education programs incorporated into the K through 12 curricula that include:·\n    * Knowledge of careers and all types of employment opportunities including, but not limited to, apprenticeships, \n      entrepreneurship and small business ownership, the military, and the teaching profession, and emphasize the advantages \n      of completing school with marketable skills;\n   * Career exploration opportunities in the middle school grades; and\n   * Competency-based career and technical education programs that integrate academic outcomes, career guidance and\n      job-seeking skills for all secondary students. Programs must be based upon labor market needs and student interest.  \n      Career guidance shall include counseling about available employment opportunities and placement services for \n      students exiting school.  Each school board shall develop and implement a plan to ensure compliance with the \n      provisions of this subdivision.  Such plan shall be developed with the input of area business and industry representatives\n      and local community colleges and shall be submitted to the Superintendent of Public Instruction in accordance with the\n      timelines established by federal law. (Standards of Quality § 22.1-253.13:1. Standard 1.D.3.)"]
[null,"e. Establish the requirements for a standard and an advanced studies high school diploma, which shall each include at least\n    one credit in fine or performing arts or career and technical education and one credit in United States and Virginia history. \n    The requirements for a standard high school diploma shall, however, include at least two sequential electives chosen \n    from a concentration of courses selected from a variety of options that may be planned to ensure the completion of \n    a focused sequence of elective courses.  Such focused sequence of elective courses shall provide a foundation for further\n    education or training or preparation for employment.  The advanced studies diploma shall be the recommended diploma for\n    students pursuing baccalaureate study.  Both the standard and the advanced studies diploma shall prepare students for \n    post-secondary education and the career readiness required by the Commonwealth's economy…  .  (Standards of \n    Quality § 22.1-253.13:4.D.2.)  Note:  Beginning with students entering ninth grade for the first time in 2013-2014, \n    a student shall earn a board-approved career and technical education credential to graduate with a Standard Diploma \n    (8VAC 20-131-50)."]
[null,"f. Provide for the award of verified units of credit for passing scores on industry certifications, state licensure \n   examinations, and national occupational competency assessments approved by the Board of Education. \n   School boards shall report annually to the Board of Education the number of Board-approved industry certifications \n   obtained, state licensure examinations passed, national occupational competency assessments passed, Virginia workplace\n   readiness skills assessments passed, and the number of career and technical education completers who graduated.  \n   These numbers shall be reported as separate categories on the School Performance Report Card.   In addition, \n   the Board may:\n"]
[null,"        i.  For the purpose of awarding verified units of credit, approve the use of additional or substitute tests for the\n            correlated Standards of Learning assessment, such as academic achievement tests, industry certifications or state\n            licensure examinations; and"]
[]
[]
[null,"                                         School Division:",null,null,null,null,{"$f":"$A$10","v":"HENRICO COUNTY PUBLIC SCHOOLS"},null,null,null,null,null,"Division Number:",null,null,{"$f":"$I$10","v":43}]
[]
["Carl D. Perkins Career and Technical Education Act of 2006"]
["Assurances (continued from previous page)"]
[]
[null,"        ii. Permit students completing career and technical education programs designed to enable such students to pass such\n            industry certification examinations or state licensure examinations to be awarded, upon obtaining satisfactory scores\n            on such industry certification or licensure examinations, the appropriate verified units of credit for one or more \n            career and technical education classes into which relevant Standards of Learning for various classes taught at the\n            same level have been integrated.  Such industry certification and state licensure examinations may cover relevant\n            Standards of Learning for various required classes and may, at the discretion of the Board, address some Standards\n            of Learning for several required classes.  (Standards of Quality § 22.1-253.13:4.D.6.)"]
[]
["2.","Programs, services, and activities included under this agreement will be operated in accordance with the Carl D. Perkins Career and Technical Education Act of 2006 (Perkins IV) and all applicable Virginia Public School Laws. (8VAC 20-120-10)"]
[]
["3.","None of the funds made available under this Perkins Act (Perkins IV) will be used to provide funding under the Wagner-Peyser Act and Public Law 105-220. (Sec. 118(d)(1-2))\n"]
[]
["4.","The applicant will submit descriptive and statistical reports containing complete, accurate, and reliable data that measure the progress of students, including special populations, as required by Perkins IV, the Education Improvement Act of 1984, and the State Department of Education. (Sec. 122(c)(13))\n"]
[]
["5.","Students who participate in career and technical education programs will be taught the same challenging academic proficiencies as all other students. (Sec. 134(b)(3)(D))"]
[]
["6.","The applicant that receives funds under this part will use such funds to improve career and technical education programs. (Sec. 135(a))"]
[]
["7.","Funds made available under this Perkins Act for career and technical education activities will supplement and shall not supplant, non-federal funds expended to carry out career and technical education activities. (Sec. 311(a))"]
[]
["8.","No funds received under the Perkins Act will be used to require any secondary school student to choose or pursue a specific career path or major or to mandate that any individual participate in a career and technical education program, including a career and technical education program that requires the attainment of a federally funded skill level, standard, or certificate of mastery. (Sec. 314)(1))"]
[]
["9.","No funds received under this Perkins Act will be used to provide career and technical education programs prior to the seventh grade, except that equipment and facilities purchased with funds under this Act may be used by such students. (Sec. 315)"]
[]
["10.","No funds provided under this Perkins Act will be used for the purpose of directly providing incentives or inducement to employers to relocate a business enterprise from one state to another state if such relocation will result in a reduction in the number of jobs available in the state where the business enterprise is located before such incentives or inducements are offered. (Sec. 322)"]
[]
["11.","Funds used under this Perkins Act for in-service and pre-service career and technical education professional development programs for career and technical education teachers, administrators, and other personnel may, upon request, permit program participation by career and technical education teachers, administrators, and other personnel in non-profit private schools offering career and technical education programs located in the geographical area served by such agency or recipient.  (Sec. 317(a))"]
[]
["12.","None of the funds expended under Perkins IV will be used to acquire equipment (including computer software) in any instance in which such acquisition results in a direct financial benefit to any organization representing the interest of the purchasing entity, the employees of the purchasing entity, or any affiliate of such an organization. (Sec. 122(c)(12))"]
[]
["13.","Programs funded under the Perkins Act will be coordinated with the local Workforce Investment Council to avoid duplication with Workforce Investment Act Title I programs, adult education, and other federal training programs (Sec. 118(c)(5))."]
[]
["14.","The local school division will use the state-provided career and technical program area competency list identified for each course to provide instruction for students and to rate the student’s level of competency attainment. (8VAC 20-120-120)"]
[]
[]
[]
[null,"                                         School Division:",null,null,null,null,{"$f":"$A$10","v":"HENRICO COUNTY PUBLIC SCHOOLS"},null,null,null,null,null,"Division Number:",null,null,{"$f":"$I$10","v":43}]
[]
["Carl D. Perkins Career and Technical Education Act of 2006"]
["Assurances (continued from previous page)"]
[]
[]
["15.","The local school division shall:\n     a. identify the number of special population students enrolled in career and technical education programs;\n     b. assess the career and technical needs of the students identified as special populations; and\n     c. develop an adequate plan to provide supplementary services sufficient to meet the needs of such students. (Sec 122(c)(13))"]
[]
["16.","This plan has been developed in consultation with the local career and technical education advisory committee, composed of representatives from business and industry, labor organization, Workforce Investment Council, local community colleges, special populations, teachers, parents, students, and other interested community leaders.  In addition, the committee should include appropriate representation of both genders and the racial and ethnic minorities in the school, community, or region. (Sec 134(b)(5))  (8VAC 20-120-50)"]
[]
["17.","Local programs of career and technical education shall be evaluated annually using the performance standards and measures as approved by the Virginia Board of Education, and in compliance with the requirements of Section 113 of the Carl D. Perkins Career and Technical Education Act of 2006. (Sec. 122(c)(8))"]
[]
["18.","Equal opportunities in career and technical education programs will be provided to persons and without discrimination based on gender, race, color, national origin, religion, age, political affiliation, veteran status, persons with disabilities, and equal access to the Boy Scouts and other designated youth groups. (Sec. 134) (8VAC 20-120-100) (See 34 CFR Sections 100-6(d), 106.9, 104.8, 110.25, and 108.9)"]
[]
["19.","Statistical, financial, and descriptive reports and data required by the Virginia Board of Education and/or the Virginia Department of Education with regard to career and technical education programs will be submitted as requested and within the specified timelines. (8VAC 20-120-70)"]
[]
["20.","Procedures are in place to ensure that lists of essential competencies that are modified for students with Individualized Education Programs (IEPs) or Section 504 plans must, as a group, be selected so that student attainment of the modified list of essential competencies prepare the student for a job or occupation. (Sec. 122(c)(8))  (8VAC 20-120-130)"]
[]
["21.","Career and technical services, programs, and activities will reflect labor market needs and student interest.  (8VAC 20-120-110)"]
[]
["22.","Career and technical student organizations will be an integral and active part of each career and technical program. (8VAC 20-120-160(B))"]
[]
["23.","The local plan has been approved by the school board and will be implemented upon approval of the Virginia Department of Education. (8VAC 20-120-10)"]
["24.","The school division will conduct a comprehensive self-assessment of the career and technical education program.  If applicable, the school division will develop a plan of action to address each unmet requirement and assure timely implementation of the plan. The CTE Federal Program Monitoring Review system requires school divisions to review the CTE program on a six-year cyclical schedule.  If applicable, school divisions must complete a comprehensive self-assessment instrument and submit in conjunction with the CTE Local Plan by April 28, 2017."]
[null,"(Refer to Superintendent's Memorandum #237-16, dated September 16, 2016)"]
[]
[]
[null,"                                        School Division:",null,null,null,null,{"$f":"$A$10","v":"HENRICO COUNTY PUBLIC SCHOOLS"},null,null,null,null,null,"Division Number:",null,null,{"$f":"$I$10","v":43}]
[]
["Conditions"]
[]
["1.","An inventory of all equipment purchased in whole or part with federal funds provided by the Virginia Board of Education will be maintained, and all such equipment will be available for use by students in the approved career and technical education program for which it was purchased. (8VAC 20-120-80)"]
[]
["2.","Recipients of federal funding that plan to use any equipment purchased in whole or in part with federal funds provided by the Virginia Board of Education in any program, project or activity other than the one for which it was originally purchased or who planned to dispose of or trade in such equipment must comply with the provisions of Education Department General Administrative Regulations (EDGAR)."]
[]
["3.","Funds will not be expended in any manner other than as budgeted in the original plan or amended plan (if applicable).\nIn the event funds need to be expended (category or dollar amount) in any manner other than stipulated in this CTEMS plan, the eligible recipient must submit, in writing, a request to amend the CTEMS plan.  This request must include an explanation of proposed changes along with a revised copy of Schedules 17 and 18."]
[]
["4.","Perkins funds will not be expended prior to the receipt of a letter of approval for the original plan and/or the amended plan (if applicable)."]
[]
["5.","The local plan shall be for the same period of time as the State Plan submitted under Section 122 (five-year plan)."]
[]
["6.","The locality will not fund any project, service, or activity for more than three years—the year of its inception and the two following years—unless showing continuous improvement, meeting or exceeding all Perkins performance standards."]
[]
[]
["7.","Career and technical education programs will operate consistently with all federal and state requirements and regulations."]
[]
["8.","Reports and other information required by the Virginia Board of Education will be submitted within the dates and timelines established, and documentation will be maintained for five years."]
[]
["9.","Reimbursement requests from school divisions will not be processed for those school divisions that have outstanding data and/or reports required by federal legislation, state legislation, or the Virginia Board of Education."]
[]
["10.","The locality will comply with certification regarding debarment, suspension, ineligibility, and voluntary exclusion – lower tier covered transactions."]
[]
["11.","The locality will comply with all applicable assurances in Office of Management and Budget (OMB) Standard Forms 424B and D (Assurances for Non-Construction and Construction Programs), including the assurances relating to the legal authority to apply for assistance; access to records; conflict of interest; merit systems; nondiscrimination; Hatch Act provisions; labor standards; flood hazards; historic preservation; protection of human subjects; animal welfare; lead-based paint; Single Audit Act; and the general agreement to comply with all applicable federal laws, executive orders and regulations."]
[]
["12.","With respect to the certification regarding lobbying in Department Form 80-0013, no federal appropriated funds have been paid or will be paid to any person for influencing or attempting to influence an officer or employee of any agency, a Member of Congress, an officer or employee of Congress, or an employee of a Member of Congress in connection with the making or renewal of federal grants under this program; the State will require the full certification, as set forth in 34 CFR Part 82, Appendix A, in the award documents for all subawards at all tiers; and the State will complete and submit Standard Form-LLL, \"Disclosure Form to Report Lobbying,\" when required (34 CFR Part 82, Appendix B)."]
[]
["13.","The Locality will comply with the following provisions of Education Department General Administrative Regulations (EDGAR), as applicable:  2 CFR Part 200—Uniform Administration Requirements, Cost Principles, and Audit Requirements for Federal Awards; 34 CFR Part 77—Definitions that Apply to Department Regulations; 34 CFR Part 81—General Education Provisions Act—Enforcement; 34 CFR Part 82—New Restrictions on Lobbying."]
[]
[]
[]
[null,"                                         School Division:",null,null,null,null,{"$f":"$A$10","v":"HENRICO COUNTY PUBLIC SCHOOLS"},null,null,null,null,null,"Division Number:",null,null,{"$f":"$I$10","v":43}]
[]
[]
["Perkins IV Technical Skills Assessment Certification\n(To be submitted annually with Local Plan and Budget Application.)\n"]
[]
[]
["1.","I certify that all Career and Technical Education programs in my school division are using the state developed CTE course frameworks to teach essential competencies in each course.  It is understood that locally developed competencies may be added as appropriate."]
[]
["2.","I certify that the following operational guidelines are being followed in all CTE programs in my school division.\n\n  a) Competencies are specified to students prior to instruction.\n  b) Competencies include “all aspects of the industry” and “workplace readiness skills.”\n  c) An internal evaluation system (i.e., state supplied Student Competency Record)* is utilized for rating and\n     documenting the competency performance of each student.  (Students may be involved in assessing their\n      work, but only a teacher or administrator may rate and document the performance.)\n\n*Student Competency Records should be used accordingly:\n  a) Teachers should review the task definitions for each essential task/competency to examine assessment\n      requirements.\n  b) Based on the performance level criteria and task definitions, teachers make independent professional \n      decisions about the performance attainment level of students on each essential competency.\n  c) Grading rubrics should be used where appropriate in skill performance applications.\n  d) Student competency records should be retained in the school division for five years.\n\n\n"]

{"sheet":"Performance Assessment","index":2,"n_rows":86,"n_cols":16,"rows_kept":86,"cut":false,"hidden":false,"merged":[[85,1,85,14],[77,2,77,6],[77,7,77,9],[84,1,84,14],[83,2,83,6],[83,7,83,9],[72,10,77,14],[82,2,82,6],[82,7,82,9],[80,2,80,6],[73,2,73,6],[74,2,74,6],[74,7,74,9],[72,2,72,6],[80,10,80,14],[79,7,79,9],[78,10,78,14],[73,7,73,9],[72,7,72,9],[81,7,81,9],[81,10,81,14],[80,7,80,9],[79,10,79,14],[81,2,81,6],[41,9,41,13],[18,10,18,11],[37,1,37,13],[39,1,39,11],[27,1,27,5],[23,2,23,6],[25,10,25,11],[22,2,22,6],[26,1,26,13],[39,12,39,13],[40,1,40,13],[18,7,18,9],[19,7,19,9],[20,7,20,9],[22,7,22,9],[24,2,24,6],[25,2,25,6],[23,7,23,9],[24,7,24,9],[18,2,18,6],[19,2,19,6],[20,2,20,6],[21,2,21,6],[25,7,25,9],[17,7,17,9],[17,2,17,6],[32,13,32,14],[19,10,19,11],[20,10,20,11],[15,12,15,13],[19,12,19,13],[15,10,15,11],[23,12,23,13],[16,10,16,11],[17,10,17,11],[22,12,22,13],[24,12,24,13],[25,12,25,13],[21,10,21,11],[22,10,22,11],[23,10,23,11],[24,10,24,11],[11,10,11,13],[12,10,12,11],[12,12,12,13],[13,12,13,13],[14,12,14,13],[13,7,13,9],[14,7,14,9],[15,2,15,6],[16,2,16,6],[15,7,15,9],[16,7,16,9],[50,9,50,13],[46,12,46,13],[47,1,47,13],[50,1,50,4],[50,5,50,8],[49,1,49,4],[49,5,49,8],[3,13,3,14],[5,0,5,15],[6,1,6,14],[8,1,8,14],[20,12,20,13],[21,12,21,13],[9,1,9,13],[16,12,16,13],[17,12,17,13],[18,12,18,13],[11,1,12,6],[13,10,13,11],[14,10,14,11],[13,2,13,6],[14,2,14,6],[21,7,21,9],[11,7,12,9],[56,1,56,4],[56,5,56,8],[56,9,56,13],[41,5,41,8],[43,1,43,4],[43,5,43,8],[43,9,43,13],[48,1,48,4],[53,1,53,11],[42,1,42,4],[42,5,42,8],[42,9,42,13],[49,9,49,13],[55,1,55,4],[55,5,55,8],[55,9,55,13],[51,1,51,13],[41,1,41,4],[46,1,46,11],[48,5,48,8],[48,9,48,13],[44,1,44,13],[53,12,53,13],[54,1,54,13],[70,2,70,6],[70,7,70,9],[71,2,71,6],[71,7,71,9],[57,1,57,4],[57,5,57,8],[57,9,57,13],[63,13,63,14],[68,1,69,6],[68,7,69,9],[58,1,58,13],[65,1,65,14],[66,1,66,14],[68,10,69,14],[70,10,70,14],[71,10,71,14],[75,2,75,6],[75,7,75,9],[76,2,76,6],[76,7,76,9],[78,2,78,6],[78,7,78,9],[82,10,82,14],[83,10,83,14],[79,2,79,6]]}
[]
[null,"                                        School Division:",null,null,null,null,{"$f":"T('Certification and Assurances'!$A$10:$G$10)","v":"HENRICO COUNTY PUBLIC SCHOOLS"},null,null,null,null,null,"Division Number:",null,null,{"$f":"'Certification and Assurances'!$I$10","v":43}]
[]
["                            PERFORMANCE ASSESSMENT for 2015-2016"]
["(Annual Submission Required)"]
[]
[null,"The school division's local plan should reflect activities/projects that address Perkins Performance Standards that have not improved or that do not meet the Virginia Agreed Upon Perkins Performance Levels.  This information will be used to inform appropriate technical assistance, on-site visits, and/or local Federal Program Monitoring visits."]
[]
[null,"If a performance standard is not met, the school division must explain why and the actions taken to improve performance on the following page.  Once a school division has met the state performance standards, they must maintain or show continuous improvement each year."]
[null,"Directions:  Provide the school division's actual performance levels for 2015-2016 for all completers and special populatons."]
[]
[null,"Perkins Performance Standards\n",null,null,null,null,null,"Virginia Agreed\nUpon Performance \nLevels for\n 2015 - 2016",null,null,"2015 - 2016  Actual Performance from APR"]
[null,null,null,null,null,null,null,null,null,null,"All Completers",null,"Special Populations"]
[null,"1S1","Academic Attainment -\n     Reading (English 11)",null,null,null,null,0.75,null,null,0.99580000000000002,null,0.99139999999999995]
[null,"1S2","Academic Attainment -\n     Mathematics (Highest Level)",null,null,null,null,0.75,null,null,0.99239999999999995,null,0.98509999999999998]
[null,"2S1A","Technical Skills Attainment -\n     Student Competency Rate",null,null,null,null,0.9,null,null,1,null,1]
[null,"2S1B","Technical Skills Attainment -\n     Completers Participating in \n     Credentialing Tests",null,null,null,null,0.7,null,null,0.98109999999999997,null,0.97350000000000003]
[null,"2S1C","Technical Skills Attainment -\n     Test Takers (Completers) Passing\n     Credentialing Tests Rate",null,null,null,null,0.79,null,null,0.89959999999999996,null,0.83679999999999999]
[null,"2S1D","Technical Skills Attainment -\n     Completers Passing Credentialing \n     Test Rate*",null,null,null,null,0.57999999999999996,null,null,0.88260000000000005,null,0.81459999999999999]
[null,"2S1E","Technical Skills Attainment - \n     Completers who passed a credentialing\n     test plus Completers who earned an\n     Advanced Studies Diploma and did not\n     pass a credentialing test",null,null,null,null,0.5,null,null,0.8962,null,0.82399999999999995]
[null,"3S1","Secondary School Completion",null,null,null,null,0.95,null,null,0.9869]
[null,"4S1","Graduation Rate",null,null,null,null,0.92,null,null,0.95420000000000005]
[null,"5S1","Secondary Placement Rate \n     (Transition from Secondary Education\n     to Postsecondary Education, \n     Employment or Military)",null,null,null,null,0.92,null,null,0.97189999999999999,null,0.9667]
[null,"5S1","Program Completer Response Rate",null,null,null,null,0.75,null,null,0.77959999999999996]
[null,"6S1","Nontraditional Career Preparation \n     Enrollment",null,null,null,null,0.3,null,null,0.35039999999999999]
[null,"6S2","Nontraditional Career Preparation \n     Completion",null,null,null,null,0.26,null,null,0.32540000000000002]
[null,"** EOC - End-of-Course"]
[]
[]
[null,"                                        School Division:",null,null,null,null,{"$f":"T('Certification and Assurances'!$A$10:$G$10)","v":"HENRICO COUNTY PUBLIC SCHOOLS"},null,null,null,null,null,"Division Number:",null,null,{"$f":"'Certification and Assurances'!$I$10","v":43}]
[]
[]
["                            PERFORMANCE ASSESSMENT"]
["(Continued from previous page)"]
[]
[]
[null,"The Annual Performance Report (APR) for your school division is available at "]
[null,"http://www.doe.virginia.gov/instruction/career_technical/statistics_reports/index.shtml"]
[]
[null,"1. How many performance standard(s)/element(s) were not met for first time.",null,null,null,null,null,null,null,null,null,null,0]
[null,"Select the performance standard(s) not met from the drop down menu below (click in box - menu will open).  Explain why each standard was not met."]
[]
[]
[]
[]
[]
[null,"2. How many performance standard(s)/element(s) were not met for two consecutive years.",null,null,null,null,null,null,null,null,null,null,0]
[null,"Select the performance standard(s) not met from the drop down menu below (click in box - menu will open).  Explain why each standard was not met and what action was taken in prior years to improve the performance."]
[]
[]
[]
[]
[]
[null,"3. How many performance standard(s)/element(s) were not met for three consecutive years.",null,null,null,null,null,null,null,null,null,null,0]
[null,"Select the performance standard(s) not met from the drop down menu below (click in box - menu will open).  Explain why each standard was not met and what action was taken in prior years to improve the performance."]
[]
[]
[]
[]
[]
[null,"                                        School Division:",null,null,null,null,{"$f":"T('Certification and Assurances'!$A$10:$G$10)","v":"HENRICO COUNTY PUBLIC SCHOOLS"},null,null,null,null,null,"Division Number:",null,null,{"$f":"'Certification and Assurances'!$I$10","v":43}]
[]
[]
["                            2016-2017 PERFORMANCE ASSESSMENT TARGETS"]
[]
[null,"School divisions are required to meet or exceed the Virginia Agreed Upon Perfomance Levels.  For your information, the following chart provides the list of Perkins Core Indicators of Performance, the 2016-2017 state (negotiated) agreed upon levels of performance, and the data collection sources.  For more detailed information, refer to CTE Memo No. 105-16, dated August 18, 2016."]
[]
[]
[null,"Perkins Core Indicator of Performance \n",null,null,null,null,null,"Virginia Agreed\nUpon Performance\nLevels for \n2016 - 2017",null,null,"Data Collection Source"]
[]
[null,"1S1*","Academic Attainment -\n     Reading (English 11)",null,null,null,null,0.8,null,null,"**EOC Standard of Learning Test Scores"]
[null,"1S2*","Academic Attainment -\n     Mathematics (Highest Level)",null,null,null,null,0.8,null,null,"**EOC Standard of Learning Test Scores"]
[null,"2S1A","Technical Skills Attainment -\n     Student Competency Rate",null,null,null,null,0.91,null,null,"Final Completer Demographics \nReport (CDR)  \n\nand \n\nCareer and Technical Education \nCredential Collection (CTECC)"]
[null,"2S1B","Technical Skills Attainment -\n     Completers Participating in \n     Credentialing Tests",null,null,null,null,0.8]
[null,"2S1C","Technical Skills Attainment - \n     Test Takers (Completers) Passing\n     Credentialing Tests Rate",null,null,null,null,0.8]
[null,"2S1D","Technical Skills Attainment -\n     Completers Passing Credentialing \n     Test Rate",null,null,null,null,0.72]
[null,"2S1E","Technical Skills Attainment - \n     Completers who passed a credentialing\n     test plus Completers who earned an\n     Advanced Studies Diploma and did not\n     pass a credentialing test",null,null,null,null,0.75]
[null,null,"Information Indicator - \n     Completers who earned an Advanced\n     Studies Diploma and passed a \n     credentialing test",null,null,null,null,"Not\nApplicable"]
[null,"3S1","Secondary School Completion",null,null,null,null,0.96,null,null,"Final Completer Demographics Report (CDR) and End-of-Year Student Record Collection Drop-out Report"]
[null,"4S1","Graduation Rate",null,null,null,null,0.93,null,null,"Final Completer Demographics Report (CDR)"]
[null,"5S1","Secondary Placement Rate \n     (Transition from Secondary Education \n     to Postsecondary Education, \n     Employment or Military)",null,null,null,null,0.93,null,null,"CTE Follow-up Survey of Program Completers"]
[null,"5S1","Program Completer Response Rate",null,null,null,null,0.75,null,null,"CTE Follow-up Survey of Program Completers"]
[null,"6S1","Nontraditional Career Preparation \n     Enrollment",null,null,null,null,0.31,null,null,"Secondary Enrollment Demographics Form (SEDF)"]
[null,"6S2","Nontraditional Career Preparation \n     Completion",null,null,null,null,0.27,null,null,"Final Completer Demographics Report (CDR)"]
[null,"* Based on Virginia’s Annual Measurable Objectives (AMO) for all students under the ESEA Act, flexibility waivers were granted by USDOE in March 2013.  Reading – Calculated based on results of the new statewide reading assessments administered for the first time during the 2012-2013 school year.  Mathematics – Calculated in fall 2012 based on results of new statewide mathematics assessments administered for the first time during the 2011-2012 school year.  In July 2014, USDOE approved the extension of Virginia’s ESEA flexibility waiver based on revised methodology."]
[null,"** EOC - End-of-Course"]

{"sheet":"CTEMS Schedules Checklist","index":3,"n_rows":18,"n_cols":16,"rows_kept":18,"cut":false,"hidden":false,"merged":[[19,1,19,14],[12,9,12,14],[13,9,13,14],[17,9,17,14],[16,9,16,14],[15,9,15,14],[14,9,14,14],[16,2,16,7],[17,2,17,7],[12,2,12,7],[13,2,13,7],[14,2,14,7],[15,2,15,7],[7,1,7,14],[9,2,9,7],[10,2,10,7],[11,2,11,7],[9,9,9,14],[10,9,10,14],[11,9,11,14]]}
[]
[null,"                                        School Division:",null,null,null,null,{"$f":"T('Certification and Assurances'!$A$10:$G$10)","v":"HENRICO COUNTY PUBLIC SCHOOLS"},null,null,null,null,null,"Division Number:",null,null,{"$f":"'Certification and Assurances'!$I$10","v":43}]
[]
[]
["CTEMS CHECKLIST"]
["2017-2018"]
[]
["1.","CTEMS Schedules Required for School Divisions and Regional Centers  (All Schedules are required.)"]
[]
[null,null,"Schedule 1 - Stakeholder Participation/Involvement",null,null,null,null,null,null,"Schedule 10 - Improvement, Expansion, and Modernization"]
[null,null,"Schedule 2 - Advisory Committee Participation/Involvement",null,null,null,null,null,null,"Schedule 11 - Using Data to Improve Career and Technical Education"]
[null,null,"Schedule 3 - Application for Local Career Cluster/Pathway Plans of Study ",null,null,null,null,null,null,"Schedule 12 - Secondary/Postsecondary Linkages, Employment Counseling, and Placement Services"]
[null,null,"Schedule 4 - Special Populations Report ",null,null,null,null,null,null,"Schedule 13 - Equity Provisions of General Education Provision Act"]
[null,null,"Schedule 5 - Strengthen/Improve Academic and Technical Skills",null,null,null,null,null,null,"Schedule 14 - Labor Market Needs"]
[null,null,"Schedule 6 - All Aspects of Industry",null,null,null,null,null,null,"Schedule 15 - Participation in Regional Technical Education Programs"]
[null,null,"Schedule 7 - Technology in Career and Technical Education ",null,null,null,null,null,null,"Schedule 16 - Career and Technical Education Financial Data"]
[null,null,"Schedule 8 - Professional Development Provided",null,null,null,null,null,null,"Schedule 17 - Budget of Perkins Funds"]
[null,null,"Schedule 9 - Evaluation of Career and Technical Education Programs",null,null,null,null,null,null,"Schedule 18 - Administration/Administrative Equipment Funds and Budget Summary Worksheet"]

{"sheet":"CTEMS Schedules","index":4,"n_rows":866,"n_cols":27,"rows_kept":866,"cut":false,"hidden":false,"merged":[[231,8,231,15],[231,1,231,7],[266,8,266,15],[266,1,266,7],[267,1,267,7],[308,8,308,15],[308,1,308,7],[346,8,346,15],[346,1,346,7],[382,8,382,15],[382,1,382,7],[430,8,430,15],[430,1,430,7],[116,5,116,12],[619,1,619,10],[619,11,619,14],[614,0,614,15],[610,0,610,15],[615,1,615,14],[616,1,616,10],[616,11,616,14],[617,1,617,10],[617,11,617,14],[618,1,618,10],[618,11,618,14],[202,8,202,9],[202,10,202,11],[202,12,202,13],[202,14,202,15],[202,0,202,1],[202,2,202,3],[202,4,202,5],[620,1,620,10],[620,11,620,14],[621,1,621,10],[621,11,621,14],[198,6,198,7],[198,8,198,9],[117,0,117,4],[197,10,197,11],[199,8,199,9],[199,10,199,11],[199,12,199,13],[199,14,199,15],[199,0,199,1],[199,2,199,3],[199,4,199,5],[199,6,199,7],[200,8,200,9],[200,10,200,11],[200,12,200,13],[200,14,200,15],[200,0,200,1],[200,2,200,3],[200,4,200,5],[200,6,200,7],[201,8,201,9],[201,10,201,11],[201,12,201,13],[201,14,201,15],[201,0,201,1],[201,2,201,3],[201,4,201,5],[201,6,201,7],[49,1,49,6],[51,1,51,6],[49,7,49,12],[51,7,51,12],[49,13,49,14],[51,13,51,14],[865,1,865,14],[867,1,868,14],[342,1,342,15],[122,0,122,4],[122,5,122,12],[122,13,122,15],[125,0,125,4],[125,5,125,12],[125,13,125,15],[828,1,828,2],[119,0,119,4],[119,5,119,12],[119,13,119,15],[123,0,123,4],[123,5,123,12],[123,13,123,15],[121,0,121,4],[121,5,121,12],[121,13,121,15],[825,1,825,2],[822,1,822,2],[594,0,594,15],[595,0,595,15],[50,1,50,6],[116,0,116,4],[116,13,116,15],[50,7,50,12],[50,13,50,14],[819,1,819,10],[819,11,819,14],[820,3,820,10],[820,1,820,2],[283,1,283,2],[655,11,655,12],[655,13,655,14],[691,11,691,12],[692,11,692,12],[444,1,444,2],[468,1,468,14],[470,1,471,14],[602,0,602,15],[603,0,603,15],[604,0,604,15],[426,1,426,14],[428,1,428,14],[120,0,120,4],[120,13,120,15],[120,5,120,12],[124,0,124,4],[98,5,98,10],[98,11,98,12],[98,13,98,15],[105,0,105,4],[624,11,624,14],[625,1,625,10],[625,11,625,14],[622,1,622,10],[622,11,622,14],[626,11,626,14],[650,1,650,10],[650,11,650,12],[650,13,650,14],[651,1,651,10],[651,11,651,12],[651,13,651,14],[648,1,648,10],[648,11,648,12],[648,13,648,14],[685,2,687,3],[127,0,127,4],[127,13,127,15],[127,5,127,12],[161,1,161,2],[161,3,161,4],[391,1,391,14],[394,1,395,14],[453,1,453,14],[457,1,458,14],[141,1,141,14],[144,1,145,14],[161,5,161,6],[160,3,160,4],[131,1,131,15],[157,1,157,14],[623,11,623,14],[624,1,624,10],[649,1,649,10],[649,11,649,12],[649,13,649,14],[623,1,623,10],[643,13,643,14],[97,0,97,4],[97,5,97,10],[97,11,97,12],[97,13,97,15],[102,0,102,4],[102,5,102,10],[102,11,102,12],[102,13,102,15],[99,0,99,4],[99,5,99,10],[99,11,99,12],[98,0,98,4],[117,5,117,12],[117,13,117,15],[103,11,103,12],[103,13,103,15],[104,0,104,4],[104,5,104,10],[104,11,104,12],[104,13,104,15],[101,0,101,4],[101,5,101,10],[101,11,101,12],[101,13,101,15],[99,13,99,15],[100,0,100,4],[100,5,100,10],[100,11,100,12],[100,13,100,15],[112,0,112,15],[626,1,626,10],[105,11,105,12],[644,11,644,12],[644,13,644,14],[646,1,646,14],[647,1,647,10],[647,11,647,12],[647,13,647,14],[645,1,645,10],[644,1,644,10],[118,5,118,12],[645,11,645,12],[645,13,645,14],[642,1,642,14],[643,1,643,10],[118,0,118,4],[118,13,118,15],[179,1,179,14],[181,1,182,14],[197,12,197,13],[197,14,197,15],[197,2,197,3],[197,4,197,5],[197,6,197,7],[197,8,197,9],[198,10,198,11],[198,12,198,13],[198,14,198,15],[197,0,197,1],[198,0,198,1],[198,2,198,3],[198,4,198,5],[643,11,643,12],[54,7,54,12],[54,13,54,14],[88,5,88,10],[88,11,88,12],[88,13,88,15],[87,0,87,4],[87,5,87,10],[87,11,87,12],[87,13,87,15],[91,0,91,4],[91,5,91,10],[91,11,91,12],[91,13,91,15],[90,0,90,4],[71,0,71,15],[86,0,86,4],[86,5,86,10],[86,11,86,12],[86,13,86,15],[85,0,85,4],[85,5,85,10],[85,11,85,12],[85,13,85,15],[90,5,90,10],[90,11,90,12],[90,13,90,15],[56,1,56,14],[57,1,57,14],[74,0,74,15],[795,17,795,18],[789,17,789,18],[783,17,783,18],[785,17,785,18],[702,17,702,18],[700,17,700,18],[697,17,697,18],[795,19,795,20],[795,21,795,22],[796,17,796,18],[796,19,796,20],[796,21,796,22],[793,17,793,18],[793,19,793,20],[793,21,793,22],[794,17,794,18],[794,19,794,20],[794,21,794,22],[791,17,791,18],[791,19,791,20],[791,21,791,22],[792,17,792,18],[792,19,792,20],[792,21,792,22],[789,19,789,20],[789,21,789,22],[790,17,790,18],[790,19,790,20],[790,21,790,22],[786,19,786,20],[786,21,786,22],[787,19,787,20],[787,21,787,22],[788,17,788,18],[788,19,788,20],[788,21,788,22],[787,17,787,18],[783,19,783,20],[783,21,783,22],[784,17,784,18],[784,19,784,20],[784,21,784,22],[785,19,785,20],[785,21,785,22],[704,19,704,20],[704,21,704,22],[705,19,705,20],[705,21,705,22],[782,17,782,18],[782,19,782,20],[782,21,782,22],[716,17,716,18],[716,19,716,20],[705,17,705,18],[716,21,716,22],[718,17,718,18],[718,19,718,20],[718,21,718,22],[717,17,717,18],[717,19,717,20],[717,21,717,22],[719,17,719,18],[719,19,719,20],[719,21,719,22],[702,19,702,20],[702,21,702,22],[703,19,703,20],[703,21,703,22],[701,17,701,18],[703,17,703,18],[700,19,700,20],[700,21,700,22],[699,17,699,18],[701,19,701,20],[701,21,701,22],[698,17,698,18],[698,19,698,20],[698,21,698,22],[699,19,699,20],[699,21,699,22],[696,17,696,18],[696,19,696,20],[696,21,696,22],[695,17,695,18],[697,19,697,20],[697,21,697,22],[694,17,694,18],[694,19,694,20],[694,21,694,22],[693,17,693,18],[695,19,695,20],[695,21,695,22],[692,17,692,18],[692,19,692,20],[692,21,692,22],[691,17,691,18],[693,19,693,20],[693,21,693,22],[690,17,690,18],[690,19,690,20],[690,21,690,22],[689,17,689,18],[691,19,691,20],[691,21,691,22],[687,21,687,22],[688,17,688,18],[688,19,688,20],[688,21,688,22],[687,17,687,18],[689,19,689,20],[689,21,689,22],[828,3,828,10],[828,11,828,14],[685,17,685,18],[685,19,685,20],[685,21,685,22],[686,17,686,18],[686,19,686,20],[686,21,686,22],[687,19,687,20],[822,11,822,14],[823,11,823,14],[824,3,824,10],[825,3,825,10],[825,11,825,14],[701,14,701,15],[702,14,702,15],[797,14,797,15],[821,3,821,10],[822,3,822,10],[820,11,820,14],[827,1,827,10],[704,17,704,18],[786,17,786,18],[782,14,782,15],[783,14,783,15],[784,14,784,15],[779,0,780,1],[656,1,656,10],[656,11,656,12],[656,13,656,14],[657,1,657,10],[657,11,657,12],[657,13,657,14],[652,1,652,14],[653,1,653,10],[653,11,653,12],[653,13,653,14],[700,2,702,3],[700,14,700,15],[654,1,654,10],[654,11,654,12],[654,13,654,14],[655,1,655,10],[695,11,695,12],[696,11,696,12],[688,0,690,1],[688,2,690,3],[683,14,683,15],[682,0,683,1],[682,2,683,3],[685,14,685,15],[685,0,687,1],[687,11,687,12],[685,4,687,10],[92,0,92,4],[92,5,92,10],[92,11,92,12],[92,13,92,15],[94,0,94,4],[94,5,94,10],[94,11,94,12],[93,0,93,4],[93,5,93,10],[93,11,93,12],[88,0,88,4],[93,13,93,15],[96,0,96,4],[96,5,96,10],[96,11,96,12],[96,13,96,15],[89,0,89,4],[89,5,89,10],[89,11,89,12],[89,13,89,15],[95,11,95,12],[94,13,94,15],[95,0,95,4],[95,5,95,10],[95,13,95,15],[8,1,8,14],[20,11,20,12],[21,11,21,12],[11,11,11,12],[14,11,14,12],[16,11,16,12],[17,11,17,12],[18,11,18,12],[19,11,19,12],[24,1,24,13],[43,13,43,14],[43,7,43,12],[36,1,36,15],[25,1,25,13],[43,1,43,6],[38,1,41,2],[44,13,44,14],[12,11,12,12],[13,11,13,12],[41,4,41,6],[41,8,41,14],[45,7,45,12],[45,13,45,14],[47,7,47,12],[47,13,47,14],[44,7,44,12],[46,1,46,6],[46,7,46,12],[44,1,44,6],[84,0,84,4],[84,5,84,10],[84,11,84,12],[84,13,84,15],[79,0,79,15],[83,13,83,15],[83,11,83,12],[83,5,83,10],[83,0,83,4],[45,1,45,6],[47,1,47,6],[46,13,46,14],[48,1,48,6],[48,7,48,12],[48,13,48,14],[53,1,53,6],[53,7,53,12],[53,13,53,14],[52,13,52,14],[52,7,52,12],[77,0,77,13],[72,0,72,13],[54,1,54,6],[52,1,52,6],[115,0,115,4],[115,13,115,15],[115,5,115,12],[105,13,105,15],[103,0,103,4],[103,5,103,10],[161,7,161,8],[174,1,174,14],[176,1,177,14],[128,13,128,15],[128,5,128,12],[129,0,129,4],[129,13,129,15],[129,5,129,12],[161,13,161,14],[160,11,160,12],[160,13,160,14],[163,1,163,14],[165,1,166,14],[161,9,161,10],[161,11,161,12],[160,5,160,6],[160,7,160,8],[128,0,128,4],[160,1,160,2],[160,9,160,10],[124,13,124,15],[124,5,124,12],[126,0,126,4],[126,13,126,15],[126,5,126,12],[105,5,105,10],[202,6,202,7],[203,8,203,9],[203,10,203,11],[203,12,203,13],[203,14,203,15],[203,0,203,1],[203,2,203,3],[203,4,203,5],[203,6,203,7],[204,8,204,9],[204,10,204,11],[204,12,204,13],[204,14,204,15],[204,0,204,1],[204,2,204,3],[204,4,204,5],[204,6,204,7],[205,8,205,9],[205,10,205,11],[205,12,205,13],[205,14,205,15],[205,0,205,1],[205,2,205,3],[205,4,205,5],[205,6,205,7],[206,8,206,9],[206,10,206,11],[206,12,206,13],[206,14,206,15],[206,0,206,1],[206,2,206,3],[206,4,206,5],[206,6,206,7],[207,8,207,9],[207,10,207,11],[207,12,207,13],[207,14,207,15],[207,0,207,1],[207,2,207,3],[207,4,207,5],[207,6,207,7],[214,0,214,1],[214,2,214,3],[214,4,214,5],[214,6,214,7],[208,8,208,9],[208,10,208,11],[208,12,208,13],[208,14,208,15],[208,0,208,1],[208,2,208,3],[208,4,208,5],[208,6,208,7],[209,8,209,9],[209,10,209,11],[209,12,209,13],[209,14,209,15],[209,0,209,1],[209,2,209,3],[209,4,209,5],[209,6,209,7],[210,8,210,9],[210,10,210,11],[210,12,210,13],[210,14,210,15],[210,0,210,1],[210,2,210,3],[210,4,210,5],[210,6,210,7],[213,2,213,3],[213,4,213,5],[213,6,213,7],[227,1,227,14],[229,1,229,14],[211,8,211,9],[211,10,211,11],[211,12,211,13],[211,14,211,15],[211,2,211,3],[211,4,211,5],[211,6,211,7],[215,2,215,3],[215,4,215,5],[215,6,215,7],[216,8,216,9],[216,10,216,11],[216,12,216,13],[216,14,216,15],[216,0,216,1],[216,2,216,3],[216,4,216,5],[212,8,212,9],[212,10,212,11],[212,12,212,13],[212,14,212,15],[212,0,212,1],[212,2,212,3],[212,4,212,5],[212,6,212,7],[213,8,213,9],[213,10,213,11],[213,12,213,13],[213,14,213,15],[213,0,213,1],[219,12,219,13],[219,14,219,15],[219,0,219,1],[219,2,219,3],[219,4,219,5],[219,6,219,7],[214,8,214,9],[214,10,214,11],[214,12,214,13],[214,14,214,15],[215,8,215,9],[215,10,215,11],[215,12,215,13],[215,14,215,15],[215,0,215,1],[216,6,216,7],[275,1,275,7],[264,1,264,14],[232,1,232,7],[233,1,233,7],[234,1,234,7],[235,1,235,7],[236,1,236,7],[237,1,237,7],[238,1,238,7],[239,1,239,7],[240,1,240,7],[241,3,241,7],[268,1,268,7],[270,1,270,7],[269,1,269,7],[271,1,271,7],[276,1,276,7],[277,1,277,7],[278,1,278,7],[279,1,279,7],[280,1,280,7],[281,1,281,7],[282,1,282,7],[283,3,283,7],[309,1,309,7],[249,1,249,14],[252,1,253,14],[292,1,292,14],[294,1,295,14],[217,8,217,9],[217,10,217,11],[217,12,217,13],[217,14,217,15],[217,0,217,1],[217,2,217,3],[217,4,217,5],[217,6,217,7],[218,8,218,9],[218,10,218,11],[218,12,218,13],[218,14,218,15],[218,0,218,1],[218,2,218,3],[218,4,218,5],[218,6,218,7],[219,8,219,9],[219,10,219,11],[262,1,262,14],[532,1,533,14],[516,2,516,14],[517,2,517,14],[514,2,514,14],[515,2,515,14],[380,1,380,14],[360,1,360,3],[512,2,512,14],[502,2,502,14],[501,2,501,14],[495,1,495,14],[497,1,497,14],[499,2,499,14],[503,2,503,14],[404,1,404,14],[388,1,388,2],[369,1,369,14],[504,2,504,14],[599,1,599,4],[599,5,599,7],[599,8,599,10],[599,11,599,14],[598,1,598,4],[598,5,598,7],[598,8,598,10],[598,11,598,14],[498,1,498,14],[304,1,304,14],[306,1,306,14],[315,1,315,2],[500,2,500,3],[500,4,500,14],[513,2,513,14],[310,1,310,7],[311,1,311,7],[312,1,312,7],[313,1,313,7],[314,1,314,7],[315,3,315,7],[347,6,347,7],[348,1,348,7],[349,2,349,7],[350,2,350,7],[351,2,351,7],[352,2,352,7],[353,2,353,7],[354,2,354,7],[563,1,563,14],[565,1,566,14],[530,1,530,14],[688,14,688,15],[690,14,690,15],[687,14,687,15],[689,14,689,15],[695,14,695,15],[696,14,696,15],[694,4,696,10],[694,11,694,12],[690,11,690,12],[694,14,694,15],[779,2,780,3],[780,14,780,15],[785,0,787,1],[785,2,787,3],[785,14,785,15],[786,14,786,15],[787,14,787,15],[785,4,787,10],[785,11,785,12],[786,11,786,12],[787,11,787,12],[719,4,721,10],[719,11,719,12],[720,11,720,12],[782,0,784,1],[782,2,784,3],[745,0,746,1],[745,2,746,3],[745,4,746,10],[746,14,746,15],[748,14,748,15],[751,14,751,15],[686,14,686,15],[682,4,683,10],[685,11,685,12],[686,11,686,12],[688,4,690,10],[688,11,688,12],[689,11,689,12],[831,11,831,14],[829,11,829,14],[830,11,830,14],[829,1,829,2],[829,3,829,10],[830,1,830,2],[830,3,830,10],[831,1,831,10],[832,1,832,10],[832,11,832,14],[693,11,693,12],[697,0,699,1],[697,2,699,3],[697,14,697,15],[698,14,698,15],[699,14,699,15],[700,0,702,1],[694,0,696,1],[694,2,696,3],[691,0,693,1],[691,2,693,3],[691,14,691,15],[692,14,692,15],[693,14,693,15],[691,4,693,10],[848,11,848,14],[847,1,847,10],[848,1,848,10],[854,1,854,10],[854,11,854,14],[855,1,855,10],[855,11,855,14],[847,11,847,14],[849,1,849,10],[849,11,849,14],[856,1,856,10],[856,11,856,14],[846,1,846,14],[850,1,850,10],[850,11,850,14],[851,1,851,10],[851,11,851,14],[852,1,852,10],[852,11,852,14],[853,1,853,10],[853,11,853,14],[833,1,833,10],[833,11,833,14],[835,11,837,14],[826,1,826,10],[826,11,826,14],[821,11,821,14],[824,11,824,14],[821,1,821,2],[823,1,823,2],[823,3,823,10],[824,1,824,2],[827,11,827,14],[788,0,790,1],[788,2,790,3],[788,14,788,15],[789,14,789,15],[790,14,790,15],[788,4,790,10],[788,11,788,12],[789,11,789,12],[790,11,790,12],[791,0,793,1],[791,2,793,3],[791,14,791,15],[796,11,796,12],[795,14,795,15],[796,14,796,15],[797,12,797,13],[794,4,796,10],[794,11,794,12],[795,11,795,12],[703,2,705,3],[703,14,703,15],[704,14,704,15],[705,14,705,15],[703,4,705,10],[703,11,703,12],[704,11,704,12],[705,11,705,12],[713,4,714,10],[714,14,714,15],[716,14,716,15],[715,0,715,1],[715,11,715,12],[716,0,718,1],[716,2,718,3],[716,4,718,10],[754,14,754,15],[703,0,705,1],[748,4,750,10],[748,11,748,12],[750,14,750,15],[751,0,753,1],[751,2,753,3],[751,4,753,10],[751,11,751,12],[752,11,752,12],[753,11,753,12],[753,14,753,15],[757,14,757,15],[760,4,762,10],[760,11,760,12],[760,0,762,1],[760,2,762,3],[761,11,761,12],[762,11,762,12],[718,14,718,15],[717,14,717,15],[719,14,719,15],[719,0,721,1],[719,2,721,3],[802,12,802,15],[802,0,802,11],[800,0,800,11],[800,12,800,13],[800,14,800,15],[799,12,799,13],[799,14,799,15],[797,0,799,11],[798,12,798,13],[798,14,798,15],[759,14,759,15],[792,14,792,15],[793,14,793,15],[791,4,793,10],[791,11,791,12],[792,11,792,12],[793,11,793,12],[794,0,796,1],[794,2,796,3],[794,14,794,15],[684,0,684,1],[779,4,780,10],[782,4,784,10],[782,11,782,12],[783,11,783,12],[784,11,784,12],[781,0,781,1],[781,11,781,12],[684,11,684,12],[697,4,699,10],[697,11,697,12],[698,11,698,12],[699,11,699,12],[700,4,702,10],[700,11,700,12],[701,11,701,12],[702,11,702,12],[717,11,717,12],[718,11,718,12],[713,0,714,1],[713,2,714,3],[757,2,759,3],[757,4,759,10],[757,11,757,12],[758,11,758,12],[759,11,759,12],[763,2,765,3],[716,11,716,12],[747,0,747,1],[747,11,747,12],[748,0,750,1],[748,2,750,3],[721,17,721,18],[721,19,721,20],[721,21,721,22],[720,14,720,15],[720,17,720,18],[720,19,720,20],[720,21,720,22],[722,14,722,15],[722,17,722,18],[722,19,722,20],[722,21,722,22],[722,0,724,1],[722,2,724,3],[722,4,724,10],[722,11,722,12],[723,11,723,12],[724,11,724,12],[724,14,724,15],[724,17,724,18],[724,19,724,20],[724,21,724,22],[723,14,723,15],[723,17,723,18],[723,19,723,20],[723,21,723,22],[721,11,721,12],[721,14,721,15],[725,17,725,18],[725,19,725,20],[725,21,725,22],[725,0,727,1],[725,2,727,3],[725,4,727,10],[725,11,725,12],[726,11,726,12],[727,11,727,12],[727,14,727,15],[727,17,727,18],[727,19,727,20],[727,21,727,22],[726,14,726,15],[726,17,726,18],[726,19,726,20],[726,21,726,22],[725,14,725,15],[728,17,728,18]],"merged_total":1188,"flags":["merged_cut"]}
[]
[null,"                                        School Division:",null,null,null,null,{"$f":"T('Certification and Assurances'!$A$10:$G$10)","v":"HENRICO COUNTY PUBLIC SCHOOLS"},null,null,null,null,null,"Division Number:",null,null,{"$f":"'Certification and Assurances'!$I$10","v":43}]
[]
[]
["CTEMS SCHEDULE 1"]
["Stakeholder Participation/Involvement"]
["2017-2018 Plan"]
[]
[null,"Section 134(a): The local plan shall be for the same period of time as the State Plan submitted under Section 122.  Please check the types of involvement each of the groups below have had in the development of your local plan. \nSection 134(b)(5):  Describe how parents, students, academic and career and technical education teachers, faculty, administrators, career guidance and academic counselors, representatives of tech prep consortia (if applicable), representatives of the entities participating in activities described in Section 117 of Public Law 105-220 (if applicable), representatives of business (including small business) and industry, labor organizations, representatives of special populations, and other interested individuals are involved in the development, implementation, and evaluation of career and technical education programs assisted under this Act, and how such individuals and entities are effectively informed about, and assisted in understanding the requirements of this title, including career and technical programs of study."]
[]
[null,null,null,null,null,null,null,null,null,"supplied\ninformation","provided substantive\nconsultation","reviewed and critiqued\nthe plan or sections "," of the plan"]
[null,"Representatives of business/industry",null,null,null,null,null,null,null,"X",null,"X"]
[null,"Representatives of business/industry",null,null,null,null,null,null,null,"X","X","X"]
[null,"Representatives of business/industry",null,null,null,null,null,null,null,"X","X","X"]
[null,"Representatives of labor organization",null,null,null,null,null,null,null,"X",null,"X"]
[null,"Representatives of Workforce Investment Council",null,null,null,null,null,null,null,"X","X",null,"X"]
[null,"Community representatives and other interested individuals",null,null,null,null,null,null,null,"X","X","X"]
[null,"Representatives of special populations",null,null,null,null,null,null,null,"X",null,"X"]
[null,"Representatives of local community colleges",null,null,null,null,null,null,null,"X",null,"X"]
[null,"Teachers",null,null,null,null,null,null,null,"X",null,"X"]
[null,"Parents",null,null,null,null,null,null,null,"X",null,"X"]
[null,"Students",null,null,null,null,null,null,null,"X",null,"X"]
[]
[]
[null,"Describe how the required respective groups were involved in the development, implementation, and evaluation of your career and technical programs utilizing data from prior year(s) and/or any local evaluations that may have been conducted during the 2016-2017 school year."]
[null,"The respecitive groups reviewed the local plan and assisted in its development as indicated above.  They consulted on exiting programs, consulted on new programs, reviewed information provided by staff, made recommendations for program improvement, and presented updates and reports to the School Board and other Central Office personnel.  Business and Industry prepresentatives formally and informally reviewed the following: performance data, enrollment data, budget information, program updates provided by staff, and student/employer follow-up information.  They determined strenghts and weaknesses of programs and made program improvement recommendations.  The Business Council serves as the Advisory Council for HCPS in order to better reflect the involvement of businesses and our partnership with them to enhance the CTE programs in Henrico Co. Public Schools."]
[]
[]
[]
[null,"                                        School Division:",null,null,null,null,{"$f":"T('Certification and Assurances'!$A$10:$G$10)","v":"HENRICO COUNTY PUBLIC SCHOOLS"},null,null,null,null,null,"Division Number:",null,null,{"$f":"'Certification and Assurances'!$I$10","v":43}]
[]
[]
["CTEMS SCHEDULE 2"]
["Advisory Committee Participation/Involvement"]
["2017-2018 Plan"]
[]
[null,"The local advisory committee for CTE must be involved in the development, implementation, and evaluation of CTE programs.  The advisory committee, which meets regularly, is a group of persons representing business and industry, labor organization, Workforce Investment Council, special populatons, local community colleges, teachers, parents, students, and other interested community leaders for the purpose of providing recommendations, direction, and assistance to CTE.  Other persons may be invited to participate at the discretion of the eligible recipient.  Ex-officio members should include the CTE administrator.\n\nThis schedule must provide a list of the names of the stakeholders indicated on Schedule 1 that contribute to the development of the local Perkins plan.\n\nList below only one individual from each category (with the exception of business and industry, which must list three-one for each of three different career and technical education programs) on the local advisory committee who have been appointed to serve in the development, implementation, and evaluation of CTE programs.  Additional members may be listed on the Comments Page of this application following Schedule 18.\n\n"]
[]
[null,"Group ID Letter:",null,"P",": Parents",null,null,"B&I",": Business and Industry (3 minimum)"]
[null,null,null,"S",": Students",null,null,"CC",": Local Community College"]
[null,null,null,"T",": Teachers",null,null,"SP",": Special Populations"]
[null,null,null,"L\nW\n",": Labor Organization\n: Workforce Investment Council",null,null,"O",": Community Representative/Other Interested Individuals"]
[]
[null,"NAME/TITLE OR POSITION",null,null,null,null,null,"NAME OF COMPANY/BUSINESS/ORGANIZATION",null,null,null,null,null,"GROUP ID LETTER"]
[null,"Riggs, William H.",null,null,null,null,null,"Parent",null,null,null,null,null,"P"]
[null,"Terryn Granett",null,null,null,null,null,"Hermitage ACE Center",null,null,null,null,null,"S"]
[null,"Mark Schultz",null,null,null,null,null,"Hermitage ACE Center",null,null,null,null,null,"T"]
[null,"Brooks, Susan",null,null,null,null,null,"KSB, Inc",null,null,null,null,null,"L"]
[null,"Maxwell, Robert",null,null,null,null,null,"Minute Man Press",null,null,null,null,null,"B&I"]
[null,"Winn Andrews",null,null,null,null,null,"J. Sargeant Reynolds Community College",null,null,null,null,null,"CC"]
[null,"Hopkins, Margaret",null,null,null,null,null,"Teacher, Henrico Co. Public Schools",null,null,null,null,null,"SP"]
[null,"Frank Thornton",null,null,null,null,null,"Henrico Co. Division of Police",null,null,null,null,null,"O"]
[null,"Brian K. Davis",null,null,null,null,null,"Capitol Region Workforce Partnership & Workforce Development Board",null,null,null,null,null,"W"]
[null,"Joe Crawley",null,null,null,null,null,"Inussi Marketing",null,null,null,null,null,"B&I"]
[null,"Charles Tilley",null,null,null,null,null,"BCWH",null,null,null,null,null,"B&I"]
[]
[null,"Describe how members of the CTE advisory committee and the stakeholder participants involved in the development of the plan are annually informed about and assist in the understanding of the Act, and list activities planned in which the stakeholders will be involved for the 2017-2018 school year."]
[null,"Involvement in the development of the plan is done on a continuous basis throughout the school year.  Information is shared/requested at regularly scheduled Business Council meetings.  School counselors and CTE specialists consult with students who are currently enrolled in CTE classes and with students who may be new to CTE programs.   Presentations at school board meetings, student recognition programs, and parents/students involved in CTE competitions receive informatoin in regard to the Carl Perkins Act."]
[]
[]
[]
[]
[null,"                                        School Division:",null,null,null,null,{"$f":"T('Certification and Assurances'!$A$10:$G$10)","v":"HENRICO COUNTY PUBLIC SCHOOLS"},null,null,null,null,null,"Division Number:",null,null,{"$f":"'Certification and Assurances'!$I$10","v":43}]
[]
[]
["CTEMS SCHEDULE 3"]
["Application for Local Career Cluster/Pathway Plans of Study"]
["2017-2018 Plan"]
[]
["INSTRUCTIONS/PROCEDURES "]
[]
["Assistance for completing CTE Career Cluster/Pathway Plans of Study may be found at:\n"]
["http://www.doe.virginia.gov/instruction/career_technical/career_clusters/index.shtml"]
[]
["Effective school year 2013-2014 and beyond, beginning in middle school, all students shall have an Academic and Career Plan that is reviewed before a student enters the ninth and eleventh grades (8VAC 20-131-140)."]
[]
["Assistance for completing Academic and Career Plans may be found at :"]
["http://www.doe.virginia.gov/instruction/graduation/academic_career_plan.shtml"]
[]
["As of school year 2012-2103 and thereafter, all divisions shall implement at least one or more Career Pathway Plans of Study representing at least three or more corresponding Career Clusters (Section 134(b)(3)(A).  However, to ensure your division’s previous Plans of Study (submitted over the past 9 years) are preparing students to meet local, regional, and state economic and workforce needs, you are advised to review and revise each as necessary.  Please e-mail a Microsoft Word file of your completed 2017-2018 Plan of Study to CTE@doe.virginia.gov for separate approval.  "]
[]
["LIST ALL PREVIOUSLY APPROVED PLANS  OF STUDY"]
[]
["CLUSTER",null,null,null,null,"PATHWAY",null,null,null,null,null,"YEAR SUBMITTED",null,"LOCAL OR STATE TEMPLATE (Please indicate which is being used.)"]
["Architecture & Construction",null,null,null,null,"Construction-Architecture and Construction",null,null,null,null,null,"2007-2008",null,"State"]
["Science, Technology, Engineering, & Mathematics",null,null,null,null,"Engineering and Technology-Science, Technology, Engineering and Mathematics",null,null,null,null,null,"2007-2008",null,"State"]
["Education & Training",null,null,null,null,"Teaching/Training-Education and Training",null,null,null,null,null,"2008-2009",null,"State"]
["Information Technology",null,null,null,null,"Web and Digital Communications-Information Technology",null,null,null,null,null,"2008-2009",null,"State"]
["Information Technology",null,null,null,null,"Programming and Software Development-Information Technology",null,null,null,null,null,"2008-2009",null,"State"]
["Information Technology",null,null,null,null,"Information Support and Services-Information Technology",null,null,null,null,null,"2009-2010",null,"State"]
["Transportation, Distribution, & Logistics",null,null,null,null,"Facility and Mobile Equipment Maintenance-Transportation, Distribution and Logistics",null,null,null,null,null,"2009-2010",null,"State"]
["Human Services",null,null,null,null,"Early Childhood Development and Services-Human Services",null,null,null,null,null,"2010-2011",null,"State"]
["Finance",null,null,null,null,"Accounting-Finance",null,null,null,null,null,"2012-2013",null,"State"]
["Hospitality & Tourism",null,null,null,null,"Restaurants and Food/Beverage Services-Hospitality and Tourism",null,null,null,null,null,"2013-2014",null,"State"]
["Health Science",null,null,null,null,"Therapeutic Services-Health Science",null,null,null,null,null,"2014-2015",null,"State"]
["Information Technology",null,null,null,null,"Programming and Software Development-Information Technology",null,null,null,null,null,"2015-2016",null,"State"]
["Health Science",null,null,null,null,"Therapeutic Services-Health Science",null,null,null,null,null,"2016-2017",null,"State"]
[]
[]
[]
[]
[]
[]
[]
[]
[]
[]
[]
[]
[null,"                                        School Division:",null,null,null,null,{"$f":"T('Certification and Assurances'!$A$10:$G$10)","v":"HENRICO COUNTY PUBLIC SCHOOLS"},null,null,null,null,null,"Division Number:",null,null,{"$f":"'Certification and Assurances'!$I$10","v":43}]
["Application for Local Career Cluster/Pathway Plans of Study"]
["2017-2018 Plan"]
["Please e-mail a Microsoft Word file of your completed 2017-2018 Career Cluster/Pathway Plan of Study template to CTE@doe.virginia.gov for separate approval."]
["PLANS OF STUDY SUBMITTED FOR 2017-2018 LOCAL PLAN"]
[]
["CLUSTER for 2017-2018 Year",null,null,null,null,"PATHWAY",null,null,null,null,null,null,null,"LOCAL OR STATE TEMPLATE (Please indicate which is being used.)"]
["Architecture & Construction",null,null,null,null,"Design/Pre-Construction-Architecture and Construction",null,null,null,null,null,null,null,"State"]
[]
[]
[]
[]
[]
[]
[]
[]
[]
[]
[]
[]
[]
[]
[null,"1. Improve the academic and technical skills of students participating in CTE programs by strengthening the academic\n    and CTE components of such programs through the integration of coherent and rigorous content aligned with\n    challenging academic standards and relevant CTE programs to ensure learning in –\n         i. the core academic subjects (as defined in Section 9101 of the Elementary and Secondary Education \n            Act of 1965); and\n         ii. career and technical education subjects.*\n2. Provide students with strong experience in, and understanding of, all aspects of an industry.*\n3. Ensure that students who participate in such CTE programs are taught to the same coherent and rigorous \n    content aligned with challenging academic standards as are taught to all other students.*\n4. Encourage CTE students at the secondary level to enroll in rigorous and challenging courses in core \n    academic subjects (as defined in section 9101 of the Elementary and Secondary Education Act of 1965).*\n5. May include the opportunity for secondary education students to participate in dual or concurrent enrollment\n   programs or other ways to acquire postsecondary education credits/elements.\n6. Must lead to a high school diploma and, if applicable, an industry certification/state licensure/occupational competency skill \n   assessment at the secondary level and to an industry-recognized credential or certificate at the \n   postsecondary level, or an associate or baccalaureate degree.*\n"]
[null,"   * Required"]
[null," "]
[]
[null,"                                        School Division:",null,null,null,null,{"$f":"T('Certification and Assurances'!$A$10:$G$10)","v":"HENRICO COUNTY PUBLIC SCHOOLS"},null,null,null,null,null,"Division Number:",null,null,{"$f":"'Certification and Assurances'!$I$10","v":43}]
[]
["CTEMS SCHEDULE 3 (Continued)"]
["Application for Local Career Cluster/Pathway Plans of Study"]
["2017-2018 Plan"]
[]
[null,"Section 134(b)(3)(A): Describe how the school division plans to implement the new Plan of Study to comply with all components listed on previous page (Items 1-6) (Section 122(c)(1)(A).   "]
[]
[]
[null,"Course options are based on labor market needs and student interest. CTE teachers request to attend student IEP meetings so that competencies may be reviewed to determine if a student will be expected to meet all competencies. CTE teachers receive a copy of identified accommodations for individual students so that the teacher can address the needs for optimal learning. Teachers are offered staff development on differentiated instruction to assist them in meeting the needs of students. All CTE teachers are required to correlate their course competencies to the SOLs in order to foster success in the CTE 20classroom as well as in core courses. CTE options are integral in leading to a HS diploma and an industry certification and/or state license.              "]
[]
[]
[]
[]
[]
[null,"                                        School Division:",null,null,null,null,{"$f":"T('Certification and Assurances'!$A$10:$G$10)","v":"HENRICO COUNTY PUBLIC SCHOOLS"},null,null,null,null,null,"Division Number:",null,null,{"$f":"'Certification and Assurances'!$I$10","v":43}]
[]
[]
["CTEMS SCHEDULE 4"]
["Special Populations Report "]
["2017-2018 Plan"]
[]
[null,"A. Identify the number of economically disadvantaged, disabled, limited English proficient (LEP)/English Language learners (ELL's), migrant, single-parent, nontraditional (underrepresented gender groups), and displaced-homemaker students eligible for services provided by your school division."]
[]
[]
[null,"Number of Economically Disadvantaged (including foster children)\n (Grades K-12)",null,"Number of Disabled\n(Grades K-12)",null,"Number of Limited English Proficient/ English Language Learners\n(Grades K-12)",null,"Number of Migrant Students\n(Grades K-12)",null,"Number of Single-parent (including single pregnant women) \n(Grades 7-12)",null,"Number of Non-traditional (under-represented gender groups) (Grades 7-12)",null,"Number of Displaced-home-makers \n(Grades 7-12)"]
[null,20356,null,6266,null,3381,null,0,null,0,null,1693,null,0]
[]
[null,"B. Section 134 (b)(8)(A): Describe how you will annually review career and technical education programs, and identify and adopt strategies to overcome barriers that result in lowering rates of access to and lowering success in the programs, for special populations."]
[]
[null,"CTE certification, licensure, and SOL test results are reviewed annually to identify patterns of success and areas of concern.  All IEP/504 plans for exceptional education students are followed,  address the student's participation in CTE courses including strategies for student success on industry or licensure certifications; IEP accommodations are also provided. Teachers participate in staff develpment related to differentiated instruction and providing accommodations to assist them in meeting the needs of students with disabilities.  "]
[]
[]
[null,"                                        School Division:",null,null,null,null,{"$f":"T('Certification and Assurances'!$A$10:$G$10)","v":"HENRICO COUNTY PUBLIC SCHOOLS"},null,null,null,null,null,"Division Number:",null,null,{"$f":"'Certification and Assurances'!$I$10","v":43}]
[]
["CTEMS SCHEDULE 4 (continued)"]
["Special Populations Report "]
["2017-2018 Plan"]
[]
[null,"C. Section 134 (b)(8)(B): Describe how you will annually provide programs designed to enable the special populations to meet the state adjusted levels of performance. "]
[]
[null,"Course options are based on industry needs and student interests. Special population students are included in CTE programs through differentiation of instruction, adaptation of IEP accommodations, and tailored remediation plans.  Additional CTE programs are offered during the school year specifically for special needs populations and CTE summer programs are designed to include a diverse population of students."]
[]
[]
[null,"D. Section 134 (b)(9):  Describe how individuals who are members of special populations will not be discriminated against on the basis of their status as members of the special populations.  "]
[]
[null,"Student course requests are honored based upon course availability.  Students with disabilities are not discriminated against due to their participation in an exceptional education program.  Accommodations are implemented when necessary to guarantee that students with diasbilities are afforded the same opportunities as students who are not members of the special populations. The application process for CTE Technical Centers is designed to provide equity for all student populations."]
[]
[]
[]
[]
[]
[]
[]
[null,"                                        School Division:",null,null,null,null,{"$f":"T('Certification and Assurances'!$A$10:$G$10)","v":"HENRICO COUNTY PUBLIC SCHOOLS"},null,null,null,null,null,"Division Number:",null,null,{"$f":"'Certification and Assurances'!$I$10","v":43}]
[]
["CTEMS SCHEDULE 4 (continued)"]
["Special Populations Report "]
["2017-2018 Plan"]
[]
[null,"E. Section 134(b)(8)(C) and (b)(10):  Indicate below the activities/services your school division provides to prepare special populations, including single parents and displaced homemakers, for high-skill, high-wage, or high-demand occupations that will lead to self-sufficiency, including promoting preparation for non-traditional fields.  "]
[]
["SERVICES PROVIDED",null,"DISADVANTAGED",null,"DISABLED",null,"LEP",null,"MIGRANT",null,"SINGLE-PARENTS",null,"NON-TRADITIONAL",null,"DISPLACED HOME-MAKERS"]
["Supplemental basic academic instruction",null,"X",null,"X",null,"X",null,null,null,null,null,"X"]
["Supplemental social growth activities",null,"X",null,"X",null,"X",null,null,null,null,null,"X"]
["High-interest reading materials for struggling readers",null,"X",null,"X",null,"X",null,null,null,null,null,"X"]
["Instructional or teacher aides",null,"X",null,"X",null,"X",null,null,null,null,null,"X"]
["Mentoring programs",null,"X",null,"X",null,"X",null,null,null,null,null,"X"]
["Systematic tutoring",null,"X",null,"X",null,"X",null,null,null,null,null,"X"]
["Career and technical assessment",null,"X",null,"X",null,"X",null,null,null,null,null,"X"]
["Career counseling",null,"X",null,"X",null,"X",null,null,null,null,null,"X"]
["Transportation for work experience",null,null,null,"X"]
["Student Apprenticeship",null,"X",null,"X",null,"X",null,null,null,null,null,"X"]
["Work-study programs",null,"X",null,"X",null,"X",null,null,null,null,null,"X"]
["Coop education",null,"X",null,"X",null,"X",null,null,null,null,null,"X"]
["Job placement and follow-up",null,"X",null,"X",null,"X"]
["Job-coach and job-transition services"]
["Work-site visitation",null,"X",null,"X",null,"X",null,null,null,null,null,"X"]
["CT student organizations",null,"X",null,"X",null,"X",null,null,null,null,null,"X"]
["Field trips",null,"X",null,"X",null,"X",null,null,null,null,null,"X"]
["Child-care "]
["Special transportation"]
["Special seminars for  fathers, teens,  etc."]
["Other:  (specify)"]
["Please indicate if non-federal funds, in whole or in part, are used to support any of the above services.",null,"X",null,"X",null,"X",null,"X",null,"X",null,"X"]
[]
[null,"                                        School Division:",null,null,null,null,{"$f":"T('Certification and Assurances'!$A$10:$G$10)","v":"HENRICO COUNTY PUBLIC SCHOOLS"},null,null,null,null,null,"Division Number:",null,null,{"$f":"'Certification and Assurances'!$I$10","v":43}]
[]
["CTEMS SCHEDULE 5"]
["Strengthen/Improve Academic and Technical Skills"]
["2017-2018 Plan"]
[]
[null,"Section 134(b)(3)(B,D,E): Please follow the directions below to show how you strengthen/improve the academic and technical skills of students participating in career and technical education programs."]
[]
[null,"Directions \nFor each of your Perkins supported programs, place an X by each activity that applies to that program and that is intended to improve the academic and technical skills of students participating in that program.  For example, if “Using academic/career and technical team teaching” is designed to improve the academic and technical skills of students in Agriculture, place an X in the field marked “Using academic/career and technical team teaching” under Agriculture.\n"]
[]
[null,"ACTIVITIES",null,null,null,null,null,null,"DIVISION PROGRAMS"]
[null,null,null,null,null,null,null,null,"AGRICULTURAL \nEDUCATION","BUSINESS & INFORMATION TECHNOLOGY","CAREER CONNECTIONS","FAMILY AND CONSUMER SCIENCES","HEALTH AND MEDICAL\n SCIENCES","MARKETING","TECHNOLOGY EDUCATION","TRADE & INDUSTRIAL \nEDUCATION"]
[null,"a. Integrating academics with career and technical education programs to ensure learning in the core academic and career and technical subjects",null,null,null,null,null,null,"X","X","X","X","X","X","X","X"]
[null,"b. Providing a coherent sequence of courses to ensure learning in the core academic and career and technical subjects",null,null,null,null,null,null,"X","X","X","X","X","X","X","X"]
[null,"c. Developing and implementing academic and career and technical collaborative lesson plans",null,null,null,null,null,null,"X","X","X","X","X","X","X","X"]
[null,"d. Implementing academic/career and technical team teaching",null,null,null,null,null,null,"X","X","X","X","X","X","X","X"]
[null,"e. Providing dual credit options ",null,null,null,null,null,null,null,"X",null,null,"X",null,"X","X"]
[null,"f. Providing joint academic/career and technical instructional assignments",null,null,null,null,null,null,"X","X","X","X","X","X","X","X"]
[null,"g. Planning for and participating in joint academic/career and technical field trips to business/industry",null,null,null,null,null,null,"X","X","X","X","X","X","X","X"]
[null,"h. Providing a senior research project with academic and career and technical education components",null,null,null,null,null,null,null,"X",null,"X","X","X","X"]
[null,"i. Other (specify)"]
[]
[null,"                                        School Division:",null,null,null,null,{"$f":"T('Certification and Assurances'!$A$10:$G$10)","v":"HENRICO COUNTY PUBLIC SCHOOLS"},null,null,null,null,null,"Division Number:",null,null,{"$f":"'Certification and Assurances'!$I$10","v":43}]
[]
["CTEMS SCHEDULE 5 (Continued)"]
["Strengthen/Improve Academic and Technical Skills"]
["2017-2018 Plan"]
[]
[null,"Section 134(b)(3)(B,D,E): Describe how the school division will improve the academic and technical skills of students participating in career an technical education programs by strengthening the academic and career and technical education components of such programs through the integration of coherent and rigorous content aligned with challenging academic standards and relevant career and tecnical programs to ensure learning in the core academic subjects (as defined in Section 9101 of the Elementary and Secondary Education Act of 1965); and career and technical education subjects; ensure that students who participate in such acareer and technical education programs are taught to the same coherent and reigorous content aligned with challenging academic standards as are taught to all other students; and encourage career and technical education students at the secondary level to enroll in rigorous and challenging courses in core academic subjects (as as defined in Section 9101 of the Elementary and Secondary Education Act of 1965)."]
[]
[]
[null,"All CTE course offerings are aligned with the SOLs in addition to the CTE competencies that are required. Certification testing takes place in all completer CTE courses. All SOL and certification testing results are shared with teachers and administrators showing strengths and weaknesses so that a plan of improvement can be developed and monitored and provide for student remediation if necessary. Test question banks are created in Exam View Pro and School Space with the appropriate supporting data; STEM model is used to inprove science and mathematics performance in CTE courses; CTE competencies match related SOLs; completer surveys are reviewed and adjustments made to the curriculum when necessary; CTE teachers use task/compentency lists, student compentency records, and accompanying materials for the course from VERSO; industry leaders share updated requirements for employment as part of the CTE Business Council and Henrico Co. Vocational/Technical Education Foundation."]
[]
[]
[]
[null,"                                        School Division:",null,null,null,null,{"$f":"T('Certification and Assurances'!$A$10:$G$10)","v":"HENRICO COUNTY PUBLIC SCHOOLS"},null,null,null,null,null,"Division Number:",null,null,{"$f":"'Certification and Assurances'!$I$10","v":43}]
[]
["CTEMS SCHEDULE 6"]
["All Aspects of Industry"]
["2017-2018 Plan"]
[]
[null,"Section 134(b)(3)(C):  Please follow the directions below to show how the school division will provide students with strong experience in, and understanding of, all aspects of an industry.  "]
[]
[null,"Directions \nFor each of your Perkins supported programs, place an X in the field for every activity that applies to that program and provides students with experience in and understanding of all aspects of an industry.\n\n"]
[]
[null,"ACTIVITIES",null,null,null,null,null,null,"DIVISION PROGRAMS"]
[null,null,null,null,null,null,null,null,"AGRICULTURAL \nEDUCATION","BUSINESS & INFORMATION TECHNOLOGY","CAREER\nCONNECTIONS","FAMILY AND CONSUMER SCIENCES","HEALTH AND MEDICAL SCIENCES","MARKETING","TECHNOLOGY EDUCATION","TRADE & INDUSTRIAL EDUCATION"]
[null,"a. CTE curriculum frameworks reviewed by career/technical advisory committee to ensure that the local curriculum provides students with experience in and understanding of all aspects of an industry",null,null,null,null,null,null,"X","X","X","X","X","X","X","X"]
[null,"b. Work-site experiences provided"]
[null,"Clinical Experience",null,null,null,null,null,null,null,null,null,null,"X"]
[null,"Cooperative Education",null,null,null,null,null,null,"X","X",null,"X","X","X",null,"X"]
[null,"Internship",null,null,null,null,null,null,"X","X",null,"X","X","X","X","X"]
[null,"Job Shadowing",null,null,null,null,null,null,"X","X",null,null,"X"]
[null,"Mentorship",null,null,null,null,null,null,"X","X","X","X","X","X","X","X"]
[null,"Service Learning",null,null,null,null,null,null,null,null,null,"X","X"]
[null,"Student Apprenticeship",null,null,null,null,null,null,"X",null,null,null,null,null,null,"X"]
[null,"c.  Participation of Business/Industry Reps"]
[null,"Mentoring opportunities provided",null,null,null,null,null,null,"X","X","X","X","X","X","X","X"]
[null,"Shadowing opportunities provided",null,null,null,null,null,null,"X","X","X","X","X","X","X","X"]
[null,"Business/industry tours",null,null,null,null,null,null,"X","X","X","X","X","X","X","X"]
[null,"Class presentations",null,null,null,null,null,null,"X","X",null,"X","X","X","X","X"]
[null,"Program Evaluation",null,null,null,null,null,null,"X","X","X","X","X","X","X","X"]
[null,"Other\nSpecify:  "]
[]
[]
[null,"                                        School Division:",null,null,null,null,{"$f":"T('Certification and Assurances'!$A$10:$G$10)","v":"HENRICO COUNTY PUBLIC SCHOOLS"},null,null,null,null,null,"Division Number:",null,null,{"$f":"'Certification and Assurances'!$I$10","v":43}]
[]
["CTEMS SCHEDULE 6 (Continued)"]
["All Aspects of Industry"]
["2017-2018 Plan"]
[]
[null,"Section 134(b)(3)(C):  Describe how the school division will provide students with strong experiences in, and understanding of, all aspects of an industry.  "]
[]
[null,"Due to the strong Business Council and numerous business partnerships developed by the Henrico Co. CTE department, students enrolled in CTE classes experience a wide variety of experiences in all aspects of an industry.  The CTE department has a strong belief that real life experiences are extremely valuable and are provided throughout a student's participation in CTE classes.  Such real life experiences include, but are not limited to: the Summer Building Trades program, CNA and LPN on-site training through nursing home partnerships and Bon Secours Hospitals, the Henrico Co. house building project, College and Career Night, CTE bus which provides vocational activities throughout the county to middle and high school level students, interviews and resume reviews provided by community employers, student competitions, etc."]
[]
[]
[]
[null,"                                        School Division:",null,null,null,null,{"$f":"T('Certification and Assurances'!$A$10:$G$10)","v":"HENRICO COUNTY PUBLIC SCHOOLS"},null,null,null,null,null,"Division Number:",null,null,{"$f":"'Certification and Assurances'!$I$10","v":43}]
[]
["CTEMS SCHEDULE 7"]
["Technology in Career and Technical Education "]
["2017-2018 Plan"]
[]
[null,"Section 135(b)(4 and 7): Please follow the directions below to show how the school division will develop, improve, or expand the use of technology in career and technical education."]
[]
[null,"Directions \nFor each of your Perkins supported programs, place an X in the field for any activity you will use in that program to develop, improve, or expand the use of technology.\n\n"]
[]
[null,"ACTIVITIES",null,null,null,null,null,null,"DIVISION PROGRAMS"]
[null,null,null,null,null,null,null,null,"AGRICULTURAL \nEDUCATION","BUSINESS & INFORMATION TECHNOLOGY","CAREER CONNECTIONS","FAMILY AND CONSUMER SCIENCES","HEALTH AND MEDICAL SCIENCES","MARKETING","TECHNOLOGY EDUCATION","TRADE & INDUSTRIAL EDUCATION"]
[null,"a. Train career and technical personnel to use state-of-the-art technology, which may include distance/virtual learning.",null,null,null,null,null,null,"X","X","X","X","X","X","X","X"]
[null,"b. Provide students with the academic and career and technical skills that lead to entry into high-tech and communications fields.",null,null,null,null,null,null,"X","X","X","X","X","X","X","X"]
[null,"c. Work with high-tech industries to offer volunteer internship, mentoring, shadowing, and/or cooperative education experience(s).",null,null,null,null,null,null,"X","X","X","X","X","X","X","X"]
[null,"d. Provide technology applications in classroom instruction (including computer applications).",null,null,null,null,null,null,"X","X","X","X","X","X","X","X"]
[null,"e. Verify that instructional personnel demonstrate proficiency in Virginia Technology Standards.",null,null,null,null,null,null,null,"X","X","X","X","X","X","X"]
[null,"f. Other (specify) "]
[]
[]
[]
[]
[null,"                                        School Division:",null,null,null,null,{"$f":"T('Certification and Assurances'!$A$10:$G$10)","v":"HENRICO COUNTY PUBLIC SCHOOLS"},null,null,null,null,null,"Division Number:",null,null,{"$f":"'Certification and Assurances'!$I$10","v":43}]
[]
["CTEMS SCHEDULE 7 (Continued)"]
["Technology in Career and Technical Education"]
["2017-2018 Plan"]
[]
[null,"Section 135(b)(4 and 7):  Describe how the school division will develop, improve, or expand the use of technology in career and technical education."]
[]
[null,"All CTE students are afforded the same technology equipment (student laptops) as any other student enrolled in Henrico Co. Public Schools.  CTE teachers are expected to maintain a high level of technology training as it relates to their field.  As new technologies and innovations are developed within an industry, teachers recieve the necessary training in order to keep their skills up to date and appropriately integrate and teach those skills in their classroom.  CTE has the expectation that all teachers will integrate technology into their daily classroom instruction.  Specialists monitor the use of technology in daily classroom instruction and provide guidance when necessary on how to maintain a high level of technolgy use that is appropriate in each course."]
[]
[]
[]
[]
[]
[]
[]
[null,"                                        School Division:",null,null,null,null,{"$f":"T('Certification and Assurances'!$A$10:$G$10)","v":"HENRICO COUNTY PUBLIC SCHOOLS"},null,null,null,null,null,"Division Number:",null,null,{"$f":"'Certification and Assurances'!$I$10","v":43}]
[]
["CTEMS SCHEDULE 8"]
["Professional Development"]
["2017-2018 Plan"]
[]
[null,"Section 134(b)(4): Please follow the directions below to show how the school division will provide professional development (including initial teacher preparation) for career and technical education, academic, guidance, and administrative personnel that promotes the integration of coherent and rigorous content aligned with challenging academic standards and relevant career and technical education (including curriculum development)."]
[]
[null,"Directions \nFor each of your Perkins supported programs, place an X in the field for any activity you will use to provide professional development for teachers, counselors or administrators associated with that program.\n"]
[]
[null,"ACTIVITIES",null,null,null,null,null,null,"DIVISION PROGRAMS"]
[null,null,null,null,null,null,null,null,"AGRICULTURAL EDUCATION","BUSINESS & INFORMATION TECHNOLOGY","CAREER CONNECTIONS","FAMILY AND CONSUMER SCIENCES","HEALTH AND MEDICAL SCIENCES","MARKETING","TECHNOLOGY\n EDUCATION","TRADE & INDUSTRIAL EDUCATION"]
[null,"a. In-service and pre-service professional development:  "]
[null,null,"(1)Training for guidance on (a) career clusters, career pathways, and career assessment; and (b) implementation of Plans of Study.",null,null,null,null,null,"X","X","X","X","X","X","X","X"]
[null,null,"(2)Integration of coherent and rigorous content aligned with challenging academic standards and relevant career and technical education programs to ensure learning in the core academic subjects as defined in section 9101 of the ESEA of 1965; and career and technical education subjects.",null,null,null,null,null,"X","X","X","X","X","X","X","X"]
[null,null,"(3)Appropriate postsecondary courses and/or workshops for teachers with provisional licenses and/or career switchers",null,null,null,null,null,"X","X","X","X","X","X","X","X"]
[null,null,"(4)State-of-the-art career/technical programs and techniques",null,null,null,null,null,"X","X","X","X","X","X","X","X"]
[null,null,"(5)Effective teaching skills based on research",null,null,null,null,null,"X","X","X","X","X","X","X","X"]
[null,null,"(6)Effective practices to improve parental and community involvement",null,null,null,null,null,"X","X","X","X","X","X","X","X"]
[null,null,"(7)Opportunities for National Board Certification to provide teachers access to Virginia incentives",null,null,null,null,null,"X","X","X","X","X","X","X","X"]
[null,"b. Programs for teachers and other school personnel to ensure they remain current with all aspects of an industry",null,null,null,null,null,null,"X","X","X","X","X","X","X","X"]
[null,"c. Regional, state, and college teacher placement job fairs",null,null,null,null,null,null,"X","X","X","X","X","X","X","X"]
[null,"d. Virginia Teachers for Tomorrow training program.",null,null,null,null,null,null,null,null,null,"X"]
[null,"e. Business/industry internship programs for teachers",null,null,null,null,null,null,"X","X","X","X","X","X","X","X"]
[null,"f. Other (specify)  "]
[]
[]
[null,"                                        School Division:",null,null,null,null,{"$f":"T('Certification and Assurances'!$A$10:$G$10)","v":"HENRICO COUNTY PUBLIC SCHOOLS"},null,null,null,null,null,"Division Number:",null,null,{"$f":"'Certification and Assurances'!$I$10","v":43}]
[]
["CTEMS SCHEDULE 8 (Continued)"]
["Professional Development"]
["2017-2018 Plan"]
[]
[null,"Section 134(b)(4): Describe how comprehensive professional development (including initial teacher preparation) for career and technical education, academic, guidance, and administrative personnel will be provided that promotes the integration of coherent and rigorous content aligned with challenging academic standards and relevant career and technical education (including curriculum development)."]
[]
[null,"Staff development involves teachers in plans to improve CTE and becoming an exemplary program with HCPS.  Throughout the school year there is continuous collaboration between CTE administration and teachers, core academic teachers, school counseling and administration for professional development purposes. Test question banks are created in Exam View Pro and School Space with the appropriate supporting data; STEM model is used to improve science and mathematics performance in CTE courses; CTE teachers make appropriate adjustments for student with disabilities; CTE competencies match related SOLs; completer surveys are reviewed and adjustments made to the curriculum when necessary; CTE teachers use state task and competency lists, student competency records, and accompanying materials for the course from VERSO; industry leaders share updated requirements for employment as part of the CTE Business Council and Henrico Co. Vocational/Technical Education Foundation."]
[]
[]
[null,"                                        School Division:",null,null,null,null,{"$f":"T('Certification and Assurances'!$A$10:$G$10)","v":"HENRICO COUNTY PUBLIC SCHOOLS"},null,null,null,null,null,"Division Number:",null,null,{"$f":"'Certification and Assurances'!$I$10","v":43}]
[]
["CTEMS SCHEDULE 8 (Continued)"]
["Professional Development"]
["2017-2018 Plan"]
[]
[null,"Directions \nFor each of your Perkins supported programs, indicate the number of teachers who will participate in the activity described below.\n\n"]
[]
[null,"ACTIVITIES",null,null,null,null,null,null,"DIVISION PROGRAMS"]
[null,"Note:  All professional development provided must\nmeet requirements as identified in Perkins IV.\n \nIndicate the number of teachers/ administrators participating within the fields for each \nprogram area(s).",null,null,null,null,null,null,"AGRICULTURAL EDUCATION","BUSINESS & INFORMATION TECHNOLOGY","CAREER CONNECTIONS","FAMILY AND CONSUMER SCIENCES","HEALTH AND MEDICAL\n SCIENCES","MARKETING","TECHNOLOGY EDUCATION","TRADE & INDUSTRIAL EDUCATION"]
[null,"a. State conferences, institutes, or workshops (including virtual training programs)",null,null,null,null,null,null,1,8,null,7,9,12,7,9]
[null,"b. National conferences, institutes, or workshops",null,null,null,null,null,null,0,2,null,10,3,3,5,4]
[null,"c. Local conferences, institutes, or workshops",null,null,null,null,null,null,2,12,null,4,15,10,6,3]
[null,"d. Internship in industry",null,null,null,null,null,null,0,0,null,0,0,0,0,0]
[null,"e. Other (specify) "]
[]
[]
[null,"Section 134(b)(12)(A and B):  Describe efforts to improve (A) the recruitment and retention of career and technical education teachers, faculty, and career guidance and academic counselors, including individuals in groups underrepresented in the teaching profession; and (B) the transition to teaching from business and industry."]
[]
[]
[null,"Henrico Co. Public Schools is committed to hiring well qualified teachers not just in the regular academic areas, but also in the area of CTE education.  Professional developed is designed to meet the needs of all curriculum areas taught in HCPS schools including the courses in CTE.  Targeted recruitment is used by the HCPS Human Resource Dept. if there is a specific need within the CTE department.  Specialist from the CTE department work closely with individuals who have transitioned from the business sector into teaching and work with each individual to develop the necessary skills needed in a new work environment and to provide the necessary support.  School counselors play an intregal part in providing career guidance to HCPS students and work collaboratively with all CTE staff to stay abreast of the lastest information regarding career skills needed and business and industry trends."]
[]
[]
[]
[null,"                                        School Division:",null,null,null,null,{"$f":"T('Certification and Assurances'!$A$10:$G$10)","v":"HENRICO COUNTY PUBLIC SCHOOLS"},null,null,null,null,null,"Division Number:",null,null,{"$f":"'Certification and Assurances'!$I$10","v":43}]
[]
["CTEMS SCHEDULE 9"]
["Evaluation of Career and Technical Education Programs"]
["2017-2018 Plan"]
[]
[null,"Section 134(b)(7) and Section 135(b)(6): Describe how the school division will use the state system of Performance Standards and Measures to develop, evaluate, and continuously improve the performance of the career and technical education programs carried out with funds under this Act, including an assessment of how the needs of special populations are being met.  "]
[]
[null,"CTE teachers participate in off-site professional development to create instructional plans that are aligned with course competencies and correlate to SOLs. CTE teachers attend program specific conferences and workshops to improve their instruction; assessment results are reviewed frequently for areas of concern, remediation plans are based on analysis of data and include differentiated instruction/remediation based on the needs of the students."]
[]
[]
[]
[]
[]
[]
[]
[]
[]
[]
[]
[]
[]
[null,"                                        School Division:",null,null,null,null,{"$f":"T('Certification and Assurances'!$A$10:$G$10)","v":"HENRICO COUNTY PUBLIC SCHOOLS"},null,null,null,null,null,"Division Number:",null,null,{"$f":"'Certification and Assurances'!$I$10","v":43}]
[]
["CTEMS SCHEDULE 10"]
["Improvement, Expansion, and Modernization"]
["2017-2018 Plan"]
[]
[null,"Section 135(b)(7):  Please follow the directions below to show how the school division will initiate, improve, expand, and modernize quality career and technical education programs."]
[]
[null,"Directions \nFor each of your Perkins supported programs, place an X in the field for any activity you will use to initiate, improve, expand, or modernize that particular program.\n"]
[]
[null,"ACTIVITIES",null,null,null,null,null,null,"DIVISION PROGRAMS"]
[null,null,null,null,null,null,null,null,"AGRICULTURAL \nEDUCATION","BUSINESS & INFORMATION TECHNOLOGY","CAREER CONNECTIONS","FAMILY AND CONSUMER SCIENCES","HEALTH AND MEDICAL SCIENCES","MARKETING","TECHNOLOGY EDUCATION","TRADE & INDUSTRIAL EDUCATION"]
[null,"a. Revise/update curriculum.",null,null,null,null,null,null,"X","X","X","X","X","X","X","X"]
[null,"b. Revise/update instructional materials.",null,null,null,null,null,null,"X","X","X","X","X","X","X","X"]
[null,"c. Obtain input from business/industry/ community representatives to improve/modernize program.",null,null,null,null,null,null,"X","X","X","X","X","X","X","X"]
[null,"d. Modernize program offerings in occupational area.",null,null,null,null,null,null,"X","X","X","X","X","X","X","X"]
[null,"e. Conduct labor market analysis related to area.",null,null,null,null,null,null,"X","X","X","X","X","X","X","X"]
[null,"f. Conduct community surveys (may include surveys of groups such as your local boards and community groups).",null,null,null,null,null,null,"X","X","X","X","X","X","X","X"]
[null,"g. Initiate new program(s) or courses based on labor market needs.",null,null,null,null,null,null,"X","X","X","X","X","X","X","X"]
[null,"h. Expand career and technical program offerings to provide greater student choice.",null,null,null,null,null,null,"X","X","X","X","X","X","X","X"]
[null,"i. Incorporate technology applications in the classroom/laboratory.",null,null,null,null,null,null,"X","X","X","X","X","X","X","X"]
[null,"j. Certify teachers in industry or professional/trade association.",null,null,null,null,null,null,"X","X","X","X","X","X","X","X"]
[null,"k. Incorporate industry or professional/trade association certification standards.",null,null,null,null,null,null,"X","X","X","X","X","X","X","X"]
[null,"l. Provide training in high tech or telecommunications occupations.",null,null,null,null,null,null,"X","X","X","X","X","X","X","X"]
[null,"m. Other (specify) "]
[]
[]
[null,"                                        School Division:",null,null,null,null,{"$f":"T('Certification and Assurances'!$A$10:$G$10)","v":"HENRICO COUNTY PUBLIC SCHOOLS"},null,null,null,null,null,"Division Number:",null,null,{"$f":"'Certification and Assurances'!$I$10","v":43}]
[]
["CTEMS SCHEDULE 10 (Continued)"]
["Improvement, Expansion, and Modernization"]
["2017-2018 Plan"]
[]
[null,"Section 135(b)(7):   Describe how the school division will initiate, improve, expand, and modernize quality career and technical education programs."]
[]
[]
[]
[null,"Through staff development, we work closely with the CTE Business Advisory Council and Henrico County Vocational/Technical Education Foundation to continually review and update our curriculum requirements for employment by developing plans to improve industry credentialing and certification; CTE teachers utilize the VERSO-based task/competency list, student competency records, and accompanying materials for courses; Completer Surveys are reviewed with adjustments made to the curriculum to serve our students more effectively; CTE competencies are cross-walked with SOLs; the STEM mode is incorporated to improve students’ science and mathematics performance within CTE courses; and student growth measures and test question banks are created using appropriate supporting data."]
[]
[]
[]
[]
[null,"                                        School Division:",null,null,null,null,{"$f":"T('Certification and Assurances'!$A$10:$G$10)","v":"HENRICO COUNTY PUBLIC SCHOOLS"},null,null,null,null,null,"Division Number:",null,null,{"$f":"'Certification and Assurances'!$I$10","v":43}]
[]
["CTEMS SCHEDULE 11"]
["Using Data to Improve Career and Technical Education"]
["2017-2018 Plan"]
[]
[null,"Section 134(b)(7): Describe the process the school division will use to evaluate and continuously improve performance, by using the data provided for your school division on the State System of Performance Standards and Measures, of career and technical education programs within the school division. "]
[]
[null,"The process/tools the school division will use to evaluate and continuously improve performance of CTE program areas are as follows: Talent Ed is used to evaluate teacher performance based on state standards; credential and licensure tests are administered  to completers ensuring students have met the state and industry requirements; CanDo is used to track individual student performance in each course; completer surveys are reviewed and adjustments are made to the curriculum to serve the students more effectively. Student Growth Measures are administered through Schoology and used to assess CTE student and staff performance. STEM is used to improve science and mathematics performance in CTE courses. Advisory Councils meet to review and evaluate CTE programs to align course competencies with business and industry standards. Professional Development provides continuous training for CTE staff to meet the needs of special populations students (ELL/IEP)."]
[]
[]
[]
[]
[]
[]
[]
[]
[]
[]
[]
[]
[]
[]
[]
[]
[]
[]
[null,"                                        School Division:",null,null,null,null,{"$f":"T('Certification and Assurances'!$A$10:$G$10)","v":"HENRICO COUNTY PUBLIC SCHOOLS"},null,null,null,null,null,"Division Number:",null,null,{"$f":"'Certification and Assurances'!$I$10","v":43}]
[]
["CTEMS SCHEDULE 12"]
["Secondary/Postsecondary Linkages, Employment Counseling, and Placement Services"]
["2017-2018 Plan"]
[]
[null,"Section 134(b)(11): Describe how career guidance and academic counseling will be provided to career and technical education students, including linkages to future education and training opportunities.  "]
[]
[null,"Place an X in the field for each option you have implemented to facilitate linkage between and transition from secondary to postsecondary programs.  "]
[null,"Career assessment programs (please indicate programs that you are using). "]
[null,"X","Virginia Education Wizard "]
[null,"X","Or Other:  ",null,"Kuder - An evidence-based career assessment, education planning and guidance resources used a the Academy of Virginia Randolph - a high school alternative program."]
[null,"X","Career and academic counseling/coaching.\n\nSection 134(b)(11):  Describe how the career guidance system provides employment counseling to furnish information on available employment opportunities to all students, including students who are disabled."]
[null,null,"Academic career  plans are completed on all students begininng in the 7th grade in a cooperative planning session with school counselors.  These plans are updated annually."]
[null,"X","Career fairs, placement services and job seeking skills.\n\nSection 134(b)(11) and Section 134(b)(3)(C) and (8)(C):  Describe placement services provided for all students exiting school and describe how job-seeking skills are provided to all secondary students including those identified as disabled."]
[null,null,"Henrico County annually holds a college and career night for students and parents.   We also partner with the Henrico Business Council to hold  the \"Mission Tomorrow\" event for all 8th grade students."]
[]
[null,"                                        School Division:",null,null,null,null,{"$f":"T('Certification and Assurances'!$A$10:$G$10)","v":"HENRICO COUNTY PUBLIC SCHOOLS"},null,null,null,null,null,"Division Number:",null,null,{"$f":"'Certification and Assurances'!$I$10","v":43}]
[]
["CTEMS SCHEDULE 12 (Continued)"]
["Secondary/Postsecondary Linkages, Employment Counseling, and Placement Services"]
["2017-2018 Plan"]
[]
[null,null,"High Schools that Work and/or Making Middle Grades Work (Describe HSTW programs that will be implemented.)"]
[null,null,"Describe:"]
[null,"X","Dual Enrollment Options (Specify courses/programs.)"]
[null,null,"Reynolds Community College: Center for Engineering - D8490/D8488/D8489/D8491(EGR140/110/124/206), Varina High School - D8423 (GIS 200 Geographical Informational Systems I; GIS 201 Geographical Informational Systems II), ACE Centers: Criminal Justice I/II - D8702/D8703 (ADJ100/ADJ128/ADJ105/ADJ122), Computer Systems Technology  I/II- D8622/D8623 (INE221/INT101/INT171/INT260, Diesel Technology I/II - D8613/D8614 (MEC175/DSL143/DSL176/DSL126/DSL160/DSL152/DSL131/DSL150), Automotive Technology I/II - D8506/D8507 (MEC175/AUT101/AUT241/AAUT266/AUT111/AUT178/AUT1360 ; Virginia Commonwealth University: High Tech Academy - MATH200/201/151; CHEM 101/102; CHEZ 101/102; PHYS 101/102, PHYZ 101; John Tyler Community College: Precision Machining Technology I/II - D8539/8540 (MAC101/102);D8285/D8286 "]
[null,"X","Other (specify)"]
[null,null,"Dual enrollement continued:   Longwood University (ISCS 475 and ISCS 375)\nECPI (MED 145)  (CIS 121 and CIS 213); (CIS 214 and CIS 250)\nReynolds Community College "]
[]
[]
[]
[]
[]
[]
[null,"                                        School Division:",null,null,null,null,{"$f":"T('Certification and Assurances'!$A$10:$G$10)","v":"HENRICO COUNTY PUBLIC SCHOOLS"},null,null,null,null,null,"Division Number:",null,null,{"$f":"'Certification and Assurances'!$I$10","v":43}]
[]
["CTEMS SCHEDULE 13"]
["Equity Provisions of General Education Provision Act"]
["2017-2018 Plan"]
[]
[null,"Section 134 (b)(8 and 9):  Develop a brief plan stating steps that will be taken annually to ensure equitable access to, and equitable participation in the project or activity to be conducted with such assistance by addressing the special needs of students, teachers, and other program beneficiaries in order to overcome barriers to equitable participation, including barriers based on race, sex, color, national origin, religion, sexual orientation, gender identity, age, political affiliation, or against otherwise qualified persons with disabilities.  The policy specifically prohibits descrimination against veterans."]
[]
[null,"CTE specialists promote CTE programs to all grades, at all schools in Henrico County throughout the school year with the following methods: Virginia Wizard, Virginia Employment Commission, employment projections and job vacancies, resources available through the internet, TV and internet job ads, Health and Medical Sciences job fair, Ready Set Hire event, business representatives meet with students and review resumes, COWEP offers opportunities for vocational assessment and special counseling services, apprenticeships and work-study programs, mentoring services, career counseling services, CTE assessments, CTE student organizations, business and industry field trips, FACS childcare services and transportation for students, seminars for parents of students at each of the Advanced Career Education centers, CTE bus used as promotional tool and the opportunity to earn an industry certifications for all high school CTE students."]
[]
[]
[]
[]
[]
[]
[]
[]
[]
[]
[]
[]
[]
[]
[]
[]
[]
[]
[]
[]
[]
[]
[]
[]
[null,"                                        School Division:",null,null,null,null,{"$f":"T('Certification and Assurances'!$A$10:$G$10)","v":"HENRICO COUNTY PUBLIC SCHOOLS"},null,null,null,null,null,"Division Number:",null,null,{"$f":"'Certification and Assurances'!$I$10","v":43}]
[]
["CTEMS SCHEDULE 14"]
["Labor Market Needs"]
["2017-2018 Plan"]
[]
[null,"Describe how labor market needs are reviewed and addressed to ensure programs and courses offered meet local, regional and state economic and workforce needs."]
[]
[null,"CTE programs have an Advisory Council made up of local business leaders and partners in the community. The council meets to discuss current market needs and to identify what employers are looking for in future employees.  The Advisory Council meets once a month to update members and staff on current and future needs and trends.  The CTE department performs a labor market analysis to ensure that we are meeting the needs of community leaders and employers.  The CTE department distributes surveys to employers in local businesses to learn about their interests and needs.  Leaders from business and industry comprise the Henrico County Vocational Technical Education Foundation.  This foundation meets once a month to review the progress of the house building project, review innovative construction techniques, and to discuss current labor market trends.  All of our students are required to complete workplace readiness testing."]
[]
[]
[]
[]
[]
[]
[]
[]
[]
[]
[]
[]
[]
[]
[]
[]
[]
[]
[]
[]
[]
[]
[]
[]
[]
[null,"                                        School Division:",null,null,null,null,{"$f":"T('Certification and Assurances'!$A$10:$G$10)","v":"HENRICO COUNTY PUBLIC SCHOOLS"},null,null,null,null,null,"Division Number:",null,null,{"$f":"'Certification and Assurances'!$I$10","v":43}]
[]
["CTEMS SCHEDULE 15"]
["Participation in Regional Technical Education Centers"]
["(Only to be completed by school divisions participating in regional career and technical education centers that serve multiple divisions.)"]
["2017-2018 Plan"]
[]
[null,"COLUMN A:\nTotal CTE Students in Division (Unduplicated Count, Grades 7-12) + Students Attending Regional Technical Center",null,null,null,"COLUMN B:\nNumber of CTE Students Participating In Regional Technical Center (Unduplicated Count, Grades 7-12, if applicable)",null,null,"COLUMN C:\nPercent of CTE Students Attending Regional Technical Center (Column B/Column A)",null,null,"COLUMN D:\nAmount of Perkins Funds Sent to Regional Technical Center (Based on percent in Column C)"]
[null,null,null,null,null,null,null,null,{"$f":"IF(ISERROR(+F600/+B600),\"Complete Columns A and B for Calculation\",(+F600/+B600))","v":"Complete Columns A and B for Calculation"}]
[]
[]
["NOTE:  Each school division that participates in a CTE Regional Technical Center must notify the center administrator of the amount of Perkins funding identified in Colunn D that will be allocated to the center."]
[]
[]
[]
[]
[null,"                                        School Division:",null,null,null,null,{"$f":"T('Certification and Assurances'!$A$10:$G$10)","v":"HENRICO COUNTY PUBLIC SCHOOLS"},null,null,null,null,null,"Division Number:",null,null,{"$f":"'Certification and Assurances'!$I$10","v":43}]
[]
["CTEMS SCHEDULE 15 - A"]
["CTE Regional Technical Center Funding"]
["TO BE COMPLETED BY CTE REGIONAL TECHNICAL CENTERS ONLY"]
["2017-2018 Plan"]
[]
["List each school division that participates in the regional center including the Perkins funding allocated to the center.\n(The \"Amount\" column must only contain numeric entries.)"]
[]
[null,"School Division",null,null,null,null,null,null,null,null,null,"Amount"]
[]
[]
[]
[]
[]
[]
[]
[]
[]
[null,"TOTAL",null,null,null,null,null,null,null,null,null,{"$f":"SUM(L619:O626)","v":0}]
[]
[]
[]
[]
[]
[]
[]
[]
[]
[null,"                                        School Division:",null,null,null,null,{"$f":"T('Certification and Assurances'!$A$10:$G$10)","v":"HENRICO COUNTY PUBLIC SCHOOLS"},null,null,null,null,null,"Division Number:",null,null,{"$f":"'Certification and Assurances'!$I$10","v":43}]
[]
["CTEMS SCHEDULE 16"]
["Career and Technical Education Financial Data"]
["2017-2018 Plan"]
[]
[null,"ADMINISTRATION"]
[null,"Funding Categories",null,null,null,null,null,null,null,null,null,"State",null,"Local"]
[null,"1. Career and Technical Center Administrator/Principal\n    (includes Special Career and Technical Centers)",null,null,null,null,null,null,null,null,null,null,null,427411]
[null,"2. Assistant Principal (includes Special Career and Technical Centers)",null,null,null,null,null,null,null,null,null,null,null,359097]
[null,"EXTENDED CONTRACTS, ADULT SUPPLEMENTS"]
[null,"Funding Categories",null,null,null,null,null,null,null,null,null,"State",null,"Local"]
[null,"3. Extended Contract Costs",null,null,null,null,null,null,null,null,null,14105,null,1302041]
[null,"4. Adult Occupation Supplements",null,null,null,null,null,null,null,null,null,134862,null,73594]
[null,"5. Adult Occupation Teachers (Full-time)",null,null,null,null,null,null,null,null,null,837160,null,445279]
[null,"6. Adult Occupation Teachers (Part-time)"]
[null,"LOCAL FUNDS ONLY"]
[null,"Funding Categories",null,null,null,null,null,null,null,null,null,"State",null,"Local"]
[null,"7. Operational Costs (other than Categorical):  Teachers’ Salaries\n    Less Extended Contract Costs",null,null,null,null,null,null,null,null,null,null,null,20096172]
[null,"8. Instructional Supplies/Materials",null,null,null,null,null,null,null,null,null,null,null,466243]
[null,"9. Other Instructionally Related Costs",null,null,null,null,null,null,null,null,null,null,null,732518]
[null,"10. Equipment",null,null,null,null,null,null,null,null,null,null,null,171049]
[]
[]
[]
[]
[]
[]
[]
[]
[]
[]
[]
[]
[]
[]
[]
[]
[]
[]
[]
[null,"                                        School Division:",null,null,null,null,{"$f":"T('Certification and Assurances'!$A$10:$G$10)","v":"HENRICO COUNTY PUBLIC SCHOOLS"},null,null,null,null,null,"Division Number:",null,null,{"$f":"'Certification and Assurances'!$I$10","v":43}]
[]
["CTEMS SCHEDULE 17 (Continued on next page)"]
["Budget of Perkins Funds"]
["2017-2018 Plan "]
["1.\nCAREER AND TECHNICAL ACTIVITIES FUNDED\n(Indicate Required or Permissive Use of Funds) \n\n",null,"2.\nCAREER AND TECHNICAL PROGRAM AREAS FUNDED",null,"3.\nNARRATIVE DESCRIPTION\n(Describe how the expenditure will assist your division in continuously improving the academic and technical skills of students participating in career and technical education programs and in meeting the state levels of performance established under Section 113 of the Perkins IV Act. \n(Section 134(b)(1, 2 and 10) (Section 135(a-c)",null,null,null,null,null,null,"4.\n OBJECT CODE",null,"5.\nBUDGETED  FUNDS AND SOURCE OF FUNDS"]
[null,null,null,null,null,null,null,null,null,null,null,null,null,"Fed.,\nState,\nor \nLocal","Amount"]
["See Appendix B",null,null,null,null,null,null,null,null,null,null,"See Appendix C",null,null,null,null,null,"State Total",null,"Local Total",null,"Federal total"]
["Required Use:\n\nProfessional Development",null,"ix.  All",null,"To support expenses for CTE teachers and administrators to attend professional development activities such as: conferences, seminars, workshops, and courses to update technical and effective teaching skills based on current research.",null,null,null,null,null,null,"3000 - Purchased Services",null,"FED",17032.2,null,null,{"$f":"SUMIF($N686,\"ST\",$O686)","v":0},null,{"$f":"SUMIF($N686,\"LOC\",$O686)","v":0},null,{"$f":"SUM(O686)-SUM(R686:U686)","v":17032.2},null,{"$f":"IF($O686=0,\"\",IF($O686<>0,IF(ISBLANK(L686),\"4. Object Code must be selected.\",\"\")))","v":""},{"$f":"IF($O686=0,\"\",IF($O686<>0,IF(ISBLANK(N686),\"5. Fund Source must be selected.\",\"\")))","v":""}]
[null,null,null,null,null,null,null,null,null,null,null,null,null,null,null,null,null,{"$f":"SUMIF($N687,\"ST\",$O687)","v":0},null,{"$f":"SUMIF($N687,\"LOC\",$O687)","v":0},null,0,null,{"$f":"IF($O687=0,\"\",IF($O687<>0,IF(ISBLANK(L687),\"4. Object Code must be selected.\",\"\")))","v":""},{"$f":"IF($O687=0,\"\",IF($O687<>0,IF(ISBLANK(N687),\"5. Fund Source must be selected.\",\"\")))","v":""}]
[null,null,null,null,null,null,null,null,null,null,null,null,null,null,null,null,null,{"$f":"SUMIF($N688,\"ST\",$O688)","v":0},null,{"$f":"SUMIF($N688,\"LOC\",$O688)","v":0},null,0,null,"",""]
["Required Use:\n\nActivities for Special Populations (to include nontraditional)",null,"ix.  All",null,"To provide special programs (including business and industry tours) for school counselors to enhance their understanding of non-traditional career opportunities and to provide programs to help special populations/special education students have a better understanding of career opportunities.  The programs will be for Special Populations and Non-Traditional students",null,null,null,null,null,null,"3000 - Purchased Services",null,"FED",500,null,null,{"$f":"SUMIF($N689,\"ST\",$O689)","v":0},null,{"$f":"SUMIF($N689,\"LOC\",$O689)","v":0},null,500,null,"",""]
[null,null,null,null,null,null,null,null,null,null,null,null,null,null,null,null,null,0,null,0,null,0,null,"",""]
[null,null,null,null,null,null,null,null,null,null,null,null,null,null,null,null,null,0,null,0,null,0,null,"",""]
["Required Use:\n\nRegional Program Participation (only divisions submitting Schedule 15)",null,"ix.  All",null,"Develop and distribute items such as brochures, flyers, and program announcements to promote awareness of non-traditional training and oppportunities in identified courses and purchase classroom sets of reference materials for identified CTE courses.",null,null,null,null,null,null,"4000 - Internal Services",null,"FED",7773.67,null,null,0,null,0,null,7773.67,null,"",""]
[null,null,null,null,null,null,null,null,null,null,null,null,null,null,null,null,null,0,null,0,null,0,null,"",""]
[null,null,null,null,null,null,null,null,null,null,null,null,null,null,null,null,null,0,null,0,null,0,null,"",""]
["R9--Provide activities to prepare special populations, including single parents and displaced homemakers who are enrolled in career and technical education programs, for high skill, high wage, or high demand occupations that will lead to self-sufficiency.",null,"ix.  All",null,"Develop and distribute items such as brochures, flyers, and program announcements to promote awareness of non-traditional training and oppportunities in identified courses and purchase classroom sets of reference materials for identified CTE courses.",null,null,null,null,null,null,"3000 - Purchased Services",null,"FED",15257.67,null,null,0,null,0,null,15257.67,null,"","",{"$f":"LEFT(A695,1)&N695","v":"RFED"},{"$f":"SUMIF(Z695,\"PFED\",O695)","v":0}]
[null,null,null,null,null,null,null,null,null,null,null,null,null,null,null,null,null,0,null,0,null,0,null,"","",{"$f":"LEFT(A695,1)&N696","v":"R"},0]
[null,null,null,null,null,null,null,null,null,null,null,null,null,null,null,null,null,0,null,0,null,0,null,"","",{"$f":"LEFT(A695,1)&N697","v":"R"},0]
["R9--Provide activities to prepare special populations, including single parents and displaced homemakers who are enrolled in career and technical education programs, for high skill, high wage, or high demand occupations that will lead to self-sufficiency.",null,"ix.  All",null,"To support programs, services, and activities designed to enhance the success of special populations in career and technical education.",null,null,null,null,null,null,"1000 - Personal Services",null,"FED",128973.17,null,null,0,null,0,null,128973.17,null,"","",{"$f":"LEFT(A698,1)&N698","v":"RFED"},0]
[null,null,null,null,null,null,null,null,null,null,null,null,null,null,null,null,null,0,null,0,null,0,null,"","",{"$f":"LEFT(A698,1)&N699","v":"R"},0]
[null,null,null,null,null,null,null,null,null,null,null,null,null,null,null,null,null,0,null,0,null,0,null,"","",{"$f":"LEFT(A698,1)&N700","v":"R"},0]
["P9--To develop and expand accessible postsecondary program offerings at times and in formats that are accessible for students, including working students, including through the use of distance education.",null,"ix.  All",null,"To support programs, services, and activities designed to enhance the success of special populations in career and technical education.",null,null,null,null,null,null,"2000 - Employee Benefits",null,"FED",73609.149999999994,null,null,0,null,0,null,73609.149999999994,null,"","",{"$f":"LEFT(A701,1)&N701","v":"PFED"},73609.149999999994]
[null,null,null,null,null,null,null,null,null,null,null,null,null,null,null,null,null,0,null,0,null,0,null,"","",{"$f":"LEFT(A701,1)&N702","v":"P"},0]
[null,null,null,null,null,null,null,null,null,null,null,null,null,null,null,null,null,0,null,0,null,0,null,"","",{"$f":"LEFT(A701,1)&N703","v":"P"},0]
["R9--Provide activities to prepare special populations, including single parents and displaced homemakers who are enrolled in career and technical education programs, for high skill, high wage, or high demand occupations that will lead to self-sufficiency.",null,"viii.  Trade and Industrial Education",null,"To purchase updated software to expand and/or replace current software needs in the middle and high school CTE classes.",null,null,null,null,null,null,"8000 – Capital Outlay/Equipment",null,"FED",40000,null,null,0,null,0,null,40000,null,"","",{"$f":"LEFT(A704,1)&N704","v":"RFED"},0]
[null,null,null,null,null,null,null,null,null,null,null,null,null,null,null,null,null,0,null,0,null,0,null,"","",{"$f":"LEFT(A704,1)&N705","v":"R"},0]
[null,null,null,null,null,null,null,null,null,null,null,null,null,null,null,null,null,0,null,0,null,0,null,"","",{"$f":"LEFT(A704,1)&N706","v":"R"},0]
[]
[]
[null,"                                        School Division:",null,null,null,null,{"$f":"T('Certification and Assurances'!$A$10:$G$10)","v":"HENRICO COUNTY PUBLIC SCHOOLS"},null,null,null,null,null,"Division Number:",null,null,{"$f":"'Certification and Assurances'!$I$10","v":43}]
[]
["CTEMS SCHEDULE 17 (Continued on from previous page)"]
["Budget of Perkins Funds"]
["2017-2018 Plan "]
["1.\nCAREER AND TECHNICAL ACTIVITIES FUNDED\n(Indicate Required or Permissive Use of Funds) \n\n",null,"2.\nCAREER AND TECHNICAL PROGRAM AREAS FUNDED",null,"3.\nNARRATIVE DESCRIPTION\n(Describe how the expenditure will assist your division in continuously improving the academic and technical skills of students participating in career and technical education programs and in meeting the state levels of performance established under Section 113 of the Perkins IV Act. \n(Section 134(b)(1, 2 and 10) (Section 135(a-c)",null,null,null,null,null,null,"4.\n OBJECT CODE",null,"5.\nBUDGETED  FUNDS AND SOURCE OF FUNDS"]
[null,null,null,null,null,null,null,null,null,null,null,null,null,"Fed.,\nState,\nor \nLocal","Amount"]
["See Appendix B",null,null,null,null,null,null,null,null,null,null,"See Appendix C",null,null,null,null,null,"State Total",null,"Local Total",null,"Federal total"]
["R4B--Develop, improve, or expand the use of technology in career and technical education, which may include providing career and technical education students with the academic and career and technical skills (including the mathematics and science knowledge that provides a strong basis for such skills) that lead to entry into the technology fields.",null,"vii.  Technology Education",null,"To improve the Technology Education programs in grades 7 - 12 by purchasing the necessary equipment and mterials needed to update programs/courses in the areas of Science, Technology, Engineering and Mathematics.",null,null,null,null,null,null,"8000 – Capital Outlay/Equipment",null,"FED",65000,null,null,{"$f":"SUMIF($N717,\"ST\",$O717)","v":0},null,{"$f":"SUMIF($N717,\"LOC\",$O717)","v":0},null,{"$f":"SUM(O717)-SUM(R717:U717)","v":65000},null,{"$f":"IF($O717=0,\"\",IF($O717<>0,IF(ISBLANK(L717),\"4. Object Code must be selected.\",\"\")))","v":""},{"$f":"IF($O717=0,\"\",IF($O717<>0,IF(ISBLANK(N717),\"5. Fund Source must be selected.\",\"\")))","v":""},{"$f":"LEFT(A717,1)&N717","v":"RFED"},{"$f":"SUMIF(Z717,\"PFED\",O717)","v":0}]
[null,null,null,null,null,null,null,null,null,null,null,null,null,null,null,null,null,{"$f":"SUMIF($N718,\"ST\",$O718)","v":0},null,{"$f":"SUMIF($N718,\"LOC\",$O718)","v":0},null,0,null,"","",{"$f":"LEFT(A717,1)&N718","v":"R"},0]
[null,null,null,null,null,null,null,null,null,null,null,null,null,null,null,null,null,{"$f":"SUMIF($N719,\"ST\",$O719)","v":0},null,{"$f":"SUMIF($N719,\"LOC\",$O719)","v":0},null,0,null,"","",{"$f":"LEFT(A717,1)&N719","v":"R"},0]
["R7--Initiate, improve, expand, and modernize quality career and technical education programs, including relevant technology.",null,"viii.  Trade and Industrial Education",null,"To imporve Trade and Industrial programs a the high school level in programs included in the following clusters: Agriculture, Arts, A/V Technology and Communications, Hospitality/Tourism, Human Services, Law, Public Safety and Security, Manufacturing, and Transportation, Distribution and Logistics.",null,null,null,null,null,null,"8000 – Capital Outlay/Equipment",null,"FED",60028.02,null,null,{"$f":"SUMIF($N720,\"ST\",$O720)","v":0},null,{"$f":"SUMIF($N720,\"LOC\",$O720)","v":0},null,60028.02,null,"","",{"$f":"LEFT(A720,1)&N720","v":"RFED"},0]
[null,null,null,null,null,null,null,null,null,null,null,null,null,null,null,null,null,0,null,0,null,0,null,"","",{"$f":"LEFT(A720,1)&N721","v":"R"},0]
[null,null,null,null,null,null,null,null,null,null,null,null,null,null,null,null,null,0,null,0,null,0,null,"","",{"$f":"LEFT(A720,1)&N722","v":"R"},0]
["R7--Initiate, improve, expand, and modernize quality career and technical education programs, including relevant technology.",null,"ii.  Business and Information Technology",null,"To purchase Digital Input Technologies equipment for grades 7 through 12 to enhance current classroom technology.",null,null,null,null,null,null,"8000 – Capital Outlay/Equipment",null,"FED",60000,null,null,0,null,0,null,60000,null,"","",{"$f":"LEFT(A723,1)&N723","v":"RFED"},0]
[null,null,null,null,null,null,null,null,null,null,null,null,null,null,null,null,null,0,null,0,null,0,null,"","",{"$f":"LEFT(A723,1)&N724","v":"R"},0]
[null,null,null,null,null,null,null,null,null,null,null,null,null,null,null,null,null,0,null,0,null,0,null,"","",{"$f":"LEFT(A723,1)&N725","v":"R"},0]
["R7--Initiate, improve, expand, and modernize quality career and technical education programs, including relevant technology.",null,"v.  Health and Medical Sciences",null,"To improve Health and Medical programs at the technical centers by purchasing equipment from the State Approved Equipment list to replace existing equipment.",null,null,null,null,null,null,"8000 – Capital Outlay/Equipment",null,"FED",44051.61,null,null,0,null,0,null,44051.61,null,"","",{"$f":"LEFT(A726,1)&N726","v":"RFED"},0]
[null,null,null,null,null,null,null,null,null,null,null,"3000 - Purchased Services",null,"FED",10218.39,null,null,0,null,0,null,10218.39,null,"","",{"$f":"LEFT(A726,1)&N727","v":"RFED"},0]
[null,null,null,null,null,null,null,null,null,null,null,null,null,null,null,null,null,0,null,0,null,0,null,"","",{"$f":"LEFT(A726,1)&N728","v":"R"},0]
["P14--To provide support for family and consumer sciences programs.",null,"iv.  Family and Consumer Sciences",null,"To improve the Family and Consumer Sciences programs at the middle and high school levels (grades 7 through 12) by purchasing replacement equipment from the State Approved Equipment list.",null,null,null,null,null,null,"8000 – Capital Outlay/Equipment",null,"FED",59836.24,null,null,0,null,0,null,59836.24,null,"","",{"$f":"LEFT(A729,1)&N729","v":"PFED"},59836.24]
[null,null,null,null,null,null,null,null,null,null,null,"3000 - Purchased Services",null,"FED",5620,null,null,0,null,0,null,5620,null,"","",{"$f":"LEFT(A729,1)&N730","v":"PFED"},5620]
[null,null,null,null,null,null,null,null,null,null,null,null,null,null,null,null,null,0,null,0,null,0,null,"","",{"$f":"LEFT(A729,1)&N731","v":"P"},0]
["R5B--Provide sustained professional development programs that are consistent with section 122 to secondary and postsecondary teachers, faculty, administrators, and career guidance and academic counselors who are involved in integrated career and technical education programs, including support of education programs for teachers of career and technical education in public schools and other public school personnel who are involved in the direct delivery of educational services to career and technical education students, to ensure that such teachers and personnel stay current with all aspects of an industry.",null,"ix.  All",null,"To support activities that will involve business, industry, labor organizations, parents, and the community in the design, implementation, and evaluation of Career and Technical Education Programs.",null,null,null,null,null,null,"5000 - Other Charges",null,"FED",0,null,null,0,null,0,null,0,null,"","",{"$f":"LEFT(A732,1)&N732","v":"RFED"},0]
[null,null,null,null,null,null,null,null,null,null,null,null,null,null,null,null,null,0,null,0,null,0,null,"","",{"$f":"LEFT(A732,1)&N733","v":"R"},0]
[null,null,null,null,null,null,null,null,null,null,null,null,null,null,null,null,null,0,null,0,null,0,null,"","",{"$f":"LEFT(A732,1)&N734","v":"R"},0]
["P5--To assist career and technical student organizations.",null,"ix.  All",null,"To provide funding for non-traditional and special population students to attend state and national leadership development conferences and activities.",null,null,null,null,null,null,"5000 - Other Charges",null,"FED",18056.12,null,null,0,null,0,null,18056.12,null,"","",{"$f":"LEFT(A735,1)&N735","v":"PFED"},18056.12]
[null,null,null,null,null,null,null,null,null,null,null,null,null,null,null,null,null,0,null,0,null,0,null,"","",{"$f":"LEFT(A735,1)&N736","v":"P"},0]
[null,null,null,null,null,null,null,null,null,null,null,null,null,null,null,null,null,0,null,0,null,0,null,"","",{"$f":"LEFT(A735,1)&N737","v":"P"},0]
[]
[]
[]
[null,"                                        School Division:",null,null,null,null,{"$f":"T('Certification and Assurances'!$A$10:$G$10)","v":"HENRICO COUNTY PUBLIC SCHOOLS"},null,null,null,null,null,"Division Number:",null,null,{"$f":"'Certification and Assurances'!$I$10","v":43}]
[]
["CTEMS SCHEDULE 17 (Continued on from previous page)"]
["Budget of Perkins Funds"]
["2017-2018 Plan "]
["1.\nCAREER AND TECHNICAL ACTIVITIES FUNDED\n(Indicate Required or Permissive Use of Funds) \n\n",null,"2.\nCAREER AND TECHNICAL PROGRAM AREAS FUNDED",null,"3.\nNARRATIVE DESCRIPTION\n(Describe how the expenditure will assist your division in continuously improving the academic and technical skills of students participating in career and technical education programs and in meeting the state levels of performance established under Section 113 of the Perkins IV Act. \n(Section 134(b)(1, 2 and 10) (Section 135(a-c)",null,null,null,null,null,null,"4.\n OBJECT CODE",null,"5.\nBUDGETED  FUNDS AND SOURCE OF FUNDS"]
[null,null,null,null,null,null,null,null,null,null,null,null,null,"Fed.,\nState,\nor \nLocal","Amount"]
["See Appendix B",null,null,null,null,null,null,null,null,null,null,"See Appendix C",null,null,null,null,null,"State Total",null,"Local Total",null,"Federal total"]
["R7--Initiate, improve, expand, and modernize quality career and technical education programs, including relevant technology.",null,"ix.  All",null," Purchase classroom sets of textbooks to meet the needs of dual enrollment courses in the high school programs       ",null,null,null,null,null,null,"8000 – Capital Outlay/Equipment",null,"FED",25581.119999999999,null,null,{"$f":"SUMIF($N749,\"ST\",$O749)","v":0},null,{"$f":"SUMIF($N749,\"LOC\",$O749)","v":0},null,{"$f":"SUM(O749)-SUM(R749:U749)","v":25581.119999999999},null,{"$f":"IF($O749=0,\"\",IF($O749<>0,IF(ISBLANK(L749),\"4. Object Code must be selected.\",\"\")))","v":""},{"$f":"IF($O749=0,\"\",IF($O749<>0,IF(ISBLANK(N749),\"5. Fund Source must be selected.\",\"\")))","v":""},{"$f":"LEFT(A749,1)&N749","v":"RFED"},{"$f":"SUMIF(Z749,\"PFED\",O749)","v":0}]
[null,null,null,null,null,null,null,null,null,null,null,null,null,null,null,null,null,{"$f":"SUMIF($N750,\"ST\",$O750)","v":0},null,{"$f":"SUMIF($N750,\"LOC\",$O750)","v":0},null,0,null,"","",{"$f":"LEFT(A749,1)&N750","v":"R"},0]
[null,null,null,null,null,null,null,null,null,null,null,null,null,null,null,null,null,{"$f":"SUMIF($N751,\"ST\",$O751)","v":0},null,{"$f":"SUMIF($N751,\"LOC\",$O751)","v":0},null,0,null,"","",{"$f":"LEFT(A749,1)&N751","v":"R"},0]
[null,null,null,null,null,null,null,null,null,null,null,null,null,null,null,null,null,{"$f":"SUMIF($N752,\"ST\",$O752)","v":0},null,{"$f":"SUMIF($N752,\"LOC\",$O752)","v":0},null,0,null,"","",{"$f":"LEFT(A752,1)&N752","v":""},0]
[null,null,null,null,null,null,null,null,null,null,null,null,null,null,null,null,null,0,null,0,null,0,null,"","",{"$f":"LEFT(A752,1)&N753","v":""},0]
[null,null,null,null,null,null,null,null,null,null,null,null,null,null,null,null,null,0,null,0,null,0,null,"","",{"$f":"LEFT(A752,1)&N754","v":""},0]
[null,null,null,null,null,null,null,null,null,null,null,null,null,null,null,null,null,0,null,0,null,0,null,"","",{"$f":"LEFT(A755,1)&N755","v":""},0]
[null,null,null,null,null,null,null,null,null,null,null,null,null,null,null,null,null,0,null,0,null,0,null,"","",{"$f":"LEFT(A755,1)&N756","v":""},0]
[null,null,null,null,null,null,null,null,null,null,null,null,null,null,null,null,null,0,null,0,null,0,null,"","",{"$f":"LEFT(A755,1)&N757","v":""},0]
[null,null,null,null,null,null,null,null,null,null,null,null,null,null,null,null,null,0,null,0,null,0,null,"","",{"$f":"LEFT(A758,1)&N758","v":""},0]
[null,null,null,null,null,null,null,null,null,null,null,null,null,null,null,null,null,0,null,0,null,0,null,"","",{"$f":"LEFT(A758,1)&N759","v":""},0]
[null,null,null,null,null,null,null,null,null,null,null,null,null,null,null,null,null,0,null,0,null,0,null,"","",{"$f":"LEFT(A758,1)&N760","v":""},0]
[null,null,null,null,null,null,null,null,null,null,null,null,null,null,null,null,null,0,null,0,null,0,null,"","",{"$f":"LEFT(A761,1)&N761","v":""},0]
[null,null,null,null,null,null,null,null,null,null,null,null,null,null,null,null,null,0,null,0,null,0,null,"","",{"$f":"LEFT(A761,1)&N762","v":""},0]
[null,null,null,null,null,null,null,null,null,null,null,null,null,null,null,null,null,0,null,0,null,0,null,"","",{"$f":"LEFT(A761,1)&N763","v":""},0]
[null,null,null,null,null,null,null,null,null,null,null,null,null,null,null,null,null,0,null,0,null,0,null,"","",{"$f":"LEFT(A764,1)&N764","v":""},0]
[null,null,null,null,null,null,null,null,null,null,null,null,null,null,null,null,null,0,null,0,null,0,null,"","",{"$f":"LEFT(A764,1)&N765","v":""},0]
[null,null,null,null,null,null,null,null,null,null,null,null,null,null,null,null,null,0,null,0,null,0,null,"","",{"$f":"LEFT(A764,1)&N766","v":""},0]
[null,null,null,null,null,null,null,null,null,null,null,null,null,null,null,null,null,0,null,0,null,0,null,"","",{"$f":"LEFT(A767,1)&N767","v":""},0]
[null,null,null,null,null,null,null,null,null,null,null,null,null,null,null,null,null,0,null,0,null,0,null,"","",{"$f":"LEFT(A767,1)&N768","v":""},0]
[null,null,null,null,null,null,null,null,null,null,null,null,null,null,null,null,null,0,null,0,null,0,null,"","",{"$f":"LEFT(A767,1)&N769","v":""},0]
[]
[]
[]
[]
[null,"                                        School Division:",null,null,null,null,{"$f":"T('Certification and Assurances'!$A$10:$G$10)","v":"HENRICO COUNTY PUBLIC SCHOOLS"},null,null,null,null,null,"Division Number:",null,null,{"$f":"'Certification and Assurances'!$I$10","v":43}]
[]
["CTEMS SCHEDULE 17 (Continued from previous page)"]
["Budget of Perkins Funds"]
["2017-2018 Plan"]
[]
["1.\nCAREER AND TECHNICAL ACTIVITIES FUNDED\n(Indicate Required or Permissive Use of Funds) \n\n",null,"2.\nCAREER AND TECHNICAL PROGRAM AREAS FUNDED",null,"3.\nNARRATIVE DESCRIPTION\n(Describe how the expenditure will assist your division in continuously improving the academic and technical skills of students participating in career and technical education programs and in meeting the state levels of performance established under Section 113 of the Perkins IV Act. \n(Section 134(b)(1, 2 and 10) (Section 135(a-c)",null,null,null,null,null,null,"4.\n OBJECT CODE",null,"5.\nBUDGETED  FUNDS AND SOURCE OF FUNDS"]
[null,null,null,null,null,null,null,null,null,null,null,null,null,"Fed.,\nState,\nor \nLocal","Amount"]
["See Appendix B",null,null,null,null,null,null,null,null,null,null,"See Appendix C"]
[null,null,null,null,null,null,null,null,null,null,null,null,null,null,null,null,null,{"$f":"SUMIF($N783,\"ST\",$O783)","v":0},null,{"$f":"SUMIF($N783,\"LOC\",$O783)","v":0},null,{"$f":"SUM(O783)-SUM(R783:U783)","v":0},null,{"$f":"IF($O783=0,\"\",IF($O783<>0,IF(ISBLANK(L783),\"4. Object Code must be selected.\",\"\")))","v":""},{"$f":"IF($O783=0,\"\",IF($O783<>0,IF(ISBLANK(N783),\"5. Fund Source must be selected.\",\"\")))","v":""},{"$f":"LEFT(A783,1)&N783","v":""},{"$f":"SUMIF(Z783,\"PFED\",O783)","v":0}]
[null,null,null,null,null,null,null,null,null,null,null,null,null,null,null,null,null,0,null,0,null,0,null,"","",{"$f":"LEFT(A783,1)&N784","v":""},0]
[null,null,null,null,null,null,null,null,null,null,null,null,null,null,null,null,null,0,null,0,null,0,null,"","",{"$f":"LEFT(A783,1)&N785","v":""},0]
[null,null,null,null,null,null,null,null,null,null,null,null,null,null,null,null,null,0,null,0,null,0,null,"","",{"$f":"LEFT(A786,1)&N786","v":""},0]
[null,null,null,null,null,null,null,null,null,null,null,null,null,null,null,null,null,0,null,0,null,0,null,"","",{"$f":"LEFT(A786,1)&N787","v":""},0]
[null,null,null,null,null,null,null,null,null,null,null,null,null,null,null,null,null,0,null,0,null,0,null,"","",{"$f":"LEFT(A786,1)&N788","v":""},0]
[null,null,null,null,null,null,null,null,null,null,null,null,null,null,null,null,null,0,null,0,null,0,null,"","",{"$f":"LEFT(A789,1)&N789","v":""},0]
[null,null,null,null,null,null,null,null,null,null,null,null,null,null,null,null,null,0,null,0,null,0,null,"","",{"$f":"LEFT(A789,1)&N790","v":""},0]
[null,null,null,null,null,null,null,null,null,null,null,null,null,null,null,null,null,0,null,0,null,0,null,"","",{"$f":"LEFT(A789,1)&N791","v":""},0]
[null,null,null,null,null,null,null,null,null,null,null,null,null,null,null,null,null,0,null,0,null,0,null,"","",{"$f":"LEFT(A792,1)&N792","v":""},0]
[null,null,null,null,null,null,null,null,null,null,null,null,null,null,null,null,null,0,null,0,null,0,null,"","",{"$f":"LEFT(A792,1)&N793","v":""},0]
[null,null,null,null,null,null,null,null,null,null,null,null,null,null,null,null,null,0,null,0,null,0,null,"","",{"$f":"LEFT(A792,1)&N794","v":""},0]
[null,null,null,null,null,null,null,null,null,null,null,null,null,null,null,null,null,0,null,0,null,0,null,"","",{"$f":"LEFT(A795,1)&N795","v":""},0]
[null,null,null,null,null,null,null,null,null,null,null,null,null,null,null,null,null,0,null,0,null,0,null,"","",{"$f":"LEFT(A795,1)&N796","v":""},0]
[null,null,null,null,null,null,null,null,null,null,null,null,null,null,null,null,null,0,null,0,null,0,null,"","",{"$f":"LEFT(A795,1)&N797","v":""},0]
["Career and Technical Education Programs or Activities Funded",null,null,null,null,null,null,null,null,null,null,null,"Federal",null,{"$f":"SUMIF($N$686:$N$797,\"FED\",$O$686:$P$797)","v":631537.36}]
[null,null,null,null,null,null,null,null,null,null,null,null,"State",null,{"$f":"SUMIF($N$686:$N$797,\"ST\",$O$686:$P$797)","v":0}]
[null,null,null,null,null,null,null,null,null,null,null,null,"Local",null,{"$f":"SUMIF($N$686:$N$797,\"LOC\",$O$686:$P$797)","v":0}]
["Administration/Administrative Equipment Total from CTEMS Schedule 18 (Line 3)",null,null,null,null,null,null,null,null,null,null,null,null,null,{"$f":"SUM(L834)","v":25000}]
[]
["Grand Total Career and Technical Education Federal Budget",null,null,null,null,null,null,null,null,null,null,null,{"$f":"SUM(O798,O801)","v":656537.36}]
[]
[null,null,null,null,null,null,null,null,null,null,null,null,{"$f":"IF(SUM(AA686:AA797)>0.4*M803,\"40 percent maximum Permissive Use has been exceeded.\",\"\")","v":""}]
[]
[]
[]
[]
[]
[null,"                                        School Division:",null,null,null,null,{"$f":"T('Certification and Assurances'!$A$10:$G$10)","v":"HENRICO COUNTY PUBLIC SCHOOLS"},null,null,null,null,null,"Division Number:",null,null,{"$f":"'Certification and Assurances'!$I$10","v":43}]
[]
["CTEMS SCHEDULE 18"]
[]
["Administration/Administrative Equipment Funds and Budget Summary Worksheet"]
["2017-2018 Plan"]
[]
["(Administration/Administrative Equipment not to exceed five percent of the total federal grant)"]
[]
[null,"Administration - Description",null,null,null,null,null,null,null,null,null,"Amount"]
[null,"1000 - \nPersonal Services",null,"To hire an individual to perform administrative duties required by the Perkins Act regulations.",null,null,null,null,null,null,null,25000]
[null,"2000 -\nEmployee Benefits"]
[null,"3000 - Purchased Services"]
[null,"4000 -\nInternal Services"]
[null,"5000 -\nIndirect Cost"]
[null,"5000 -\nOther Charges"]
[null,"Line 1 Administration SUBTOTAL",null,null,null,null,null,null,null,null,null,{"$f":"SUM(L821:O826)","v":25000}]
[null,"Administrative Equipment - Description - (All Object Code 8000)",null,null,null,null,null,null,null,null,null,"Amount"]
[null,"8000 -\nCapital Outlay/Equip."]
[null,"8000 -\nCapital Outlay/Equip."]
[null,"8000 -\nCapital Outlay/Equip."]
[null,"Line 2 Administrative Equipment SUBTOTAL",null,null,null,null,null,null,null,null,null,{"$f":"SUM(L829:O831)","v":0}]
[null,"Administration/Administrative Equipment",null,null,null,null,null,null,null,null,null,"Amount"]
[null,"Line 3 Administration/Administrative Equipment TOTAL\n  (transfers to Schedule 17)",null,null,null,null,null,null,null,null,null,{"$f":"SUM(L832,L827)","v":25000}]
[]
[null,null,null,null,null,null,null,null,null,null,null,{"$f":"IF(L834=0,\"\",IF(L834>0.05*L857,\"Five Percent Administrative Cap has been Exceeded.\",\"\"))","v":""}]
[]
[]
[]
[null,"                                        School Division:",null,null,null,null,{"$f":"T('Certification and Assurances'!$A$10:$G$10)","v":"HENRICO COUNTY PUBLIC SCHOOLS"},null,null,null,null,null,"Division Number:",null,null,{"$f":"'Certification and Assurances'!$I$10","v":43}]
[]
["CTEMS SCHEDULE 18 (Continued from previous page)"]
["Administration/Administrative Equipment Funds and Budget Summary Worksheet"]
["2017-2018 Plan"]
[]
[]
[null,"SUMMARY BUDGET WORKSHEET\n(A summary of the budget worksheets relevant to plan objectives \nthat includes line items under the broad expenditures.)"]
[null,"Expenditure Categories",null,null,null,null,null,null,null,null,null,"Amount"]
[null,"See Appendix C for Object Code Definitions"]
[null,"1000 - Personal Services",null,null,null,null,null,null,null,null,null,{"$f":"SUMIF($L$686:$M$797,\"1000 - Personal Services\",$V$686:$W$797)+SUM(L821)","v":153973.16999999998}]
[null,"2000 - Employee Benefits",null,null,null,null,null,null,null,null,null,{"$f":"SUMIF($L$686:$M$797,\"2000 - Employee Benefits\",$V$686:$W$797)+SUM(L822)","v":73609.149999999994}]
[null,"3000 - Purchased Services",null,null,null,null,null,null,null,null,null,{"$f":"SUMIF($L$686:$M$797,\"3000 - Purchased Services\",$V$686:$W$797)+SUM(L823)","v":48628.26}]
[null,"4000 - Internal Services",null,null,null,null,null,null,null,null,null,{"$f":"SUMIF($L$686:$M$797,\"4000 - Internal Services\",$V$686:$W$797)+SUM(L824)","v":7773.67}]
[null,"5000 - Indirect Costs and Other Charges",null,null,null,null,null,null,null,null,null,{"$f":"SUMIF($L$686:$M$797,\"5000 - Other Charges\",$V$686:$W$797)+SUM(L825,L826)","v":18056.12}]
[null,"6000 – Materials and Supplies   (THIS IS NOT ALLOWED for Perkins funds.)",null,null,null,null,null,null,null,null,null,"NOT ALLOWED "]
[null,"8000 – Capital Outlay/Equipment",null,null,null,null,null,null,null,null,null,{"$f":"SUMIF($L$686:$M$797,\"8000 – Capital Outlay/Equipment\",$V$686:$W$797)+SUM(L832)","v":354496.99}]
[null,"TOTAL\nExpenditure Category Budget is calculated  from the CTEMS Schedule 17 Budget and CTEMS Schedule 18 Administration/Administrative Equipment Funds and Budget Summary Worksheet (Federal)",null,null,null,null,null,null,null,null,null,{"$f":"SUM(L850:O856)","v":656537.35999999987}]
[]
[null,null,null,null,null,null,null,null,null,null," "]
[null,"                                        School Division:",null,null,null,null,{"$f":"T('Certification and Assurances'!$A$10:$G$10)","v":"HENRICO COUNTY PUBLIC SCHOOLS"},null,null,null,null,null,"Division Number:"]
[]
["COMMENTS "]
[]
["2017-2018 Plan"]
[]
[null,"Please use this page for any additional comments you may have on any of the previous schedules.  Please identify the schedule number with the comments."]

{"sheet":"Prefills","index":5,"n_rows":151,"n_cols":28,"rows_kept":151,"cut":false,"hidden":true,"merged":[]}
["Name","Code",null,"check X",null,"GroupID",null,"Years",null,"SL",null,"Cluster_Areas",null,"Pathways",null,"Use_of_Funds","FSL",null,"i.  Agricultural Education",null,null,null,"1000 - Personal Services",null,null,"Original",null,"1S1-Reading"]
["ACCOMACK COUNTY PUBLIC SCHOOLS",1,null,"X",null,"P",null,"2007-2008",null,"State",null,"Agriculture, Food, & Natural Resources",null," Food Products and Processing Systems-Agriculture, Food and Natural Resources",null,"R1A--Strengthen skills of students through the integration of academics with career and technical education programs through a coherent sequence of courses, such as career and technical programs of study described in the section 122(c)(1)(A), to ensure learning in the core academic subjects (as defined in section 9101 of the Elementary and Secondary Education Act of 1965).","FED",null,"ii.  Business and Information Technology",null,null,null,"2000 - Employee Benefits",null,null,"Revision",null,"1S1-Reading-Special Populations"]
["ALBEMARLE COUNTY PUBLIC SCHOOLS",2,null,null,null,"S",null,"2008-2009",null,"Local",null,"Arts, A/V Technology & Communications",null," Plant Systems-Agriculture, Food and Natural Resources",null,"R1B--Strengthen skills of students through the integration of academics with career and technical education programs through a coherent sequence of courses, such as career and technical programs of study described in the section 122(c)(1)(A), to ensure learning in career and technical education subjects.","ST",null,"iii.  Career Connections",null,null,null,"3000 - Purchased Services",null,null,"Amendment",null,"1S1-Mathematics"]
["ALEXANDRIA CITY PUBLIC SCHOOLS",101,null,null,null,"T",null,"2009-2010",null,null,null,"Education & Training",null," Animal Systems-Agriculture, Food and Natural Resources",null,"R2--Link career and technical education at the secondary level and career and technical education at the postsecondary level, including by offering the relevant elements of not less than 1 career and technical program of study.","LOC",null,"iv.  Family and Consumer Sciences",null,null,null,"4000 - Internal Services",null,null,null,null,"1S1-Mathematics-Special Populations"]
["ALLEGHANY COUNTY PUBLIC SCHOOLS",3,null,null,null,"L",null,"2010-2011",null,null,null,"Government & Public Administration",null," Power, Structural and Technical Systems-Agriculture, Food and Natural Resources",null,"R3--Provide students with strong experience in and understanding of all aspects of an industry, which may include work-based learning experiences.",null,null,"v.  Health and Medical Sciences",null,null,null,"5000 - Other Charges",null,null,null,null,"2S1A-Student Competency Rate"]
["AMELIA COUNTY PUBLIC SCHOOLS",4,null,null,null,"W",null,"2011-2012",null,null,null,"Hospitality & Tourism",null," Natural Resources Systems-Agriculture, Food and Natural Resources",null,"R4A--Develop, improve, or expand the use of technology in career and technical education, which may include training of career and technical education teachers, faculty, and administrators to use technology, which may include distance learning.",null,null,"vi.  Marketing",null,null,null,"8000 – Capital Outlay/Equipment",null,null,null,null,"2S1A-Student Competency Rate-Special Populations"]
["AMELIA-NOTTOWAY VO-TECH CENTER",311,null,null,null,"B&I",null,"2012-2013",null,null,null,"Information Technology",null," Environmental Service Systems-Agriculture, Food and Natural Resources",null,"R4B--Develop, improve, or expand the use of technology in career and technical education, which may include providing career and technical education students with the academic and career and technical skills (including the mathematics and science knowledge that provides a strong basis for such skills) that lead to entry into the technology fields.",null,null,"vii.  Technology Education",null,null,null,null,null,null,null,null,"2S1B-Completers Participating in Credentialing Tests "]
["AMHERST COUNTY PUBLIC SCHOOLS",5,null,null,null,"CC",null,"2013-2014",null,null,null,"Manufacturing",null," Agribusiness Systems-Agriculture, Food and Natural Resources",null,"R4C--Develop, improve, or expand the use of technology in career and technical education, which may include encouraging schools to collaborate with technology industries to offer voluntary internships and mentoring programs, including programs that improve the mathematics and science knowledge of students.",null,null,"viii.  Trade and Industrial Education",null,null,null,null,null,null,null,null,"2S1B-Completers Participating in Credentialing Tests-Special Populations"]
["APPOMATTOX COUNTY PUBLIC SCHOOLS",6,null,null,null,"SP",null,"2014-2015",null,null,null,"Science, Technology, Engineering, & Mathematics",null,"Design/Pre-Construction-Architecture and Construction",null,"R5Ai--Provide sustained professional development programs that are consistent with section 122 to secondary and postsecondary teachers, faculty, administrators, and career guidance and academic counselors who are involved in integrated career and technical education programs, including in-service and preservice training on effective integration and use of challenging academic and career and technical education provided jointly with academic teachers to the extent practicable.",null,null,"ix.  All",null,null,null,null,null,null,null,null,"2S1C-Test Takers Passing Credentialing Tests "]
["ARLINGTON COUNTY PUBLIC SCHOOLS",7,null,null,null,"O",null,"2015-2016",null,null,null,"Architecture & Construction",null,"Construction-Architecture and Construction",null,"R5Aii--Provide sustained professional development programs that are consistent with section 122 to secondary and postsecondary teachers, faculty, administrators, and career guidance and academic counselors who are involved in integrated career and technical education programs, including in-service and preservice training on effective teaching skills based on research that includes promising practices.",null,null," ",null,null,null,null,null,null,null,null,"2S1C-Test Takers Passing Credentialing Tests-Special Populations"]
["AUGUSTA COUNTY PUBLIC SCHOOLS",8,null,null,null,"YesorNo",null,"2016-2017",null,null,null,"Business Management & Administration",null,"Maintenance/Operations-Architecture and Construction",null,"R5Aiii--Provide sustained professional development programs that are consistent with section 122 to secondary and postsecondary teachers, faculty, administrators, and career guidance and academic counselors who are involved in integrated career and technical education programs, including in-service and preservice training on effective practices to improve parental and community involvement.",null,null,null,null,null,null,null,null,null,null,null,"2S1D-Completers Passing Credential Test Rate"]
["BATH COUNTY PUBLIC SCHOOLS",9,null,null,null,"Yes",null,null,null,null,null,"Finance",null,"Audio and Video Technology and Film-Arts, Audio/Video Technology and Communications",null,"R5Aiv--Provide sustained professional development programs that are consistent with section 122 to secondary and postsecondary teachers, faculty, administrators, and career guidance and academic counselors who are involved in integrated career and technical education programs, including in-service and preservice training on effective use of scientifically based research and data to improve instruction.",null,null,null,null,null,null,null,null,null,null,null,"2S1D-Completers Passing Credential Test Rate-Special Populations"]
["BEDFORD CITY PUBLIC SCHOOLS",140,null,null,null,"No",null,null,null,null,null,"Health Science",null,"Printing Technology-Arts, Audio/Video Technology and Communications",null,"R5B--Provide sustained professional development programs that are consistent with section 122 to secondary and postsecondary teachers, faculty, administrators, and career guidance and academic counselors who are involved in integrated career and technical education programs, including support of education programs for teachers of career and technical education in public schools and other public school personnel who are involved in the direct delivery of educational services to career and technical education students, to ensure that such teachers and personnel stay current with all aspects of an industry.",null,null,null,null,null,null,null,null,null,null,null,"2S1E-College and Career Readiness"]
["BEDFORD COUNTY PUBLIC SCHOOLS",10,null,null,null,null,null,null,null,null,null,"Human Services",null,"Visual Arts-Arts, Audio/Video Technology and Communications",null,"R5C--Provide sustained professional development programs that are consistent with section 122 to secondary and postsecondary teachers, faculty, administrators, and career guidance and academic counselors who are involved in integrated career and technical education programs, including internship programs that provide relevant business experience.",null,null,null,null,null,null,null,null,null,null,null,"2S1E-College and Career Readiness-Special Populations"]
["BLAND COUNTY PUBLIC SCHOOLS",11,null,null,null,null,null,null,null,null,null,"Law, Public Safety, Corrections, & Security",null,"Performing Arts-Arts, Audio/Video Technology and Communications",null,"R5D--Provide sustained professional development programs that are consistent with section 122 to secondary and postsecondary teachers, faculty, administrators, and career guidance and academic counselors who are involved in integrated career and technical education programs, including programs designed to train teachers specifically in the effective use and application of technology to improve instruction.",null,null,null,null,null,null,null,null,null,null,null,"3S1-Secondary School Completion"]
["BOTETOURT COUNTY PUBLIC SCHOOLS",12,null,null,null,null,null,null,null,null,null,"Marketing",null,"Journalism and Broadcasting-Arts, Audio/Video Technology and Communications",null,"R6--Develop and implement evaluations of the career and technical education programs carried out with funds under this title, including an assessment of how the needs of special populations are being met.",null,null,null,null,null,null,null,null,null,null,null,"4S1-Graduation Rate"]
["BRIDGING COMMUNITIES REG. CTE CENTER",313,null,null,null,null,null,null,null,null,null,"Transportation, Distribution, & Logistics",null,"Telecommunications-Arts, Audio/Video Technology and Communications",null,"R7--Initiate, improve, expand, and modernize quality career and technical education programs, including relevant technology.",null,null,null,null,null,null,null,null,null,null,null,"5S1-Secondary Placement Rate"]
["BRISTOL CITY PUBLIC SCHOOLS",102,null,null,null,null,null,null,null,null,null,null,null,"General Management-Business Management and Administration",null,"R8--Provide services and activities that are of sufficient size, scope, and quality to be effective.",null,null,null,null,null,null,null,null,null,null,null,"5S1-Secondary Placement Rate-Special Populations"]
["BRUNSWICK COUNTY PUBLIC SCHOOLS",13,null,null,null,null,null,null,null,null,null,null,null,"Business Information Management-Business Management and Administration",null,"R9--Provide activities to prepare special populations, including single parents and displaced homemakers who are enrolled in career and technical education programs, for high skill, high wage, or high demand occupations that will lead to self-sufficiency.",null,null,null,null,null,null,null,null,null,null,null,"5S1-Program Completer Response Rate"]
["BUCHANAN COUNTY PUBLIC SCHOOLS",14,null,null,null,null,null,null,null,null,null,null,null,"Human Resources Management-Business Management and Administration",null,"P1--To involve parents, businesses, and labor organizations as appropriate, in the design, implementation, and evaluation of career and technical education programs authorized under this title, including establishing effective programs and procedures to enable informed and effective participation in such programs.",null,null,null,null,null,null,null,null,null,null,null,"6S1-Nontraditional Enrollment"]
["BUCKINGHAM COUNTY PUBLIC SCHOOLS",15,null,null,null,null,null,null,null,null,null,null,null,"Operations management-Business Management and Administration",null,"P2A--To provide career guidance and academic counseling, which may include information described in section 118, for students participating in career and technical education programs that improves graduation rates and provides information on postsecondary and career options, including baccalaureate degree programs, for secondary students, which activities may include the use of graduation and career plans.",null,null,null,null,null,null,null,null,null,null,null,"6S2-Nontraditional Completion"]
["BUENA VISTA CITY PUBLIC SCHOOLS",103,null,null,null,null,null,null,null,null,null,null,null,"Administrative Support-Business Management and Administration",null,"P2B--To provide career guidance and academic counseling, which may include information described in section 118, for students participating in career and technical education programs that provides assistance for postsecondary students, including for adult students who are changing careers or updating skills."]
["CAMPBELL COUNTY PUBLIC SCHOOLS",16,null,null,null,null,null,null,null,null,null,null,null,"Administration and Administrative Support-Education and Training",null,"P3A--For local education and business (including small business) partnerships, including for work-related experiences for students, such as internships, cooperative education, school-based enterprises, entrepreneurship, and job shadowing that are related to career and technical education programs. "]
["CAROLINE COUNTY PUBLIC SCHOOLS",17,null,null,null,null,null,null,null,null,null,null,null,"Professional Support Services-Education and Training",null,"P3B--For local education and business (including small business) partnerships, including for adjunct faculty arrangements for qualified industry professionals."]
["CARROLL COUNTY PUBLIC SCHOOLS",18,null,null,null,null,null,null,null,null,null,null,null,"Teaching/Training-Education and Training",null,"P3C--For local education and business (including small business) partnerships, including for industry experience for teachers and faculty."]
["CHARLES CITY COUNTY PUBLIC SCHOOLS",19,null,null,null,null,null,null,null,null,null,null,null,"Securities and Investments-Finance",null,"P4--To provide programs for special populations."]
["CHARLOTTE COUNTY PUBLIC SCHOOLS",20,null,null,null,null,null,null,null,null,null,null,null,"Business Finance-Finance",null,"P5--To assist career and technical student organizations."]
["CHARLOTTESVILLE CITY PUBLIC SCHOOLS",104,null,null,null,null,null,null,null,null,null,null,null,"Accounting-Finance",null,"P6--For mentoring and support services."]
["CHARLOTTESVILLE-ALBEMARLE VTC",301,null,null,null,null,null,null,null,null,null,null,null,"Insurance-Finance",null,"P7--For leasing, purchasing, upgrading or adapting equipment, including instructional aids and publications (including support for library resources) designed to strengthen and support academic and technical skill achievement."]
["CHESAPEAKE CITY PUBLIC SCHOOLS",136,null,null,null,null,null,null,null,null,null,null,null,"Banking Services-Finance",null,"P8--For teacher preparation programs that address the integration of academic and career and technical education and that assist individuals who are interested in becoming career and technical education teachers and faculty, including individuals with experience in business and industry."]
["CHESTERFIELD COUNTY PUBLIC SCHOOLS",21,null,null,null,null,null,null,null,null,null,null,null,"Governance-Government and Public Administration",null,"P9--To develop and expand accessible postsecondary program offerings at times and in formats that are accessible for students, including working students, including through the use of distance education."]
["CLARKE COUNTY PUBLIC SCHOOLS",22,null,null,null,null,null,null,null,null,null,null,null,"National Security-Government and Public Administration",null,"P10A--To develop initiatives that facilitate the transition of sub-baccalaureate career and technical education students into baccalaureate degree programs, including articulation agreements between sub-baccalaureate degree granting career and technical education postsecondary educational institutions and baccalaureate degree granting postsecondary educational institutions."]
["CLIFTON FORGE CITY",105,null,null,null,null,null,null,null,null,null,null,null,"Foreign Service-Government and Public Administration",null,"P10B--To develop initiatives that facilitate the transition of sub-baccalaureate career and technical education students into baccalaureate degree programs, including postsecondary dual and concurrent enrollment programs."]
["COLONIAL BEACH TOWN PUBLIC SCHOOLS",202,null,null,null,null,null,null,null,null,null,null,null,"Planning-Government and Public Administration",null,"P10C--To develop initiatives that facilitate the transition of sub-baccalaureate career and technical education students into baccalaureate degree programs, including academic and financial aid counseling for sub-baccalaureate career and technical education students that informs the students of the opportunities for pursuing a baccalaureate degree and advises the students on how to meet any transfer requirements."]
["COLONIAL HEIGHTS CITY PUBLIC SCHOOLS",106,null,null,null,null,null,null,null,null,null,null,null,"Revenue and Taxation-Government and Public Administration",null,"P10DI--To develop initiatives that facilitate the transition of sub-baccalaureate career and technical education students into baccalaureate degree programs, including other initiatives to encourage the pursuit of a baccalaureate degree."]
["COVINGTON CITY PUBLIC SCHOOLS",107,null,null,null,null,null,null,null,null,null,null,null,"Regulation-Government and Public Administration",null,"P10DII--To develop initiatives that facilitate the transition of sub-baccalaureate career and technical education students into baccalaureate degree programs, including other initiatives to overcome barriers to enrollment in and completion of baccalaureate degree programs, including geographic and other barriers affecting rural students and special populations."]
["CRAIG COUNTY PUBLIC SCHOOLS",23,null,null,null,null,null,null,null,null,null,null,null,"Public Management and Administration-Government and Public Administration",null,"P11--To provide activities to support entrepreneurship education and training."]
["CULPEPER COUNTY PUBLIC SCHOOLS",24,null,null,null,null,null,null,null,null,null,null,null,"Therapeutic Services-Health Science",null,"P12--For improving or developing new career and technical education courses, including the development of new proposed career and technical programs of study for consideration by the eligible agency and courses that prepare individuals academically and technically for high skill, high wage, or high demand occupations and dual or concurrent enrollment opportunities by which career and technical education students at the secondary level could obtain postsecondary credit to count towards an associate or baccalaureate degree."]
["CUMBERLAND COUNTY PUBLIC SCHOOLS",25,null,null,null,null,null,null,null,null,null,null,null,"Diagnostic Services-Health Science",null,"P13--To develop and support small, personalized career-themed learning communities."]
["DANVILLE CITY PUBLIC SCHOOLS",108,null,null,null,null,null,null,null,null,null,null,null,"Health Informatics-Health Science",null,"P14--To provide support for family and consumer sciences programs."]
["DEPARTMENT OF CORRECTIONS",930,null,null,null,null,null,null,null,null,null,null,null,"Support Services-Health Science",null,"P15--To provide career and technical education programs for adults and school dropouts to complete the secondary school education, or upgrade the technical skills, of the adults and school dropouts."]
["DEPARTMENT OF JUVENILE JUSTICE",917,null,null,null,null,null,null,null,null,null,null,null,"Biotechnology Research and Development-Health Science",null,"P16--To provide assistance to individuals who have participated in services and activities under this Act in continuing their education or training or finding an appropriate job, such as through referral to the system established under section 121 of Public Law 105-220 (29 U.S.C. 2801 et seq.)."]
["DICKENSON COUNTY PUBLIC SCHOOLS",26,null,null,null,null,null,null,null,null,null,null,null,"Restaurants and Food/Beverage Services-Hospitality and Tourism",null,"P17--To support training and activities (such as mentoring and outreach) in non-traditional fields."]
["DINWIDDIE COUNTY PUBLIC SCHOOLS",27,null,null,null,null,null,null,null,null,null,null,null,"Lodging-Hospitality and Tourism",null,"P18--To provide support for training programs in automotive technologies."]
["EMPORIA CITY PUBLIC SCHOOLS",138,null,null,null,null,null,null,null,null,null,null,null,"Travel and Tourism-Hospitality and Tourism",null,"P19A--To pool a portion of such funds with a portion of funds available to not less than 1 other eligible recipient for innovative initiatives, which may include improving the initial preparation and professional development of career and technical education teachers, faculty, administrators, and counselors."]
["ESSEX COUNTY PUBLIC SCHOOLS",28,null,null,null,null,null,null,null,null,null,null,null,"Recreation, Amusements and Attractions-Hospitality and Tourism",null,"P19Bi--To pool a portion of such funds with a portion of funds available to not less than 1 other eligible recipient for innovative initiatives, which may include establishing, enhancing, or supporting systems for accountability data collection under this Act."]
["FAIRFAX CITY PUBLIC SCHOOLS",134,null,null,null,null,null,null,null,null,null,null,null,"Early Childhood Development and Services-Human Services",null,"P19Bii--To pool a portion of such funds with a portion of funds available to not less than 1 other eligible recipient for innovative initiatives, which may include establishing, enhancing, or supporting systems for reporting data under this Act."]
["FAIRFAX COUNTY PUBLIC SCHOOLS",29,null,null,null,null,null,null,null,null,null,null,null,"Counseling and Mental Health Services-Human Services",null,"P19C--To pool a portion of such funds with a portion of funds available to not less than 1 other eligible recipient for innovative initiatives, which may include implementing career and technical programs of study described in section 122(c)(1)(A)."]
["FALLS CHURCH CITY PUBLIC SCHOOLS",109,null,null,null,null,null,null,null,null,null,null,null,"Family and Community Services-Human Services",null,"P19D--To pool a portion of such funds with a portion of funds available to not less than 1 other eligible recipient for innovative initiatives, which may include implementing technical assessments."]
["FAUQUIER COUNTY PUBLIC SCHOOLS",30,null,null,null,null,null,null,null,null,null,null,null,"Personal Care Services-Human Services",null,"P20--To support other career and technical education activities that are consistent with the purpose of this Act."]
["FLOYD COUNTY PUBLIC SCHOOLS",31,null,null,null,null,null,null,null,null,null,null,null,"Consumer Services-Human Services"]
["FLUVANNA COUNTY PUBLIC SCHOOLS",32,null,null,null,null,null,null,null,null,null,null,null,"Network Systems-Information Technology"]
["FRANKLIN CITY PUBLIC SCHOOLS",135,null,null,null,null,null,null,null,null,null,null,null,"Information Support and Services-Information Technology"]
["FRANKLIN COUNTY PUBLIC SCHOOLS",33,null,null,null,null,null,null,null,null,null,null,null,"Web and Digital Communications-Information Technology"]
["FREDERICK COUNTY PUBLIC SCHOOLS",34,null,null,null,null,null,null,null,null,null,null,null,"Programming and Software Development-Information Technology"]
["FREDERICKSBURG CITY PUBLIC SCHOOLS",110,null,null,null,null,null,null,null,null,null,null,null,"Correction Services-Law, Public Safety, Corrections and Security"]
["GALAX CITY PUBLIC SCHOOLS",111,null,null,null,null,null,null,null,null,null,null,null,"Emergency and Fire Management Services-Law, Public Safety, Corrections and Security"]
["GILES COUNTY PUBLIC SCHOOLS",35,null,null,null,null,null,null,null,null,null,null,null,"Security and Protective Services-Law, Public Safety, Corrections and Security"]
["GLOUCESTER COUNTY PUBLIC SCHOOLS",36,null,null,null,null,null,null,null,null,null,null,null,"Law Enforcement Services-Law, Public Safety, Corrections and Security"]
["GOOCHLAND COUNTY PUBLIC SCHOOLS",37,null,null,null,null,null,null,null,null,null,null,null,"Legal Services-Law, Public Safety, Corrections and Security"]
["GRAYSON COUNTY PUBLIC SCHOOLS",38,null,null,null,null,null,null,null,null,null,null,null,"Production-Manufacturing"]
["GREENE COUNTY PUBLIC SCHOOLS",39,null,null,null,null,null,null,null,null,null,null,null,"Manufacturing Production Process Development-Manufacturing"]
["GREENSVILLE COUNTY PUBLIC SCHOOLS",40,null,null,null,null,null,null,null,null,null,null,null,"Maintenance, Installation and Repair-Manufacturing"]
["HALIFAX COUNTY PUBLIC SCHOOLS",41,null,null,null,null,null,null,null,null,null,null,null,"Quality Assurance-Manufacturing"]
["HAMPTON CITY PUBLIC SCHOOLS",112,null,null,null,null,null,null,null,null,null,null,null,"Logistics and Inventory Control-Manufacturing"]
["HANOVER COUNTY PUBLIC SCHOOLS",42,null,null,null,null,null,null,null,null,null,null,null,"Health, Safety and Environmental Assurance-Manufacturing"]
["HARRISONBURG CITY PUBLIC SCHOOLS",113,null,null,null,null,null,null,null,null,null,null,null,"Marketing Management-Marketing"]
["HENRICO COUNTY PUBLIC SCHOOLS",43,null,null,null,null,null,null,null,null,null,null,null,"Professional Sales-Marketing"]
["HENRY COUNTY PUBLIC SCHOOLS",44,null,null,null,null,null,null,null,null,null,null,null,"Merchandising-Marketing"]
["HIGHLAND COUNTY PUBLIC SCHOOLS",45,null,null,null,null,null,null,null,null,null,null,null,"Marketing Communications-Marketing"]
["HOPEWELL CITY PUBLIC SCHOOLS",114,null,null,null,null,null,null,null,null,null,null,null,"Marketing Research-Marketing"]
["ISLE OF WIGHT COUNTY PUBLIC SCHOOLS",46,null,null,null,null,null,null,null,null,null,null,null,"Engineering and Technology-Science, Technology, Engineering and Mathematics"]
["JACKSON RIVER VOCATIONAL CENTER",302,null,null,null,null,null,null,null,null,null,null,null,"Science and Math-Science, Technology, Engineering and Mathematics"]
["JAMES CITY COUNTY PUBLIC SCHOOLS",47,null,null,null,null,null,null,null,null,null,null,null,"Transportation Operations-Transportation, Distribution and Logistics"]
["KING AND QUEEN COUNTY PUBLIC SCHOOLS",49,null,null,null,null,null,null,null,null,null,null,null,"Logistics Planning and Management Services-Transportation, Distribution and Logistics"]
["KING GEORGE COUNTY PUBLIC SCHOOLS",48,null,null,null,null,null,null,null,null,null,null,null,"Warehousing and Distribution Center Operations-Transportation, Distribution and Logistics"]
["KING WILLIAM COUNTY PUBLIC SCHOOLS",50,null,null,null,null,null,null,null,null,null,null,null,"Facility and Mobile Equipment Maintenance-Transportation, Distribution and Logistics"]
["LANCASTER COUNTY PUBLIC SCHOOLS",51,null,null,null,null,null,null,null,null,null,null,null,"Transportation Systems/Infrastructure Planning, Ma-Transportation, Distribution and Logistics"]
["LEE COUNTY PUBLIC SCHOOLS",52,null,null,null,null,null,null,null,null,null,null,null,"Health, Safety and Environmental Management-Transportation, Distribution and Logistics"]
["LEXINGTON CITY PUBLIC SCHOOLS",137,null,null,null,null,null,null,null,null,null,null,null,"Sales and Service-Transportation, Distribution and Logistics"]
["LOUDOUN COUNTY PUBLIC SCHOOLS",53]
["LOUISA COUNTY PUBLIC SCHOOLS",54]
["LUNENBURG COUNTY PUBLIC SCHOOLS",55]
["LYNCHBURG CITY PUBLIC SCHOOLS",115]
["MADISON COUNTY PUBLIC SCHOOLS",56]
["MANASSAS CITY PUBLIC SCHOOLS",143]
["MANASSAS PARK CITY PUBLIC SCHOOLS",144]
["MARTINSVILLE CITY PUBLIC SCHOOLS",116]
["MASSANUTTEN VOCATIONAL CENTER",304]
["MATHEWS COUNTY PUBLIC SCHOOLS",57]
["MECKLENBURG COUNTY PUBLIC SCHOOLS",58]
["MIDDLESEX COUNTY PUBLIC SCHOOLS",59]
["MONTGOMERY COUNTY PUBLIC SCHOOLS",60]
["NELSON COUNTY PUBLIC SCHOOLS",62]
["NEW HORIZONS TECHNICAL CENTER",307]
["NEW KENT COUNTY PUBLIC SCHOOLS",63]
["NEWPORT NEWS CITY PUBLIC SCHOOLS",117]
["NORFOLK CITY PUBLIC SCHOOLS",118]
["NORTHAMPTON COUNTY PUBLIC SCHOOLS",65]
["NORTHERN NECK VOCATIONAL CENTER",310]
["NORTHUMBERLAND COUNTY PUBLIC SCHOOLS",66]
["NORTON CITY PUBLIC SCHOOLS",119]
["NOTTOWAY COUNTY PUBLIC SCHOOLS",67]
["ORANGE COUNTY PUBLIC SCHOOLS",68]
["P.D. PRUDEN VOC-TECH CENTER",308]
["PAGE COUNTY PUBLIC SCHOOLS",69]
["PATRICK COUNTY PUBLIC SCHOOLS",70]
["PETERSBURG CITY PUBLIC SCHOOLS",120]
["PITTSYLVANIA COUNTY PUBLIC SCHOOLS",71]
["POQUOSON CITY PUBLIC SCHOOLS",142]
["PORTSMOUTH CITY PUBLIC SCHOOLS",121]
["POWHATAN COUNTY PUBLIC SCHOOLS",72]
["PRINCE EDWARD COUNTY PUBLIC SCHOOLS",73]
["PRINCE GEORGE COUNTY PUBLIC SCHOOLS",74]
["PRINCE WILLIAM COUNTY PUBLIC SCHOOLS",75]
["PULASKI COUNTY PUBLIC SCHOOLS",77]
["RADFORD CITY PUBLIC SCHOOLS",122]
["RAPPAHANNOCK COUNTY PUBLIC SCHOOLS",78]
["RICHMOND CITY PUBLIC SCHOOLS",123]
["RICHMOND COUNTY PUBLIC SCHOOLS",79]
["ROANOKE CITY PUBLIC SCHOOLS",124]
["ROANOKE COUNTY PUBLIC SCHOOLS",80]
["ROCKBRIDGE COUNTY PUBLIC SCHOOLS",81]
["ROCKINGHAM COUNTY PUBLIC SCHOOLS",82]
["ROWANTY VOCATIONAL-TECH CENTER",309]
["RUSSELL COUNTY PUBLIC SCHOOLS",83]
["SALEM CITY PUBLIC SCHOOLS",139]
["SCOTT COUNTY PUBLIC SCHOOLS",84]
["SHENANDOAH COUNTY PUBLIC SCHOOLS",85]
["SMYTH COUNTY PUBLIC SCHOOLS",86]
["SOUTHAMPTON COUNTY PUBLIC SCHOOLS",87]
["SPOTSYLVANIA COUNTY PUBLIC SCHOOLS",88]
["STAFFORD COUNTY PUBLIC SCHOOLS",89]
["STAUNTON CITY PUBLIC SCHOOLS",126]
["SUFFOLK CITY PUBLIC SCHOOLS",127]
["SURRY COUNTY PUBLIC SCHOOLS",90]
["SUSSEX COUNTY PUBLIC SCHOOLS",91]
["TAZEWELL COUNTY PUBLIC SCHOOLS",92]
["VALLEY VOCATIONAL-TECHNICAL CENTER",306]
["VIRGINIA BEACH CITY PUBLIC SCHOOLS",128]
["VIRGINIA COMMUNITY COLLEGE SYSTEMS",854]
["WARREN COUNTY PUBLIC SCHOOLS",93]
["WASHINGTON COUNTY PUBLIC SCHOOLS",94]
["WAYNESBORO CITY PUBLIC SCHOOLS",130]
["WEST POINT TOWN PUBLIC SCHOOLS",207]
["WESTMORELAND COUNTY PUBLIC SCHOOLS",95]
["WILLIAMSBURG CITY PUBLIC SCHOOLS",131]
["WINCHESTER CITY PUBLIC SCHOOLS",132]
["WISE COUNTY PUBLIC SCHOOLS",96]
["WYTHE COUNTY PUBLIC SCHOOLS",97]
["YORK COUNTY PUBLIC SCHOOLS",98]

{"sheet":"Sheet1","index":6,"n_rows":129,"n_cols":18,"rows_kept":129,"cut":false,"hidden":true,"merged":[]}
[null,"Agriculture, Food and Natural Resources"]
["Agriculture, Food and Natural Resources","o        Food Products and Processing Systems",null,null,null,null,null,null,{"$f":"A2&B2","v":"Agriculture, Food and Natural Resourceso        Food Products and Processing Systems"},null,null,null,null,null,null,null,null,{"$f":"MID(B2,9,50)&\"-\"&A2","v":" Food Products and Processing Systems-Agriculture, Food and Natural Resources"}]
["Agriculture, Food and Natural Resources","o        Plant Systems",null,null,null,null,null,null,{"$f":"A3&B3","v":"Agriculture, Food and Natural Resourceso        Plant Systems"},null,null,null,null,null,null,null,null,{"$f":"MID(B3,9,50)&\"-\"&A3","v":" Plant Systems-Agriculture, Food and Natural Resources"}]
["Agriculture, Food and Natural Resources","o        Animal Systems",null,null,null,null,null,null,"Agriculture, Food and Natural Resourceso        Animal Systems",null,null,null,null,null,null,null,null," Animal Systems-Agriculture, Food and Natural Resources"]
["Agriculture, Food and Natural Resources","o        Power, Structural and Technical Systems",null,null,null,null,null,null,"Agriculture, Food and Natural Resourceso        Power, Structural and Technical Systems",null,null,null,null,null,null,null,null," Power, Structural and Technical Systems-Agriculture, Food and Natural Resources"]
["Agriculture, Food and Natural Resources","o        Natural Resources Systems",null,null,null,null,null,null,"Agriculture, Food and Natural Resourceso        Natural Resources Systems",null,null,null,null,null,null,null,null," Natural Resources Systems-Agriculture, Food and Natural Resources"]
["Agriculture, Food and Natural Resources","o        Environmental Service Systems",null,null,null,null,null,null,"Agriculture, Food and Natural Resourceso        Environmental Service Systems",null,null,null,null,null,null,null,null," Environmental Service Systems-Agriculture, Food and Natural Resources"]
["Agriculture, Food and Natural Resources","o        Agribusiness Systems",null,null,null,null,null,null,"Agriculture, Food and Natural Resourceso        Agribusiness Systems",null,null,null,null,null,null,null,null," Agribusiness Systems-Agriculture, Food and Natural Resources"]
["Architecture and Construction","o       Design/Pre-Construction",null,null,null,null,null,null,"Architecture and Constructiono       Design/Pre-Construction",null,null,null,null,null,null,null,null,"Design/Pre-Construction-Architecture and Construction"]
["Architecture and Construction","o       Construction",null,null,null,null,null,null,"Architecture and Constructiono       Construction",null,null,null,null,null,null,null,null,"Construction-Architecture and Construction"]
["Architecture and Construction","o       Maintenance/Operations",null,null,null,null,null,null,"Architecture and Constructiono       Maintenance/Operations",null,null,null,null,null,null,null,null,"Maintenance/Operations-Architecture and Construction"]
["Arts, Audio/Video Technology and Communications","o       Audio and Video Technology and Film",null,null,null,null,null,null,"Arts, Audio/Video Technology and Communicationso       Audio and Video Technology and Film",null,null,null,null,null,null,null,null,"Audio and Video Technology and Film-Arts, Audio/Video Technology and Communications"]
["Arts, Audio/Video Technology and Communications","o       Printing Technology",null,null,null,null,null,null,"Arts, Audio/Video Technology and Communicationso       Printing Technology",null,null,null,null,null,null,null,null,"Printing Technology-Arts, Audio/Video Technology and Communications"]
["Arts, Audio/Video Technology and Communications","o       Visual Arts",null,null,null,null,null,null,"Arts, Audio/Video Technology and Communicationso       Visual Arts",null,null,null,null,null,null,null,null,"Visual Arts-Arts, Audio/Video Technology and Communications"]
["Arts, Audio/Video Technology and Communications","o       Performing Arts",null,null,null,null,null,null,"Arts, Audio/Video Technology and Communicationso       Performing Arts",null,null,null,null,null,null,null,null,"Performing Arts-Arts, Audio/Video Technology and Communications"]
["Arts, Audio/Video Technology and Communications","o       Journalism and Broadcasting",null,null,null,null,null,null,"Arts, Audio/Video Technology and Communicationso       Journalism and Broadcasting",null,null,null,null,null,null,null,null,"Journalism and Broadcasting-Arts, Audio/Video Technology and Communications"]
["Arts, Audio/Video Technology and Communications","o       Telecommunications",null,null,null,null,null,null,"Arts, Audio/Video Technology and Communicationso       Telecommunications",null,null,null,null,null,null,null,null,"Telecommunications-Arts, Audio/Video Technology and Communications"]
["Business Management and Administration","o       General Management",null,null,null,null,null,null,"Business Management and Administrationo       General Management",null,null,null,null,null,null,null,null,"General Management-Business Management and Administration"]
["Business Management and Administration","o       Business Information Management",null,null,null,null,null,null,"Business Management and Administrationo       Business Information Management",null,null,null,null,null,null,null,null,"Business Information Management-Business Management and Administration"]
["Business Management and Administration","o       Human Resources Management",null,null,null,null,null,null,"Business Management and Administrationo       Human Resources Management",null,null,null,null,null,null,null,null,"Human Resources Management-Business Management and Administration"]
["Business Management and Administration","o       Operations management",null,null,null,null,null,null,"Business Management and Administrationo       Operations management",null,null,null,null,null,null,null,null,"Operations management-Business Management and Administration"]
["Business Management and Administration","o       Administrative Support",null,null,null,null,null,null,"Business Management and Administrationo       Administrative Support",null,null,null,null,null,null,null,null,"Administrative Support-Business Management and Administration"]
["Education and Training","o       Administration and Administrative Support",null,null,null,null,null,null,"Education and Trainingo       Administration and Administrative Support",null,null,null,null,null,null,null,null,"Administration and Administrative Support-Education and Training"]
["Education and Training","o       Professional Support Services",null,null,null,null,null,null,"Education and Trainingo       Professional Support Services",null,null,null,null,null,null,null,null,"Professional Support Services-Education and Training"]
["Education and Training","o       Teaching/Training",null,null,null,null,null,null,"Education and Trainingo       Teaching/Training",null,null,null,null,null,null,null,null,"Teaching/Training-Education and Training"]
["Finance","o       Securities and Investments",null,null,null,null,null,null,"Financeo       Securities and Investments",null,null,null,null,null,null,null,null,"Securities and Investments-Finance"]
["Finance","o       Business Finance",null,null,null,null,null,null,"Financeo       Business Finance",null,null,null,null,null,null,null,null,"Business Finance-Finance"]
["Finance","o       Accounting",null,null,null,null,null,null,"Financeo       Accounting",null,null,null,null,null,null,null,null,"Accounting-Finance"]
["Finance","o       Insurance",null,null,null,null,null,null,"Financeo       Insurance",null,null,null,null,null,null,null,null,"Insurance-Finance"]
["Finance","o       Banking Services",null,null,null,null,null,null,"Financeo       Banking Services",null,null,null,null,null,null,null,null,"Banking Services-Finance"]
["Government and Public Administration","o       Governance",null,null,null,null,null,null,"Government and Public Administrationo       Governance",null,null,null,null,null,null,null,null,"Governance-Government and Public Administration"]
["Government and Public Administration","o       National Security",null,null,null,null,null,null,"Government and Public Administrationo       National Security",null,null,null,null,null,null,null,null,"National Security-Government and Public Administration"]
["Government and Public Administration","o       Foreign Service",null,null,null,null,null,null,"Government and Public Administrationo       Foreign Service",null,null,null,null,null,null,null,null,"Foreign Service-Government and Public Administration"]
["Government and Public Administration","o       Planning",null,null,null,null,null,null,"Government and Public Administrationo       Planning",null,null,null,null,null,null,null,null,"Planning-Government and Public Administration"]
["Government and Public Administration","o       Revenue and Taxation",null,null,null,null,null,null,"Government and Public Administrationo       Revenue and Taxation",null,null,null,null,null,null,null,null,"Revenue and Taxation-Government and Public Administration"]
["Government and Public Administration","o       Regulation",null,null,null,null,null,null,"Government and Public Administrationo       Regulation",null,null,null,null,null,null,null,null,"Regulation-Government and Public Administration"]
["Government and Public Administration","o       Public Management and Administration",null,null,null,null,null,null,"Government and Public Administrationo       Public Management and Administration",null,null,null,null,null,null,null,null,"Public Management and Administration-Government and Public Administration"]
["Health Science","o       Therapeutic Services",null,null,null,null,null,null,"Health Scienceo       Therapeutic Services",null,null,null,null,null,null,null,null,"Therapeutic Services-Health Science"]
["Health Science","o       Diagnostic Services",null,null,null,null,null,null,"Health Scienceo       Diagnostic Services",null,null,null,null,null,null,null,null,"Diagnostic Services-Health Science"]
["Health Science","o       Health Informatics",null,null,null,null,null,null,"Health Scienceo       Health Informatics",null,null,null,null,null,null,null,null,"Health Informatics-Health Science"]
["Health Science","o       Support Services",null,null,null,null,null,null,"Health Scienceo       Support Services",null,null,null,null,null,null,null,null,"Support Services-Health Science"]
["Health Science","o       Biotechnology Research and Development",null,null,null,null,null,null,"Health Scienceo       Biotechnology Research and Development",null,null,null,null,null,null,null,null,"Biotechnology Research and Development-Health Science"]
["Hospitality and Tourism","o       Restaurants and Food/Beverage Services",null,null,null,null,null,null,"Hospitality and Tourismo       Restaurants and Food/Beverage Services",null,null,null,null,null,null,null,null,"Restaurants and Food/Beverage Services-Hospitality and Tourism"]
["Hospitality and Tourism","o       Lodging",null,null,null,null,null,null,"Hospitality and Tourismo       Lodging",null,null,null,null,null,null,null,null,"Lodging-Hospitality and Tourism"]
["Hospitality and Tourism","o       Travel and Tourism",null,null,null,null,null,null,"Hospitality and Tourismo       Travel and Tourism",null,null,null,null,null,null,null,null,"Travel and Tourism-Hospitality and Tourism"]
["Hospitality and Tourism","o       Recreation, Amusements and Attractions",null,null,null,null,null,null,"Hospitality and Tourismo       Recreation, Amusements and Attractions",null,null,null,null,null,null,null,null,"Recreation, Amusements and Attractions-Hospitality and Tourism"]
["Human Services","o       Early Childhood Development and Services",null,null,null,null,null,null,"Human Serviceso       Early Childhood Development and Services",null,null,null,null,null,null,null,null,"Early Childhood Development and Services-Human Services"]
["Human Services","o       Counseling and Mental Health Services",null,null,null,null,null,null,"Human Serviceso       Counseling and Mental Health Services",null,null,null,null,null,null,null,null,"Counseling and Mental Health Services-Human Services"]
["Human Services","o       Family and Community Services",null,null,null,null,null,null,"Human Serviceso       Family and Community Services",null,null,null,null,null,null,null,null,"Family and Community Services-Human Services"]
["Human Services","o       Personal Care Services",null,null,null,null,null,null,"Human Serviceso       Personal Care Services",null,null,null,null,null,null,null,null,"Personal Care Services-Human Services"]
["Human Services","o       Consumer Services",null,null,null,null,null,null,"Human Serviceso       Consumer Services",null,null,null,null,null,null,null,null,"Consumer Services-Human Services"]
["Information Technology","o       Network Systems",null,null,null,null,null,null,"Information Technologyo       Network Systems",null,null,null,null,null,null,null,null,"Network Systems-Information Technology"]
["Information Technology","o       Information Support and Services",null,null,null,null,null,null,"Information Technologyo       Information Support and Services",null,null,null,null,null,null,null,null,"Information Support and Services-Information Technology"]
["Information Technology","o       Web and Digital Communications",null,null,null,null,null,null,"Information Technologyo       Web and Digital Communications",null,null,null,null,null,null,null,null,"Web and Digital Communications-Information Technology"]
["Information Technology","o       Programming and Software Development",null,null,null,null,null,null,"Information Technologyo       Programming and Software Development",null,null,null,null,null,null,null,null,"Programming and Software Development-Information Technology"]
["Law, Public Safety, Corrections and Security","o       Correction Services",null,null,null,null,null,null,"Law, Public Safety, Corrections and Securityo       Correction Services",null,null,null,null,null,null,null,null,"Correction Services-Law, Public Safety, Corrections and Security"]
["Law, Public Safety, Corrections and Security","o       Emergency and Fire Management Services",null,null,null,null,null,null,"Law, Public Safety, Corrections and Securityo       Emergency and Fire Management Services",null,null,null,null,null,null,null,null,"Emergency and Fire Management Services-Law, Public Safety, Corrections and Security"]
["Law, Public Safety, Corrections and Security","o       Security and Protective Services",null,null,null,null,null,null,"Law, Public Safety, Corrections and Securityo       Security and Protective Services",null,null,null,null,null,null,null,null,"Security and Protective Services-Law, Public Safety, Corrections and Security"]
["Law, Public Safety, Corrections and Security","o       Law Enforcement Services",null,null,null,null,null,null,"Law, Public Safety, Corrections and Securityo       Law Enforcement Services",null,null,null,null,null,null,null,null,"Law Enforcement Services-Law, Public Safety, Corrections and Security"]
["Law, Public Safety, Corrections and Security","o       Legal Services",null,null,null,null,null,null,"Law, Public Safety, Corrections and Securityo       Legal Services",null,null,null,null,null,null,null,null,"Legal Services-Law, Public Safety, Corrections and Security"]
["Manufacturing","o       Production",null,null,null,null,null,null,"Manufacturingo       Production",null,null,null,null,null,null,null,null,"Production-Manufacturing"]
["Manufacturing","o       Manufacturing Production Process Development",null,null,null,null,null,null,"Manufacturingo       Manufacturing Production Process Development",null,null,null,null,null,null,null,null,"Manufacturing Production Process Development-Manufacturing"]
["Manufacturing","o       Maintenance, Installation and Repair",null,null,null,null,null,null,"Manufacturingo       Maintenance, Installation and Repair",null,null,null,null,null,null,null,null,"Maintenance, Installation and Repair-Manufacturing"]
["Manufacturing","o       Quality Assurance",null,null,null,null,null,null,"Manufacturingo       Quality Assurance",null,null,null,null,null,null,null,null,"Quality Assurance-Manufacturing"]
["Manufacturing","o       Logistics and Inventory Control",null,null,null,null,null,null,"Manufacturingo       Logistics and Inventory Control",null,null,null,null,null,null,null,null,"Logistics and Inventory Control-Manufacturing"]
["Manufacturing","o       Health, Safety and Environmental Assurance",null,null,null,null,null,null,"Manufacturingo       Health, Safety and Environmental Assurance",null,null,null,null,null,null,null,null,"Health, Safety and Environmental Assurance-Manufacturing"]
["Marketing","o       Marketing Management",null,null,null,null,null,null,{"$f":"A67&B67","v":"Marketingo       Marketing Management"},null,null,null,null,null,null,null,null,{"$f":"MID(B67,9,50)&\"-\"&A67","v":"Marketing Management-Marketing"}]
["Marketing","o       Professional Sales",null,null,null,null,null,null,"Marketingo       Professional Sales",null,null,null,null,null,null,null,null,"Professional Sales-Marketing"]
["Marketing","o       Merchandising",null,null,null,null,null,null,"Marketingo       Merchandising",null,null,null,null,null,null,null,null,"Merchandising-Marketing"]
["Marketing","o       Marketing Communications",null,null,null,null,null,null,"Marketingo       Marketing Communications",null,null,null,null,null,null,null,null,"Marketing Communications-Marketing"]
["Marketing","o       Marketing Research",null,null,null,null,null,null,{"$f":"A71&B71","v":"Marketingo       Marketing Research"},null,null,null,null,null,null,null,null,"Marketing Research-Marketing"]
["Science, Technology, Engineering and Mathematics","o       Engineering and Technology",null,null,null,null,null,null,"Science, Technology, Engineering and Mathematicso       Engineering and Technology",null,null,null,null,null,null,null,null,"Engineering and Technology-Science, Technology, Engineering and Mathematics"]
["Science, Technology, Engineering and Mathematics","o       Science and Math",null,null,null,null,null,null,"Science, Technology, Engineering and Mathematicso       Science and Math",null,null,null,null,null,null,null,null,"Science and Math-Science, Technology, Engineering and Mathematics"]
["Transportation, Distribution and Logistics","o       Transportation Operations",null,null,null,null,null,null,"Transportation, Distribution and Logisticso       Transportation Operations",null,null,null,null,null,null,null,null,"Transportation Operations-Transportation, Distribution and Logistics"]
["Transportation, Distribution and Logistics","o       Logistics Planning and Management Services",null,null,null,null,null,null,"Transportation, Distribution and Logisticso       Logistics Planning and Management Services",null,null,null,null,null,null,null,null,"Logistics Planning and Management Services-Transportation, Distribution and Logistics"]
["Transportation, Distribution and Logistics","o       Warehousing and Distribution Center Operations",null,null,null,null,null,null,"Transportation, Distribution and Logisticso       Warehousing and Distribution Center Operations",null,null,null,null,null,null,null,null,"Warehousing and Distribution Center Operations-Transportation, Distribution and Logistics"]
["Transportation, Distribution and Logistics","o       Facility and Mobile Equipment Maintenance",null,null,null,null,null,null,"Transportation, Distribution and Logisticso       Facility and Mobile Equipment Maintenance",null,null,null,null,null,null,null,null,"Facility and Mobile Equipment Maintenance-Transportation, Distribution and Logistics"]
["Transportation, Distribution and Logistics","o       Transportation Systems/Infrastructure Planning, Management and Regulation",null,null,null,null,null,null,"Transportation, Distribution and Logisticso       Transportation Systems/Infrastructure Planning, Management and Regulation",null,null,null,null,null,null,null,null,"Transportation Systems/Infrastructure Planning, Ma-Transportation, Distribution and Logistics"]
["Transportation, Distribution and Logistics","o       Health, Safety and Environmental Management",null,null,null,null,null,null,"Transportation, Distribution and Logisticso       Health, Safety and Environmental Management",null,null,null,null,null,null,null,null,"Health, Safety and Environmental Management-Transportation, Distribution and Logistics"]
["Transportation, Distribution and Logistics","o       Sales and Service",null,null,null,null,null,null,"Transportation, Distribution and Logisticso       Sales and Service",null,null,null,null,null,null,null,null,"Sales and Service-Transportation, Distribution and Logistics"]
[null,"·         PATHWAYS:"]
[]
[null,"CLUSTER:Architecture and Construction"]
[null,"·         PATHWAYS:"]
[]
[null,"CLUSTER:Arts, Audio/Video Technology and Communications"]
[null,"·        PATHWAYS:"]
[]
[null,"CLUSTER:Business Management and Administration"]
[null,"·        PATHWAYS:"]
[]
[null,"CLUSTER:Education and Training"]
[null,"·        PATHWAYS:"]
[]
[null,"CLUSTER:Finance"]
[null,"·        PATHWAYS:"]
[]
[]
[]
[null,"CLUSTER:Government and Public Administration"]
[null,"·        PATHWAYS:"]
[]
[null,"CLUSTER:Health Science"]
[null,"·        PATHWAYS:"]
[]
[null,"CLUSTER:Hospitality and Tourism"]
[null,"·        PATHWAYS:"]
[]
[null,"CLUSTER:Human Services"]
[null,"·        PATHWAYS:"]
[]
[null,"CLUSTER:Information Technology"]
[null,"·        PATHWAYS:"]
[]
[null,"CLUSTER:Law, Public Safety, Corrections and Security"]
[null,"·        PATHWAYS:"]
[]
[]
[null,"CLUSTER:Manufacturing"]
[null,"·        PATHWAYS:"]
[]
[null,"CLUSTER:Marketing"]
[null,"·        PATHWAYS:"]
[]
[null,"CLUSTER:Science, Technology, Engineering and Mathematics"]
[null,"·        PATHWAYS:"]
[]
[null,"CLUSTER:Transportation, Distribution and Logistics"]
[null,"·        PATHWAYS:"]

{"sheet":"Sheet2","index":7,"n_rows":0,"n_cols":0,"rows_kept":0,"cut":false,"hidden":true,"merged":[]}

{"sheet":"Sheet3","index":8,"n_rows":11,"n_cols":1,"rows_kept":11,"cut":false,"hidden":true,"merged":[]}
["Academic Attainment"]
["Academic Attainment  –  Special Populations"]
["Technical Skills Attainment"]
["Technical Skills Attainment - Special Populations"]
["Secondary School Completion"]
["Student Graduation Rates"]
["Secondary Placement"]
["Secondary Placement   –  Special Populations"]
["Completer Response Rate"]
["Nontraditional Participants"]
["Nontraditional Completion"]

{"sheet":"Sheet4","index":9,"n_rows":0,"n_cols":0,"rows_kept":0,"cut":false,"hidden":true,"merged":[]}